Workbook

Sheet language (hidden)
A1: Current language choice | B1: =A11 -> ENGELS | C1: =A12 -> NEDERLANDS | D1: =A13 -> POOLS | E1: =IF(A14="","--",A14) -> TSJECHISCH | F1: =IF(A15="","--",A15) -> BULGAARS | G1: =IF(A16="","--",A16) -> KROATISCH | H1: =IF(A17="","--",A17) -> DUITS | I1: =IF(A18="","--",A18) -> FRANS | J1: =IF(A19="","--",A19) -> --
A2: =IF(INDEX(B2:J2,Data!$K$4)="","",INDEX(B2:J2,Data!$K$4)) -> Validatietest voor emissies naar lucht | B2: Validation test for emission data | C2: Validatietest voor emissies naar lucht | D2: Test oceny danych emisyjnych | E2: Ověřovací test pro emisní údaje | F2: Тест за валидиране на данните за изпуснати емисии | G2: Test provjere emisija u zrak
A3: =IF(INDEX(B3:J3,Data!$K$4)="","",INDEX(B3:J3,Data!$K$4)) -> Ondanks de zorgvuldigheid waarmee dit werkblad is opgesteld, zijn fouten niet uit te sluiten. | B3: Although this spreadsheet has been carefully developed, mistakes in the calculated values can not be excluded. | C3: Ondanks de zorgvuldigheid waarmee dit werkblad is opgesteld, zijn fouten niet uit te sluiten. | D3: Pomimo iż niniejszy arkusz został przygotowany ze szczególną starannością, nie można wykluczyć błędów kalkulacyjnych. | E3: přestože byl tento tabulkový procesor pečlivě připravován, nelze vyloučit chyby ve vypočítaných hodnotách. | F3: Въпреки че тази програма е била разработен много внимателно, може да има допуснати някои грешки в изчислените стойности. | G3: Ova verzija je pažljivo razvijena, nepredviđene pogreške su moguće.
A4: =IF(INDEX(B4:J4,Data!$K$4)="","",INDEX(B4:J4,Data!$K$4)) -> Versie | B4: Version | C4: Versie | D4: Wersja | E4: Verze | F4: Вариант | G4: Verzija
A5: =IF(INDEX(B5:J5,Data!$K$4)="","",INDEX(B5:J5,Data!$K$4)) -> Deze versie is te gebruiken tot | B5: This version can be used until | C5: Deze versie is te gebruiken tot
A6: =IF(INDEX(B6:J6,Data!$K$4)="","",INDEX(B6:J6,Data!$K$4)) -> Deze versie is verlopen; download een nieuwe versie van www.InfoMil.nl | B6: This version is outdated, download the last version from www.InfoMil.nl | C6: Deze versie is verlopen; download een nieuwe versie van www.InfoMil.nl
A7: =IF(INDEX(B7:J7,Data!$K$4)="","",INDEX(B7:J7,Data!$K$4)) -> Afwijkend van verwachtingswaarde | B7: Different from expected value | C7: Afwijkend van verwachtingswaarde | D7: odbiegające od oczekiwanej wartości | E7: Odlišné od očekávané hodnoty | F7: Различно от очакваната стойност | G7: Različito od očekivane vrijednosti
A8: =IF(INDEX(B8:J8,Data!$K$4)="","",INDEX(B8:J8,Data!$K$4)) -> Ok | B8: Okay | C8: Ok | D8: Ok | E8: Ok | F8: Ok | G8: U redu
A9: =IF(INDEX(B9:J9,Data!$K$4)="","",INDEX(B9:J9,Data!$K$4)) -> Nm3: m3 onder standaard condities | B9: Nm3: m3 at standard conditions | C9: Nm3: m3 onder standaard condities | D9: Nm3: m3 w warunkach normalnych | E9: Nm3: m3 za normálních podmínek | F9: Nm3: m3 в нормални условия | G9: Nm3: m3 u standardnim uvjetima
A10: =IF(INDEX(B10:J10,Data!$K$4)="","",INDEX(B10:J10,Data!$K$4)) -> Taal | B10: Language | C10: Taal | D10: Język | E10: Jazyk | F10: Език | G10: Jezik
A11: =IF(INDEX(B11:J11,Data!$K$4)="","",INDEX(B11:J11,Data!$K$4)) -> ENGELS | B11: ENGLISH | C11: ENGELS | D11: ANGIELSKI | E11: ANGLIČTINA | F11: Английски | G11: ENGLESKI
A12: =IF(INDEX(B12:J12,Data!$K$4)="","",INDEX(B12:J12,Data!$K$4)) -> NEDERLANDS | B12: DUTCH | C12: NEDERLANDS | D12: HOLENDERSKI | E12: HOLANDŠTINA | F12: Холандски | G12: NIZOZEMSKI
A13: =IF(INDEX(B13:J13,Data!$K$4)="","",INDEX(B13:J13,Data!$K$4)) -> POOLS | B13: POLISH | C13: POOLS | D13: POLSKI | E13: POLŠTINA | F13: Полски | G13: POLJSKI
A14: =IF(INDEX(B14:J14,Data!$K$4)="","",INDEX(B14:J14,Data!$K$4)) -> TSJECHISCH | B14: CZECH | C14: TSJECHISCH | D14: CZESKI | E14: ČEŠTINA | F14: Чешки | G14: ČEŠKI
A15: =IF(INDEX(B15:J15,Data!$K$4)="","",INDEX(B15:J15,Data!$K$4)) -> BULGAARS | B15: BULGARIAN | C15: BULGAARS | D15: BUŁGARSKI | E15: BULHARŠTINA | F15: Български | G15: BUGARSKI
A16: =IF(INDEX(B16:J16,Data!$K$4)="","",INDEX(B16:J16,Data!$K$4)) -> KROATISCH | B16: CROATIAN | C16: KROATISCH | G16: HRVATSKI
A17: =IF(INDEX(B17:J17,Data!$K$4)="","",INDEX(B17:J17,Data!$K$4)) -> DUITS | B17: GERMAN | C17: DUITS | D17: NIEMIECKI | E17: NĚMČINA | F17: Немски | G17: NJEMAČKI
A18: =IF(INDEX(B18:J18,Data!$K$4)="","",INDEX(B18:J18,Data!$K$4)) -> FRANS | B18: FRENCH | C18: FRANS | D18: FRANCUSKI | E18: FRANCOUZŠTINA | F18: Френски | G18: FRANCUSKI
A19: =IF(INDEX(B19:J19,Data!$K$4)="",IF(B19="","",B19),INDEX(B19:J19,Data!$K$4)) -> 
A20: =IF(INDEX(B20:J20,Data!$K$4)="","",INDEX(B20:J20,Data!$K$4)) -> Installatie/eenheid | B20: Installation/unit | C20: Installatie/eenheid | D20: Instalacja/urządzenie | E20: Zařízení/jednotka | F20: Инсталация/звено | G20: Podaci o ispustu/uređaja
A21: =IF(INDEX(B21:J21,Data!$K$4)="","",INDEX(B21:J21,Data!$K$4)) -> Type | B21: Type | C21: Type | D21: Typ | E21: Typ | F21: Вид | G21: Vrsta
A22: =IF(INDEX(B22:J22,Data!$K$4)="","",INDEX(B22:J22,Data!$K$4)) -> Thermisch vermogen | B22: Thermal capacity | C22: Thermisch vermogen | D22: Wydajność cieplna | E22: Tepelný výkon | F22: Топлинна мощност | G22: Nazivna toplinska snaga
A23: =IF(INDEX(B23:J23,Data!$K$4)="","",INDEX(B23:J23,Data!$K$4)) -> Elektrisch rendement | B23: Electrical efficiency | C23: Elektrisch rendement | D23: Wydajność elektryczna | E23: Elektrická účinnost | F23: КПД | G23: Električni stupanj djelovanja
A24: =IF(INDEX(B24:J24,Data!$K$4)="","",INDEX(B24:J24,Data!$K$4)) -> Elektrische belasting | B24: E-load | C24: Elektrische belasting | D24: E-ładunek | E24: E-zatížení | F24: Електронатоварване | G24: El. kapacitet
A25: =IF(INDEX(B25:J25,Data!$K$4)="","",INDEX(B25:J25,Data!$K$4)) -> Max. stoomproductie | B25: Max. steam production | C25: Max. stoomproductie | D25: Max. produkcja pary | E25: Max. produkce páry | F25: Максимално производство на пара | G25: Max. nastanak pare
A26: =IF(INDEX(B26:J26,Data!$K$4)="","",INDEX(B26:J26,Data!$K$4)) -> Bedrijfsvoering | B26: Operation of installation/unit | C26: Bedrijfsvoering | D26: Działanie instalacji/urządzenia | E26: Provoz zařízení/jednotky | F26: Експлоатация на инсталацията/звеното | G26: Period rada
A27: =IF(INDEX(B27:J27,Data!$K$4)="","",INDEX(B27:J27,Data!$K$4)) -> Brandstof | B27: Fuel | C27: Brandstof | D27: Paliwo | E27: Palivo | F27: Гориво | G27: Gorivo
A28: =IF(INDEX(B28:J28,Data!$K$4)="","",INDEX(B28:J28,Data!$K$4)) -> AARDGAS | B28: NATURAL GAS | C28: AARDGAS | D28: NATURAL GAS | E28: NATURAL GAS | F28: ПРИРОДЕН ГАЗ | G28: ZEMNI ILI PRIRODNI PLIN
A29: =IF(INDEX(B29:J29,Data!$K$4)="","",INDEX(B29:J29,Data!$K$4)) -> DIESEL | B29: DIESEL | C29: DIESEL | D29: DIESEL | E29: DIESEL | F29: ДИЗЕЛ | G29: TEKUĆE GORIVO
A30: =IF(INDEX(B30:J30,Data!$K$4)="","",INDEX(B30:J30,Data!$K$4)) -> HFO | B30: HFO | C30: HFO | D30: HFO | E30: HFO | F30: МАЗУТ | G30: TEŠKO LOŽIVO ULJE
A31: =IF(INDEX(B31:J31,Data!$K$4)="","",INDEX(B31:J31,Data!$K$4)) -> LFO | B31: LFO | C31: LFO | D31: LFO | E31: LFO | F31: НАФТА | G31: LUEL
A32: =IF(INDEX(B32:J32,Data!$K$4)="","",INDEX(B32:J32,Data!$K$4)) -> KOLEN | B32: COAL | C32: KOLEN | D32: COAL | E32: COAL | F32: ВЪГЛИЩА | G32: UGLJEN
A33: =IF(INDEX(B33:J33,Data!$K$4)="","",INDEX(B33:J33,Data!$K$4)) -> Berekeningsmethode | B33: Calculation principle | C33: Berekeningsmethode | D33: Zasada obliczeń | E33: Pravidlo pro výpočet | F33: Начин на изчисление | G33: Metoda izračuna
A34: =IF(INDEX(B34:J34,Data!$K$4)="","",INDEX(B34:J34,Data!$K$4)) -> Onderste verbrandingswaarde | B34: Lower heating value | C34: Onderste verbrandingswaarde | D34: Najniższa wartość opałowa | E34: Spodní výhřevnost | F34: Долно ниво на калоричност | G34: Donja toplinska vrijednost
A35: =IF(INDEX(B35:J35,Data!$K$4)="","",INDEX(B35:J35,Data!$K$4)) -> Bovenste verbrandingswaarde | B35: Upper heating value | C35: Bovenste verbrandingswaarde | D35: Najwyższa wartość opałowa | E35: Horní výhřevnost | F35: Горно ниво на калоричност | G35: Gornja toplinska vrijednost
A36: =IF(INDEX(B36:J36,Data!$K$4)="","",INDEX(B36:J36,Data!$K$4)) -> Wobbe-index | B36: Wobbe-index | C36: Wobbe-index | D36: Wskaźnik Wobbe'a | E36: Wobbeho index | F36: Wobbe-индекс | G36: Wobbe-indeks
A37: =IF(INDEX(B37:J37,Data!$K$4)="","",INDEX(B37:J37,Data!$K$4)) -> O2 | B37: O2 | C37: O2 | D37: O2 | E37: O2 | F37: O2 | G37: O2
A38: =IF(INDEX(B38:J38,Data!$K$4)="","",INDEX(B38:J38,Data!$K$4)) -> SO2 | B38: SO2 | C38: SO2 | D38: SO2 | E38: SO2 | F38: SO2 | G38: SO2
A39: =IF(INDEX(B39:J39,Data!$K$4)="","",INDEX(B39:J39,Data!$K$4)) -> CO2 | B39: CO2 | C39: CO2 | D39: CO2 | E39: CO2 | F39: CO2 | G39: CO2
A40: =IF(INDEX(B40:J40,Data!$K$4)="","",INDEX(B40:J40,Data!$K$4)) -> NOx | B40: NOx | C40: NOx | D40: NOx | E40: NOx | F40: NOx | G40: NOx
A41: =IF(INDEX(B41:J41,Data!$K$4)="","",INDEX(B41:J41,Data!$K$4)) -> H2O | B41: H2O | C41: H2O | D41: H2O | E41: H2O | F41: H2O | G41: H2O
A42: =IF(INDEX(B42:J42,Data!$K$4)="","",INDEX(B42:J42,Data!$K$4)) -> Stoichiometrisch luchtverbruik | B42: Stoichiometric air demand | C42: Stoichiometrisch luchtverbruik | D42: Stechiometryczne zapotrzebowanie na tlen | E42: Stechiometrická spotřeba vzduchu | F42: Стохиометрична нужда от кислород | G42: Stehiomet.kol. zraka potrebna za izgaranje
A43: =IF(INDEX(B43:J43,Data!$K$4)="","",INDEX(B43:J43,Data!$K$4)) -> Droog luchtverbruik | B43: Dry air demand | C43: Droog luchtverbruik | D43: Zapotrzebowanie na powietrze w stanie suchym | E43: Spotřeba suchého vzduchu | F43: Нужда от сух въздух | G43: Potrebna kol. suhog zraka
A44: =IF(INDEX(B44:J44,Data!$K$4)="","",INDEX(B44:J44,Data!$K$4)) -> Stoichiometrisch rookgasvolume (droog) | B44: Stoichiometric flue gas flow (dry) | C44: Stoichiometrisch rookgasvolume (droog) | D44: Stechiometryczny przepływ spalin (suchych) | E44: Stechiometrický průtok kouřového plynu (suchého) | F44: Стохиомет. дебит на димни газове (сухи) | G44: Stehiomet.protok dimnih plinova (suhi)
A45: =IF(INDEX(B45:J45,Data!$K$4)="","",INDEX(B45:J45,Data!$K$4)) -> Stoichiometrisch rookgasvolume | B45: Stoichiometric flue gas flow | C45: Stoichiometrisch rookgasvolume | D45: Stechiometryczny przepływ spalin | E45: Stechiometrický průtok kouřového plynu | F45: Стохиометричен дебит на димни газове | G45: Stehiomet.protok dimnih plinova
A46: =IF(INDEX(B46:J46,Data!$K$4)="","",INDEX(B46:J46,Data!$K$4)) -> droog | B46: dry | C46: droog | D46: suchych | E46: suchý | F46: сух | G46: suhi
A47: =IF(INDEX(B47:J47,Data!$K$4)="","",INDEX(B47:J47,Data!$K$4)) -> nat | B47: wet | C47: nat | D47: mokrych | E47: mokrý | F47: влажен | G47: mokri
A48: =IF(INDEX(B48:J48,Data!$K$4)="","",INDEX(B48:J48,Data!$K$4)) -> Toepassing | B48: Application | C48: Toepassing | D48: Zastosowanie | E48: Použití | F48: Вид | G48: Primjena goriva
A49: =IF(INDEX(B49:J49,Data!$K$4)="","",INDEX(B49:J49,Data!$K$4)) -> Verbruik | B49: Consumption | C49: Verbruik | D49: Zużycie | E49: Spotřeba | F49: Потребление | G49: Utrošak goriva
A50: =IF(INDEX(B50:J50,Data!$K$4)="","",INDEX(B50:J50,Data!$K$4)) -> Energieverbruik | B50: Energy consumption | C50: Energieverbruik | D50: Zużycie energii | E50: Spotřeba energie | F50: Потребление на енергия | G50: Utrošak energije
A51: =IF(INDEX(B51:J51,Data!$K$4)="","",INDEX(B51:J51,Data!$K$4)) -> Gemiddelde belasting | B51: Average load | C51: Gemiddelde belasting | D51: Średnie obciążenie | E51: Průměrné zatížení | F51: Средно натоварване | G51: Prosječan utrošak goriva
A52: =IF(INDEX(B52:J52,Data!$K$4)="","",INDEX(B52:J52,Data!$K$4)) -> Gehalte fossiele brandstof | B52: Percentage fossile fuel | C52: Gehalte fossiele brandstof | D52: Procent paliwa kopalnego | E52: Procento fosilního paliva | F52: Процент изкопаемо гориво | G52: Postotak fosilnog goriva
A53: =IF(INDEX(B53:J53,Data!$K$4)="","",INDEX(B53:J53,Data!$K$4)) -> voor handel | B53: for trading | C53: voor handel | D53: objętego handlem | E53: pro obchodování | F53: за продажба | G53: za prodaju
A54: =IF(INDEX(B54:J54,Data!$K$4)="","",INDEX(B54:J54,Data!$K$4)) -> Rookgas | B54: Flue gas | C54: Rookgas | D54: Spaliny | E54: Kouřový plyn | F54: Димни газове | G54: dimni plinovi
A55: =IF(INDEX(B55:J55,Data!$K$4)="","",INDEX(B55:J55,Data!$K$4)) -> Concentratie in droog rookgas | B55: Concentration in dry flue gas | C55: Concentratie in droog rookgas | D55: Stężenie w suchych spalinach | E55: Koncentrace v kouřovém plynu | F55: Концентрация в сухи димни газове | G55: Koncentracija u suhim dimnim plinovima
A56: =IF(INDEX(B56:J56,Data!$K$4)="","",INDEX(B56:J56,Data!$K$4)) -> Emissie | B56: Emission | C56: Emissie | D56: Emisja | E56: Emise | F56: Емисии | G56: Količina emisije
A57: =IF(INDEX(B57:J57,Data!$K$4)="","",INDEX(B57:J57,Data!$K$4)) -> Rookgasdebiet (droog) | B57: Flue gas flow (dry) | C57: Rookgasdebiet (droog) | D57: Przepływ spalin (suchych) | E57: Průtok kouřového plynu (suchého) | F57: Дебит на димни газове (сухи) | G57: Protok dimnih plinova (suhi)
A58: =IF(INDEX(B58:J58,Data!$K$4)="","",INDEX(B58:J58,Data!$K$4)) -> Rookgasdebiet (nat) | B58: Flue gas flow (wet) | C58: Rookgasdebiet (nat) | D58: Przepływ spalin (mokrych) | E58: Průtok kouřového plynu (mokrého) | F58: Дебит на димни газове (влажни) | G58: Protok dimnih plinova (mokri)
A59: =IF(INDEX(B59:J59,Data!$K$4)="","",INDEX(B59:J59,Data!$K$4)) -> Debiet (droog) | B59: Gas flow (dry) | C59: Debiet (droog) | D59: Przepływ (suchych) | E59: Průtok plynu (suchého) | F59: Дебит на газове (сухи) | G59: Protok plina (ostali suhi plinovi)
A60: =IF(INDEX(B60:J60,Data!$K$4)="","",INDEX(B60:J60,Data!$K$4)) -> Invoer emissiegegevens | B60: Input emission data | C60: Invoer emissiegegevens | D60: Wejścowe dane emisyjne | E60: Vložení emisních údajů | F60: Въвеждане на данни за изпуснати емисии | G60: Unos vrijednosti emisije
A61: =IF(INDEX(B61:J61,Data!$K$4)="","",INDEX(B61:J61,Data!$K$4)) -> Validatietest | B61: Validation test | C61: Validatietest | D61: Test oceny | E61: Ověřovací test | F61: Тест за валидиране | G61: Test provjere
A62: =IF(INDEX(B62:J62,Data!$K$4)="","",INDEX(B62:J62,Data!$K$4)) -> Wijzig gegevens gasvormige brandstoffen | B62: Change gaseous fuel data | C62: Wijzig gegevens gasvormige brandstoffen | D62: Zmiana danych dot. paliw gaz. | E62: Změna údajů o plynném palivu | F62: Промяна в данните за газообразно гориво | G62: Izmijeni podatke o plinovitom gorivu
A63: =IF(INDEX(B63:J63,Data!$K$4)="","",INDEX(B63:J63,Data!$K$4)) -> Wijzig gegevens vloeibare brandstoffen | B63: Change liquid fuel data | C63: Wijzig gegevens vloeibare brandstoffen | D63: Zmiana danych dot. paliw płyn. | E63: Změna údajů o tekutém palivu | F63: Промяна в данните за течно гориво | G63: Izmijeni podatke o tekućem gorivu
A64: =IF(INDEX(B64:J64,Data!$K$4)="","",INDEX(B64:J64,Data!$K$4)) -> Wijzig gegevens vaste brandstoffen | B64: Change solid fuel data | C64: Wijzig gegevens vaste brandstoffen | D64: Zmiana danych dot. paliw stał. | E64: Změna údajů o pevném palivu | F64: Промяна в данните за твърдо гориво | G64: Izmijeni podatke o krutom gorivu
A65: =IF(INDEX(B65:J65,Data!$K$4)="","",INDEX(B65:J65,Data!$K$4)) -> MW | B65: MW | C65: MW | D65: MW | E65: MW | F65: MW | G65: MW
A66: =IF(INDEX(B66:J66,Data!$K$4)="","",INDEX(B66:J66,Data!$K$4)) -> ton/uur | B66: tons/hour | C66: ton/uur | D66: ton/godz | E66: tuna/hod | F66: tons/час | G66: t/h
A67: =IF(INDEX(B67:J67,Data!$K$4)="","",INDEX(B67:J67,Data!$K$4)) -> uur/jaar | B67: hours/year | C67: uur/jaar | D67: godz/rok | E67: hod/rok | F67: часове/год | G67: sati/god.
A68: =IF(INDEX(B68:J68,Data!$K$4)="","",INDEX(B68:J68,Data!$K$4)) -> Totaal | B68: Total | C68: Totaal | D68: Razem | E68: Celkem | F68: Общо | G68: Ukupno
A69: =IF(INDEX(B69:J69,Data!$K$4)="","",INDEX(B69:J69,Data!$K$4)) -> MJ | B69: MJ | C69: MJ | D69: MJ | E69: MJ | F69: MJ | G69: MJ
A70: =IF(INDEX(B70:J70,Data!$K$4)="","",INDEX(B70:J70,Data!$K$4)) -> MJ/Nm3 | B70: MJ/Nm3 | C70: MJ/Nm3 | D70: MJ/Nm3 | E70: MJ/m3 | F70: MJ/Nm3 | G70: MJ/Nm3
A71: =IF(INDEX(B71:J71,Data!$K$4)="","",INDEX(B71:J71,Data!$K$4)) -> kJ/Nm3 | B71: kJ/Nm3 | C71: kJ/Nm3 | D71: kJ/Nm3 | E71: kJ/Nm3 | F71: kJ/Nm3 | G71: kJ/Nm3
A72: =IF(INDEX(B72:J72,Data!$K$4)="","",INDEX(B72:J72,Data!$K$4)) -> MJ/kg | B72: MJ/kg | C72: MJ/kg | D72: MJ/kg | E72: MJ/kg | F72: MJ/kg | G72: MJ/kg
A73: =IF(INDEX(B73:J73,Data!$K$4)="","",INDEX(B73:J73,Data!$K$4)) -> kJ/kg | B73: kJ/kg | C73: kJ/kg | D73: kJ/kg | E73: kJ/kg | F73: kJ/kg | G73: kJ/kg
A74: =IF(INDEX(B74:J74,Data!$K$4)="","",INDEX(B74:J74,Data!$K$4)) -> MJ/kmol | B74: MJ/kmol | C74: MJ/kmol | D74: MJ/kmol | E74: MJ/kmol | F74: MJ/kmol | G74: MJ/kmol
A75: =IF(INDEX(B75:J75,Data!$K$4)="","",INDEX(B75:J75,Data!$K$4)) -> mol/kg | B75: mol/kg | C75: mol/kg | D75: mol/kg | E75: mol/kg | F75: mol/kg | G75: mol/kg
A76: =IF(INDEX(B76:J76,Data!$K$4)="","",INDEX(B76:J76,Data!$K$4)) -> kg/GJ | B76: kg/GJ | C76: kg/GJ | D76: kg/GJ | E76: kg/GJ | F76: kg/GJ | G76: kg/GJ
A77: =IF(INDEX(B77:J77,Data!$K$4)="","",INDEX(B77:J77,Data!$K$4)) -> kg CO2/GJ | B77: kg CO2/GJ | C77: kg CO2/GJ | D77: kg CO2/GJ | E77: kg CO2/GJ | F77: kg CO2/GJ | G77: kg CO2/GJ
A78: =IF(INDEX(B78:J78,Data!$K$4)="","",INDEX(B78:J78,Data!$K$4)) -> kg/Nm3 | B78: kg/Nm3 | C78: kg/Nm3 | D78: kg/Nm3 | E78: kg/m3 | F78: kg/Nm3 | G78: kg/Nm3
A79: =IF(INDEX(B79:J79,Data!$K$4)="","",INDEX(B79:J79,Data!$K$4)) -> Nm3 | B79: Nm3 | C79: Nm3 | D79: Nm3 | E79: m3 | F79: Nm3 | G79: Nm3
A80: =IF(INDEX(B80:J80,Data!$K$4)="","",INDEX(B80:J80,Data!$K$4)) -> Nm3/Nm3 | B80: Nm3/Nm3 | C80: Nm3/Nm3 | D80: Nm3/Nm3 | E80: m3/m3 | F80: Nm3/Nm3 | G80: Nm3/Nm3
A81: =IF(INDEX(B81:J81,Data!$K$4)="","",INDEX(B81:J81,Data!$K$4)) -> Nm3/kg | B81: Nm3/kg | C81: Nm3/kg | D81: Nm3/kg | E81: m3/kg | F81: Nm3/kg | G81: Nm3/kg
A82: =IF(INDEX(B82:J82,Data!$K$4)="","",INDEX(B82:J82,Data!$K$4)) -> Nm3/jaar | B82: Nm3/year | C82: Nm3/jaar | D82: Nm3/rok | E82: m3/rok | F82: Nm3/год | G82: Nm3/god.
A83: =IF(INDEX(B83:J83,Data!$K$4)="","",INDEX(B83:J83,Data!$K$4)) -> kg/jaar | B83: kg/year | C83: kg/jaar | D83: kg/rok | E83: kg/rok | F83: kg/год | G83: kg/god.
A84: =IF(INDEX(B84:J84,Data!$K$4)="","",INDEX(B84:J84,Data!$K$4)) -> Nm3/uur | B84: Nm3/hour | C84: Nm3/uur | D84: Nm3/godz | E84: m3/hod | F84: Nm3/час | G84: Nm3/h
A85: =IF(INDEX(B85:J85,Data!$K$4)="","",INDEX(B85:J85,Data!$K$4)) -> kg/uur | B85: kg/hour | C85: kg/uur | D85: kg/godz | E85: kg/hod | F85: kg/час | G85: kg/h
A86: =IF(INDEX(B86:J86,Data!$K$4)="","",INDEX(B86:J86,Data!$K$4)) -> GJ/uur | B86: GJ/hour | C86: GJ/uur | D86: GJ/godz | E86: GJ/hod | F86: GJ/час | G86: GJ/h
A87: =IF(INDEX(B87:J87,Data!$K$4)="","",INDEX(B87:J87,Data!$K$4)) -> TJ/jaar | B87: TJ/year | C87: TJ/jaar | D87: TJ/rok | E87: TJ/rok | F87: TJ/год | G87: TJ/god.
A88: =IF(INDEX(B88:J88,Data!$K$4)="","",INDEX(B88:J88,Data!$K$4)) -> ton/uur | B88: tons/hour | C88: ton/uur | D88: ton/godz | E88: tuny/hod | F88: tоns/час | G88: t/h
A89: =IF(INDEX(B89:J89,Data!$K$4)="","",INDEX(B89:J89,Data!$K$4)) -> ton/jaar | B89: tons/year | C89: ton/jaar | D89: ton/rok | E89: tuny/rok | F89: tоns/год | G89: t/god.
A90: =IF(INDEX(B90:J90,Data!$K$4)="","",INDEX(B90:J90,Data!$K$4)) -> kton/jaar | B90: ktons/year | C90: kton/jaar | D90: kton/rok | E90: kilotuny/rok | F90: ktons/год | G90: kt/god.
A91: =IF(INDEX(B91:J91,Data!$K$4)="","",INDEX(B91:J91,Data!$K$4)) -> vol% | B91: vol% | C91: vol% | D91: vol% | E91: objem % | F91: обем % | G91: vol%
A92: =IF(INDEX(B92:J92,Data!$K$4)="","",INDEX(B92:J92,Data!$K$4)) -> Nm3/jaar | B92: Nm3/year | C92: Nm3/jaar | D92: Nm3/rok | E92: m3/rok | F92: Nm3/год | G92: Nm3/god.
A93: =IF(INDEX(B93:J93,Data!$K$4)="","",INDEX(B93:J93,Data!$K$4)) -> mg/Nm3 | B93: mg/Nm3 | C93: mg/Nm3 | D93: mg/Nm3 | E93: mg/m3 | F93: mg/Nm3 | G93: mg/Nm3
A94: =IF(INDEX(B94:J94,Data!$K$4)="","",INDEX(B94:J94,Data!$K$4)) -> bij | B94: at | C94: bij | D94: w | E94: v | F94: при | G94: na/u
A95: =IF(INDEX(B95:J95,Data!$K$4)="","",INDEX(B95:J95,Data!$K$4)) -> kg/GJ | B95: kg/GJ | C95: kg/GJ | D95: kg/GJ | E95: kg/GJ | F95: kg/GJ | G95: kg/GJ
A96: =IF(INDEX(B96:J96,Data!$K$4)="","",INDEX(B96:J96,Data!$K$4)) -> g/GJ | B96: g/GJ | C96: g/GJ | D96: g/GJ | E96: g/GJ | F96: g/GJ | G96: g/GJ
A97: =IF(INDEX(B97:J97,Data!$K$4)="","",INDEX(B97:J97,Data!$K$4)) -> Geldigheid | B97: Validity | C97: Geldigheid | D97: Okres ważności' | E97: Správnost | F97: Валидност | G97: Valjanost
A98: =IF(INDEX(B98:J98,Data!$K$4)="","",INDEX(B98:J98,Data!$K$4)) -> Menu | B98: Menu | C98: Menu | D98: Menu | E98: Menu | F98: Меню | G98: Menu
A99: =IF(INDEX(B99:J99,Data!$K$4)="","",INDEX(B99:J99,Data!$K$4)) -> DAGEN/WEEK | B99: DAYS/WEEK | C99: DAGEN/WEEK | D99: DNI/TYDZ | E99: DNY/TÝDEN | F99: ДНИ/СЕДМИЦА | G99: DANI/TJEDAN
A100: =IF(INDEX(B100:J100,Data!$K$4)="","",INDEX(B100:J100,Data!$K$4)) -> UUR/DAG | B100: HR/DAY | C100: UUR/DAG | D100: GODZ/DZIEŃ | E100: HOD/DEN | F100: ЧАСА/ДЕН | G100: SATI/DAN
A101: =IF(INDEX(B101:J101,Data!$K$4)="","",INDEX(B101:J101,Data!$K$4)) -> STAND-BY | B101: STAND-BY | C101: STAND-BY | D101: JEDN.ZAPASOWA/STAND-BY | E101: POHOTOVOST | F101: ПОСТОЯННО | G101: STAND-BY
A102: =IF(INDEX(B102:J102,Data!$K$4)="","",INDEX(B102:J102,Data!$K$4)) -> Installatie type | B102: Installation type | C102: Installatie type | D102: Instalacji typ | E102: Typ zařízení | F102: Вид инсталация | G102: Vrsta ispusta
A103: =IF(INDEX(B103:J103,Data!$K$4)="","",INDEX(B103:J103,Data!$K$4)) -> KETEL | B103: BOILER | C103: KETEL | D103: KOCIOŁ | E103: KOTEL | F103: КОТЕЛ | G103: KOTAO
A104: =IF(INDEX(B104:J104,Data!$K$4)="","",INDEX(B104:J104,Data!$K$4)) -> KETEL MET STOOMTURBINE | B104: BOILER WITH STEAMTURBINE | C104: KETEL MET STOOMTURBINE | D104: KOCIOŁ Z TURBINĄ PAROWĄ | E104: KOTEL S PARNÍ TURBÍNOU | F104: КОТЕЛ С ПАРНА ТУРБИНА | G104: KOTAO PARNE TURBINE
A105: =IF(INDEX(B105:J105,Data!$K$4)="","",INDEX(B105:J105,Data!$K$4)) -> PROCESFORNUIS | B105: FURNACE | C105: PROCESFORNUIS | D105: PIEC | E105: PEC | F105: ПЕЩ | G105: LOŽIŠTE
A106: =IF(INDEX(B106:J106,Data!$K$4)="","",INDEX(B106:J106,Data!$K$4)) -> GASTURBINE | B106: GAS TURBINE | C106: GASTURBINE | D106: TURBINA GAZOWA | E106: PLYNOVÁ TURBÍNA | F106: ГАЗОВА ТУРБИНА | G106: PLINSKA TURBINA
A107: =IF(INDEX(B107:J107,Data!$K$4)="","",INDEX(B107:J107,Data!$K$4)) -> WKK GASTURBINE | B107: CHP GAS TURBINE | C107: WKK GASTURBINE | D107: TURBINA GAZOWA KOGENERACYJNA (CHP) | E107: CHP PLYNOVÁ TURBÍNA | F107: ГАЗОВА ТУРБИНА ЗА КОМБИНИРАНО ТОПЛО И ЕЛЕКТРО ПРОИЗВОДСТВО | G107: KOMBINIRANA EL./PLINSKA TURBINA
A108: =IF(INDEX(B108:J108,Data!$K$4)="","",INDEX(B108:J108,Data!$K$4)) -> ZUIGERMOTOR | B108: ENGINE | C108: ZUIGERMOTOR | D108: SILNIK | E108: MOTOR | F108: ДВИГАТЕЛ | G108: MOTOR SA UNUTARNJIM IZGARANJEM
A109: =IF(INDEX(B109:J109,Data!$K$4)="","",INDEX(B109:J109,Data!$K$4)) -> WKK ZUIGERMOTOR | B109: CHP ENGINE | C109: WKK ZUIGERMOTOR | D109: SILNIK KOGENERACYJNY (CHP) | E109: CHP MOTOR | F109: ДВИГАТЕЛ ЗА КОМБИНИРАНО ТОПЛО И ЕЛЕКТРО ПРОИЗВОДСТВО | G109: KOMBINIRANI EL./PLINSKI MOTOR
A110: =IF(INDEX(B110:J110,Data!$K$4)="","",INDEX(B110:J110,Data!$K$4)) -> ANDERS | B110: OTHER | C110: ANDERS | D110: INNE | E110: JINÉ | F110: ДРУГ | G110: OSTALO
A111: =IF(INDEX(B111:J111,Data!$K$4)="","",INDEX(B111:J111,Data!$K$4)) -> Min rendement | B111: Min Efficiency | C111: Min rendement | D111: Min. wydajność | E111: Min účinnost | F111: Минимално ниво на ефективност | G111: Min. učinkovitost
A112: =IF(INDEX(B112:J112,Data!$K$4)="","",INDEX(B112:J112,Data!$K$4)) -> Max rendement | B112: Max Efficiency | C112: Max rendement | D112: Max. wydajność | E112: Max účinnost | F112: Максимално ниво на ефективност | G112: Max. učinkovitost
A113: =IF(INDEX(B113:J113,Data!$K$4)="","",INDEX(B113:J113,Data!$K$4)) -> rij | B113: row | C113: rij | D113: wiersz | E113: řada | F113: ред | G113: red
A114: =IF(INDEX(B114:J114,Data!$K$4)="","",INDEX(B114:J114,Data!$K$4)) -> kolom | B114: column | C114: kolom | D114: kolumna | E114: sloupec | F114: колона | G114: kolona
A115: =IF(INDEX(B115:J115,Data!$K$4)="","",INDEX(B115:J115,Data!$K$4)) -> brandstoftype | B115: fuel type | C115: brandstoftype | D115: Typ paliwa | E115: Typ paliva | F115: вид гориво | G115: vrsta goriva
A116: =IF(INDEX(B116:J116,Data!$K$4)="","",INDEX(B116:J116,Data!$K$4)) -> GEEN | B116: NONE | C116: GEEN | D116: - | E116: ŽÁDNÉ | F116: НИЩО | G116: NEMA
A117: =IF(INDEX(B117:J117,Data!$K$4)="","",INDEX(B117:J117,Data!$K$4)) -> % fossiel | B117: % fossile | C117: % fossiel | D117: % paliwa kopalnego | E117: % fosilního (paliva) | F117: % фосил | G117: % fosilnog goriva
A118: =IF(INDEX(B118:J118,Data!$K$4)="","",INDEX(B118:J118,Data!$K$4)) -> Onderste verbrandingswaarde | B118: Lower heating value | C118: Onderste verbrandingswaarde | D118: Najniższa wartość opałowa | E118: Hodnota spodní výhřevnosti | F118: Долно ниво на калоричност | G118: Donja toplinska vrijednost
A119: =IF(INDEX(B119:J119,Data!$K$4)="","",INDEX(B119:J119,Data!$K$4)) -> Berekeningsmethode | B119: Calculation principle | C119: Berekeningsmethode | D119: Zasada obliczeń | E119: Pravidlo pro výpočet | F119: Начин на изчисление | G119: Metoda izračuna
A120: =IF(INDEX(B120:J120,Data!$K$4)="","",INDEX(B120:J120,Data!$K$4)) -> Stoichiometrisch rookgasvolume Rgv | B120: Stoichiometric flue gas flow | C120: Stoichiometrisch rookgasvolume Rgv | D120: Stechiometryczny przepływ spalin | E120: stechiometrický průtok kouřového plynu Rgv | F120: Стохиометричен дебит на димни газове Rgv | G120: Stehiomet.protok dimnih plinova
A121: =IF(INDEX(B121:J121,Data!$K$4)="","",INDEX(B121:J121,Data!$K$4)) -> onzekerheid | B121: uncertainty | C121: onzekerheid | D121: niepewność | E121: nejistota | F121: несигурност | G121: odstupanje
A122: =IF(INDEX(B122:J122,Data!$K$4)="","",INDEX(B122:J122,Data!$K$4)) -> eenheid | B122: unit | C122: eenheid | D122: jednostka | E122: jednotka | F122: звено | G122: jedinica
A123: =IF(INDEX(B123:J123,Data!$K$4)="","",INDEX(B123:J123,Data!$K$4)) -> VERBRANDING | B123: COMBUSTION | C123: VERBRANDING | D123: SPALANIE | E123: SPALOVÁNÍ | F123: ГОРЕНЕ | G123: IZGARANJE
A124: =IF(INDEX(B124:J124,Data!$K$4)="","",INDEX(B124:J124,Data!$K$4)) -> LEVERING | B124: SUPPLY | C124: LEVERING | D124: DOSTAWA | E124: DODÁVKA | F124: ДОСТАВКА | G124: PRODANO
A125: =IF(INDEX(B125:J125,Data!$K$4)="","",INDEX(B125:J125,Data!$K$4)) -> HF | B125: HF | C125: HF | D125: HF | E125: HF | F125: HF | G125: HF
A126: =IF(INDEX(B126:J126,Data!$K$4)="","",INDEX(B126:J126,Data!$K$4)) -> HCl | B126: HCl | C126: HCl | D126: HCl | E126: HCl | F126: HCl | G126: HCl
A127: =IF(INDEX(B127:J127,Data!$K$4)="","",INDEX(B127:J127,Data!$K$4)) -> CxHy | B127: CxHy | C127: CxHy | D127: CxHy | E127: CxHy | F127: CxHy | G127: CxHy
A128: =IF(INDEX(B128:J128,Data!$K$4)="","",INDEX(B128:J128,Data!$K$4)) -> CO | B128: CO | C128: CO | D128: CO | E128: CO | F128: CO | G128: CO
A129: =IF(INDEX(B129:J129,Data!$K$4)="","",INDEX(B129:J129,Data!$K$4)) -> STOF | B129: DUST | C129: STOF | D129: PYŁ | E129: PRACH | F129: ПРАХ | G129: PRAŠINA
A130: =IF(INDEX(B130:J130,Data!$K$4)="","",INDEX(B130:J130,Data!$K$4)) -> Score | B130: Score | C130: Score | D130: Wynik | E130: Skóre | F130: Резултат | G130: Rezultat
A131: =IF(INDEX(B131:J131,Data!$K$4)="","",INDEX(B131:J131,Data!$K$4)) -> Stoomproductie | B131: Steam production | C131: Stoomproductie | D131: Produkcja pary | E131: Produkce páry | F131: Производство на пара | G131: Nastala para
A132: =IF(INDEX(B132:J132,Data!$K$4)="","",INDEX(B132:J132,Data!$K$4)) -> niet relevant/onbekend | B132: not relevant/unknown | C132: niet relevant/onbekend | D132: nie dotyczy/ nieznane | E132: není relevantní/neznámý | F132: не се прилага/неизвестен | G132: nevažeće/nepoznato
A133: =IF(INDEX(B133:J133,Data!$K$4)="","",INDEX(B133:J133,Data!$K$4)) -> Keuze | B133: Choice | C133: Keuze | D133: Wybór | E133: Výběr | F133: Избор | G133: Izbor
A134: =IF(INDEX(B134:J134,Data!$K$4)="","",INDEX(B134:J134,Data!$K$4)) -> Bedrijfstijd | B134: Operating time | C134: Bedrijfstijd | D134: Czas działania | E134: Provozní doba | F134: Време на експлоатация | G134: Ukupno vrijeme rada
A135: =IF(INDEX(B135:J135,Data!$K$4)="","",INDEX(B135:J135,Data!$K$4)) -> Gerapporteerde | B135: Reported | C135: Gerapporteerde | D135: Raportowana | E135: Reportované | F135: Докладване | G135: Izvještaj
A136: =IF(INDEX(B136:J136,Data!$K$4)="","",INDEX(B136:J136,Data!$K$4)) -> Gemiddelde belasting | B136: Average load | C136: Gemiddelde belasting | D136: Średnie obciążenie | E136: Průměrné zatížení | F136: Средно натоварване | G136: Prosječan utrošak goriva
A137: =IF(INDEX(B137:J137,Data!$K$4)="","",INDEX(B137:J137,Data!$K$4)) -> Emissie-eis | B137: ELV | C137: Emissie-eis | D137: DWE | E137: EL=emisní limit | F137: Праг на допустими емесии | G137: Max.koncentracija količine emisija
A138: =IF(INDEX(B138:J138,Data!$K$4)="","",INDEX(B138:J138,Data!$K$4)) -> Emissie-eis | B138: Emission limit value | C138: Emissie-eis | D138: Dopuszczalna wartość emisji | E138: Hodnota emisního limitu | F138: Праг на допустими емисии | G138: Max.koncentracija količine emisija
A139: =IF(INDEX(B139:J139,Data!$K$4)="","",INDEX(B139:J139,Data!$K$4)) -> concentratie | B139: concentration | C139: concentratie | D139: stężenie | E139: koncentrace | F139: концентрация | G139: koncentracija
A140: =IF(INDEX(B140:J140,Data!$K$4)="","",INDEX(B140:J140,Data!$K$4)) -> relatieve | B140: relative | C140: relatieve | D140: względna | E140: relativní | F140: приблизително | G140: relativno
A141: =IF(INDEX(B141:J141,Data!$K$4)="","",INDEX(B141:J141,Data!$K$4)) -> in % van de theoretische waarde | B141: in % of theoretical value | C141: in % van de theoretische waarde | D141: w % wartości teoretycznej | E141: v % teoretické hodnoty | F141: в % от теоритичната стойност | G141: u % teoretske vrijednosti
A142: =IF(INDEX(B142:J142,Data!$K$4)="","",INDEX(B142:J142,Data!$K$4)) -> Omschrijving | B142: Description | C142: Omschrijving | D142: Opis | E142: Popis | F142: Описание | G142: Opis
A143: =IF(INDEX(B143:J143,Data!$K$4)="","",INDEX(B143:J143,Data!$K$4)) -> Brandstofstikstof | B143: Nitrogen originating from fuel | C143: Brandstofstikstof | D143: Azot pochodzący z paliwa | E143: Dusík vzniklý z paliva | F143: Азот, получен от горивото | G143: Dušična osnova goriva
A144: =IF(INDEX(B144:J144,Data!$K$4)="","",INDEX(B144:J144,Data!$K$4)) -> Concentratie in mol% | B144: Concentration in mol% | C144: Concentratie in mol% | D144: Stężenie w mol% | E144: Koncentrace v mol% | F144: Концентрация в mol% | G144: Količinski udio u mol %
A145: =IF(INDEX(B145:J145,Data!$K$4)="","",INDEX(B145:J145,Data!$K$4)) -> Helium | B145: Helium | C145: Helium | D145: Hel | E145: Helium | F145: Хелий | G145: Helij
A146: =IF(INDEX(B146:J146,Data!$K$4)="","",INDEX(B146:J146,Data!$K$4)) -> Argon | B146: Argon | C146: Argon | D146: Argon | E146: Argon | F146: Аргон | G146: Argon
A147: =IF(INDEX(B147:J147,Data!$K$4)="","",INDEX(B147:J147,Data!$K$4)) -> Waterstofsulfide * | B147: Hydrogensulphide * | C147: Waterstofsulfide * | D147: Siarkowodór * | E147: Sirovodík | F147: Хидрогенсулфид * | G147: Sumporovodik *
A148: =IF(INDEX(B148:J148,Data!$K$4)="","",INDEX(B148:J148,Data!$K$4)) -> Waterstof | B148: Hydrogen | C148: Waterstof | D148: Wodór | E148: Vodík | F148: Водород | G148: Vodik
A149: =IF(INDEX(B149:J149,Data!$K$4)="","",INDEX(B149:J149,Data!$K$4)) -> Waterdamp | B149: Water (vapour) | C149: Waterdamp | D149: Woda (para) | E149: Voda (pára) | F149: Вода (изпарение) | G149: Voda (vodena para)
A150: =IF(INDEX(B150:J150,Data!$K$4)="","",INDEX(B150:J150,Data!$K$4)) -> Stikstof | B150: Nitrogen | C150: Stikstof | D150: Azot | E150: Dusík | F150: Азот | G150: Dušik
A151: =IF(INDEX(B151:J151,Data!$K$4)="","",INDEX(B151:J151,Data!$K$4)) -> Zuurstof | B151: Oxygen | C151: Zuurstof | D151: Tlen | E151: Kyslík | F151: Кислород | G151: Kisik
A152: =IF(INDEX(B152:J152,Data!$K$4)="","",INDEX(B152:J152,Data!$K$4)) -> Methaan | B152: Methane | C152: Methaan | D152: Metan | E152: Metan | F152: Метан | G152: Metan
A153: =IF(INDEX(B153:J153,Data!$K$4)="","",INDEX(B153:J153,Data!$K$4)) -> Koolstofmonoxide | B153: Carbonmonoxide | C153: Koolstofmonoxide | D153: Tlenek węgla | E153: Oxid uhelnatý | F153: Въглероден моноксид | G153: Ugljikov monoksid
A154: =IF(INDEX(B154:J154,Data!$K$4)="","",INDEX(B154:J154,Data!$K$4)) -> Koolstofdioxide | B154: Carbondioxide | C154: Koolstofdioxide | D154: Dwutlenek węgla | E154: Oxid uhličitý | F154: Въглероден диоксид | G154: Ugljikov dioksid
A155: =IF(INDEX(B155:J155,Data!$K$4)="","",INDEX(B155:J155,Data!$K$4)) -> Ethaan | B155: Ethane | C155: Ethaan | D155: Etan | E155: Etan | F155: Етан | G155: Etan
A156: =IF(INDEX(B156:J156,Data!$K$4)="","",INDEX(B156:J156,Data!$K$4)) -> Etheen * | B156: Ethene * | C156: Etheen * | D156: Eten * | E156: Eten * | F156: Етен* | G156: Eten *
A157: =IF(INDEX(B157:J157,Data!$K$4)="","",INDEX(B157:J157,Data!$K$4)) -> Ethyn * | B157: Ethyne * | C157: Ethyn * | D157: Etyn * | E157: Etyn * | F157: Етин* | G157: Etin *
A158: =IF(INDEX(B158:J158,Data!$K$4)="","",INDEX(B158:J158,Data!$K$4)) -> Propaan | B158: Propane | C158: Propaan | D158: Propan | E158: Propan | F158: Пропан | G158: Propan
A159: =IF(INDEX(B159:J159,Data!$K$4)="","",INDEX(B159:J159,Data!$K$4)) -> Propeen * | B159: Propene * | C159: Propeen * | D159: Propen * | E159: Propen * | F159: Пропин* | G159: Propen *
A160: =IF(INDEX(B160:J160,Data!$K$4)="","",INDEX(B160:J160,Data!$K$4)) -> 2-Methylpropaan | B160: 2-Methylpropane | C160: 2-Methylpropaan | D160: 2-Metylopropan | E160: 2-Metylpropan | F160: 2-метилпропан | G160: 2-metilpropan
A161: =IF(INDEX(B161:J161,Data!$K$4)="","",INDEX(B161:J161,Data!$K$4)) -> n-Butaan | B161: n-Butane | C161: n-Butaan | D161: n-Butan | E161: n-Butan | F161: n-бутан | G161: n-butan
A162: =IF(INDEX(B162:J162,Data!$K$4)="","",INDEX(B162:J162,Data!$K$4)) -> Butadieen * | B162: Butadiene * | C162: Butadieen * | D162: Butadien * | E162: Butadien * | F162: Бутадиен* | G162: Butadien *
A163: =IF(INDEX(B163:J163,Data!$K$4)="","",INDEX(B163:J163,Data!$K$4)) -> 2,2-Dimethylpropaan | B163: 2,2-Dimethylpropane | C163: 2,2-Dimethylpropaan | D163: 2,2-Dimetylopropan | E163: 2,2-Dimetylpropan | F163: 2,2-диметилпропан | G163: 2,2-dimetilpropan
A164: =IF(INDEX(B164:J164,Data!$K$4)="","",INDEX(B164:J164,Data!$K$4)) -> 2-Methylbutaan | B164: 2-Methylbutane | C164: 2-Methylbutaan | D164: 2-Metylobutan | E164: 2-Metylbutan | F164: 2-Метилбутан | G164: 2-metilbutan
A165: =IF(INDEX(B165:J165,Data!$K$4)="","",INDEX(B165:J165,Data!$K$4)) -> n-Pentaan | B165: n-Pentane | C165: n-Pentaan | D165: n-Pentan | E165: n-Pentan | F165: n-Пентан | G165: n-pentan
A166: =IF(INDEX(B166:J166,Data!$K$4)="","",INDEX(B166:J166,Data!$K$4)) -> Cyclopentaan * | B166: Cyclopentane * | C166: Cyclopentaan * | D166: Cyklopentan * | E166: Cyklopentan * | F166: Циклопентан* | G166: Ciklopentan *
A167: =IF(INDEX(B167:J167,Data!$K$4)="","",INDEX(B167:J167,Data!$K$4)) -> 2,2-Dimethylbutaan | B167: 2,2-Dimethylbutane | C167: 2,2-Dimethylbutaan | D167: 2,2-Dimetylobutan | E167: 2,2-Dimetylbutan | F167: 2,2-диметилбутан | G167: 2,2-dimetilbutan
A168: =IF(INDEX(B168:J168,Data!$K$4)="","",INDEX(B168:J168,Data!$K$4)) -> 2,3-Dimethylbutaan | B168: 2,3-Dimethylbutane | C168: 2,3-Dimethylbutaan | D168: 2,3-Dimetylobutan | E168: 2,3-Dimetylbutan | F168: 2,3-диметилбутан | G168: 2,3-dimetilbutan
A169: =IF(INDEX(B169:J169,Data!$K$4)="","",INDEX(B169:J169,Data!$K$4)) -> 3-Methylpentaan | B169: 3-Methylpentane | C169: 3-Methylpentaan | D169: 3-Metylopentan | E169: 3-Metylpentan | F169: 3-Метилпентан | G169: 3-metilpentan
A170: =IF(INDEX(B170:J170,Data!$K$4)="","",INDEX(B170:J170,Data!$K$4)) -> Cyclohexaan | B170: Cyclohexane | C170: Cyclohexaan | D170: Cykloheksan | E170: Cyklohexan | F170: Цеклохексан | G170: Cikloheksan
A171: =IF(INDEX(B171:J171,Data!$K$4)="","",INDEX(B171:J171,Data!$K$4)) -> n-Hexaan | B171: n-Hexane | C171: n-Hexaan | D171: n-Heksan | E171: n-Hexan | F171: n-хексан | G171: n-heksan
A172: =IF(INDEX(B172:J172,Data!$K$4)="","",INDEX(B172:J172,Data!$K$4)) -> Benzeen | B172: Benzene | C172: Benzeen | D172: Benzen | E172: Benzen | F172: Бензен | G172: Benzen
A173: =IF(INDEX(B173:J173,Data!$K$4)="","",INDEX(B173:J173,Data!$K$4)) -> 2-Methylhexaan | B173: 2-Methylhexane | C173: 2-Methylhexaan | D173: 2-Metyloheksan | E173: 2-Metylhexan | F173: 2-метилхексан | G173: 2-metilheksan
A174: =IF(INDEX(B174:J174,Data!$K$4)="","",INDEX(B174:J174,Data!$K$4)) -> 3-Methylhexaan | B174: 3-Methylhexane | C174: 3-Methylhexaan | D174: 3-Metyloheksan | E174: 3-Metylhexan | F174: 3-Метилпентан | G174: 3-metilheksan
A175: =IF(INDEX(B175:J175,Data!$K$4)="","",INDEX(B175:J175,Data!$K$4)) -> n-Heptaan | B175: n-Heptane | C175: n-Heptaan | D175: n-Heptan | E175: n-Heptan | F175: n-хептан | G175: n-heptan
A176: =IF(INDEX(B176:J176,Data!$K$4)="","",INDEX(B176:J176,Data!$K$4)) -> Methylcyclohexaan | B176: Methylcyclohexane | C176: Methylcyclohexaan | D176: Metylocykloheksan | E176: Metylcyklohexan | F176: Метилциклохексан | G176: Metilcikloheksan
A177: =IF(INDEX(B177:J177,Data!$K$4)="","",INDEX(B177:J177,Data!$K$4)) -> Tolueen | B177: Toluene | C177: Tolueen | D177: Toluen | E177: Toluen | F177: Толуол | G177: Toluen
A178: =IF(INDEX(B178:J178,Data!$K$4)="","",INDEX(B178:J178,Data!$K$4)) -> 2-Methylheptaan * | B178: 2-Methylheptane * | C178: 2-Methylheptaan * | D178: 2-Metyloheptan * | E178: 2-Metylheptan * | F178: 2-Метилхептан * | G178: 2-metilheptan *
A179: =IF(INDEX(B179:J179,Data!$K$4)="","",INDEX(B179:J179,Data!$K$4)) -> 2,2,4-Trimethylpentaan | B179: 2,2,4-Trimethylpentane | C179: 2,2,4-Trimethylpentaan | D179: 2,2,4-Trimetylopentan | E179: 2,2,4-Trimetylpentan | F179: 2,2,4-Триметилпентан | G179: 2,2,4-trimetilpentan
A180: =IF(INDEX(B180:J180,Data!$K$4)="","",INDEX(B180:J180,Data!$K$4)) -> n-Octaan | B180: n-Octane | C180: n-Octaan | D180: n-Oktan | E180: n-Oktan | F180: n-Октан | G180: n-oktan
A181: =IF(INDEX(B181:J181,Data!$K$4)="","",INDEX(B181:J181,Data!$K$4)) -> Totaal | B181: Total | C181: Totaal | D181: Razem | E181: Celkem | F181: Общо | G181: Ukupno
A182: =IF(INDEX(B182:J182,Data!$K$4)="","",INDEX(B182:J182,Data!$K$4)) -> (*: verbinding niet genoemd in ISO 6976) | B182: (*: compound not mentioned in ISO 6976) | C182: (*: verbinding niet genoemd in ISO 6976) | D182: (*: związek nie wymieniony w ISO 6976) | E182: (*: sloučenina, která není uvedena v normě ISO 6976) | F182: *: съединение, което не е отбелязано в ISO 6976 | G182: (*: tvar nije spomenuta u ISO 6976)
A183: =IF(INDEX(B183:J183,Data!$K$4)="","",INDEX(B183:J183,Data!$K$4)) -> Zwaveldioxide | B183: Sulphurdioxide | C183: Zwaveldioxide | D183: Dwutlenek siarki | E183: Oxid siřičitý | F183: Серен диоксид | G183: Sumporni dioksid
A184: =IF(INDEX(B184:J184,Data!$K$4)="","",INDEX(B184:J184,Data!$K$4)) -> mol C/mol | B184: mol C/mol | C184: mol C/mol | D184: mol C/mol | E184: mol C/mol | F184: mol C/mol | G184: mol C/mol goriva
A185: =IF(INDEX(B185:J185,Data!$K$4)="","",INDEX(B185:J185,Data!$K$4)) -> mol H/mol | B185: mol H/mol | C185: mol H/mol | D185: mol H/mol | E185: mol H/mol | F185: mol H/mol | G185: mol H/mol goriva
A186: =IF(INDEX(B186:J186,Data!$K$4)="","",INDEX(B186:J186,Data!$K$4)) -> mol O/mol | B186: mol O/mol | C186: mol O/mol | D186: mol O/mol | E186: mol O/mol | F186: mol O/mol | G186: mol O/mol goriva
A187: =IF(INDEX(B187:J187,Data!$K$4)="","",INDEX(B187:J187,Data!$K$4)) -> mol N/mol | B187: mol N/mol | C187: mol N/mol | D187: mol N/mol | E187: mol N/mol | F187: mol N/mol | G187: mol N/mol goriva
A188: =IF(INDEX(B188:J188,Data!$K$4)="","",INDEX(B188:J188,Data!$K$4)) -> mol S/mol | B188: mol S/mol | C188: mol S/mol | D188: mol S/mol | E188: mol S/mol | F188: mol S/mol | G188: mol S/mol goriva
A189: =IF(INDEX(B189:J189,Data!$K$4)="","",INDEX(B189:J189,Data!$K$4)) -> Molgewicht | B189: Molecular weight | C189: Molgewicht | D189: Masa molekularna | E189: Molekulární váha | F189: Молекулно тегло | G189: Molarna masa
A190: =IF(INDEX(B190:J190,Data!$K$4)="","",INDEX(B190:J190,Data!$K$4)) -> Compressibiliteit | B190: Compressibility | C190: Compressibiliteit | D190: Ściśliwość | E190: Stlačitelnost | F190: Компресируемост | G190: Stlačivost
A191: =IF(INDEX(B191:J191,Data!$K$4)="","",INDEX(B191:J191,Data!$K$4)) -> Molair volume op basis van compressibiliteit | B191: Molar volume based on compressibility | C191: Molair volume op basis van compressibiliteit | D191: Objętość molowa oparta na ściśliwości | E191: Molární množství založené na stlačitelnosti | F191: Молекулен обем на база на компресируемост | G191: Molarni volumen temeljen na stlačivosti
A192: =IF(INDEX(B192:J192,Data!$K$4)="","",INDEX(B192:J192,Data!$K$4)) -> ,, ,, op individuele molaire volumes | B192: ,, ,, on individual molar volumes | C192: ,, ,, op individuele molaire volumes | D192: - " oparta na indywidualnej objętości molowej | E192: " " na jednotlivá molární množství | F192: " " при индивидуални молекулни обеми | G192: „ „ po pojedinačnom molarnom volumenu
A193: =IF(INDEX(B193:J193,Data!$K$4)="","",INDEX(B193:J193,Data!$K$4)) -> Dichtheid | B193: Density | C193: Dichtheid | D193: Gęstość | E193: Hustota | F193: Вискозитет | G193: Gustoća
A194: =IF(INDEX(B194:J194,Data!$K$4)="","",INDEX(B194:J194,Data!$K$4)) -> Relatieve dichtheid | B194: Relative density | C194: Relatieve dichtheid | D194: Gęstość względna | E194: Relativní hustota | F194: Относителен вискозитет | G194: Relativna gustoća
A195: =IF(INDEX(B195:J195,Data!$K$4)="","",INDEX(B195:J195,Data!$K$4)) -> Stoichiometrisch verbranding | B195: Stoichiometric combustion | C195: Stoichiometrisch verbranding | D195: Spalanie stechiometryczne | E195: Stechiometrické spalování | F195: Стохиометрично изгаряне | G195: Stehiometrijsko izgaranje
A196: =IF(INDEX(B196:J196,Data!$K$4)="","",INDEX(B196:J196,Data!$K$4)) -> Zuurstofverbruik (mol/mol) | B196: Oxygen demand (mol/mol) | C196: Zuurstofverbruik (mol/mol) | D196: Zapotrzebowanie na tlen (mol/mol) | E196: Spotřeba kyslíku (mol/mol) | F196: Нужда от кислород (mol/mol) | G196: Potrebno kisika (mol/mol)
A197: =IF(INDEX(B197:J197,Data!$K$4)="","",INDEX(B197:J197,Data!$K$4)) -> Zuurstofverbruik | B197: Oxygen demand | C197: Zuurstofverbruik | D197: Zapotrzebowanie na tlen | E197: Spotřeba kyslíku | F197: Нужда от кислород | G197: Potrebno kisika
A198: =IF(INDEX(B198:J198,Data!$K$4)="","",INDEX(B198:J198,Data!$K$4)) -> DIN1942 | B198: DIN1942 | C198: DIN1942 | D198: DIN1942 | E198: norma DIN1942 | F198: DIN1942 | G198: DIN1942
A199: =IF(INDEX(B199:J199,Data!$K$4)="","",INDEX(B199:J199,Data!$K$4)) -> samenstelling | B199: composition | C199: samenstelling | D199: skład | E199: složení | F199: състав | G199: struktura
A200: =IF(INDEX(B200:J200,Data!$K$4)="","",INDEX(B200:J200,Data!$K$4)) -> mol C/kg | B200: mol C/kg | C200: mol C/kg | D200: mol C/kg | E200: mol C/kg | F200: mol C/kg | G200: mol C/kg
... 52 more rows

Sheet Handleiding validatie (hidden)

Sheet Emission data
A1: =IF(OR(NOW()>Data!B2,I2=""),0,1) -> 1
B2: =language!A20 -> Installatie/eenheid | I2: =language!A2 -> Validatietest voor emissies naar lucht
B3: =language!A21 -> Type | E3: 1 | I3: =language!A10 -> Taal | M3: =IF(NOW()<=Data!B2,CONCATENATE(language!A4," ",Data!B1," : ",IF(language!A5="","",CONCATENATE(language!A5," ",DAY(Data!B2),"-",MONTH(Data!B2),"-",YEAR(Data!B2),".",CHAR(10))),language!A3),IF(language!A6="","",language!A6)) -> Versie 2024 : Deze versie is te gebruiken tot 1-4-2026. Ondanks de zorgvuldigheid waarmee dit werkblad is opgesteld, zijn fouten niet uit te sluiten.
B4: =language!A26 -> Bedrijfsvoering | E4: 1 | F4: =IF(A1=1,IF(ISNUMBER(H4),H4,INDEX(Data!C5:C9,'Emission data'!E4)),"") -> 8760 | I4: =language!A98 -> Menu | J4: =language!A61 -> Validatietest
B5: =language!A22 -> Thermisch vermogen | E5: =IF(A1=1,IF(H5<>"",H5,IF(G5=899,0,(1+(G5-TRUNC(G5/900)*900)/100)*10^(TRUNC(G5/900)-2))),"") -> 50 | F5: =language!A65 -> MW | G5: 3100 | J5: =language!A62 -> Wijzig gegevens gasvormige brandstoffen
B6: =language!A23 -> Elektrisch rendement | E6: =IF(A1=1,IF(H6<>"",H6,IF(OR(E3=1,E3=3,E3=8),0,G6)),"") -> 0 | F6: =IF(A1=0,"","%") -> % | G6: 40 | J6: =language!A63 -> Wijzig gegevens vloeibare brandstoffen
B7: =language!A24 -> Elektrische belasting | E7: =IF(A1=1,E6/100*E5,"") -> 0 | F7: =language!A65 -> MW | J7: =language!A64 -> Wijzig gegevens vaste brandstoffen
B8: =IF(E8="","",language!A25) -> Max. stoomproductie | E8: =IF(A1=1,IF(OR(E3=2,E3=4,E3=6),"",(E5-E7)*3600/2.3/1000),"") -> 78.26086957 | F8: =IF(E8="","",language!A66) -> ton/uur | J8: =language!A226 -> Wis invoer
B9: =language!A27 -> Brandstof | E9: 1 | G9: =IF(E9="","",IF(G10=1,"",E9+1)) ->  | I9: =IF(G9="","",IF(I10=1,"",G9+1)) ->  | K9: =IF(I9="","",IF(K10=1,"",I9+1)) ->  | M9: =language!A68 -> Totaal
B10: =B3 -> Type | E10: =IF(A1=1,F10,1) -> 1 | F10: 1 | G10: =IF(A1=1,H10,1) -> 1 | H10: 1 | I10: =IF(A1=1,J10,1) -> 1 | J10: 1 | K10: =IF(A1=1,L10,1) -> 1 | L10: 1
B11: =language!A33 -> Berekeningsmethode | E11: =IF(E10=1,"",INDEX(Data!$E$16:$E$31,'Emission data'!E10)) ->  | G11: =IF(G10=1,"",INDEX(Data!$E$16:$E$31,'Emission data'!G10)) ->  | I11: =IF(I10=1,"",INDEX(Data!$E$16:$E$31,'Emission data'!I10)) ->  | K11: =IF(K10=1,"",INDEX(Data!$E$16:$E$31,'Emission data'!K10)) -> 
B12: =language!A34 -> Onderste verbrandingswaarde | E12: =IF(E$10=1,"",INDEX(Data!$D$16:$D$31,'Emission data'!E$10)) ->  | F12: =IF(E$10=1,"",IF(E$10<7,language!$A$70,language!$A$72)) ->  | G12: =IF(G$10=1,"",INDEX(Data!$D$16:$D$31,'Emission data'!G$10)) ->  | H12: =IF(G$10=1,"",IF(G$10<7,language!$A$70,language!$A$72)) ->  | I12: =IF(I$10=1,"",INDEX(Data!$D$16:$D$31,'Emission data'!I$10)) ->  | J12: =IF(I$10=1,"",IF(I$10<7,language!$A$70,language!$A$72)) ->  | K12: =IF(K$10=1,"",INDEX(Data!$D$16:$D$31,'Emission data'!K$10)) ->  | L12: =IF(K$10=1,"",IF(K$10<7,language!$A$70,language!$A$72)) -> 
B13: =CONCATENATE(language!A38,"-",LOWER(language!A56)) -> SO2-emissie | E13: =IF(E$10=1,"",INDEX(Data!$L$16:$L$31,'Emission data'!E$10)) ->  | F13: =IF(E$10=1,"",language!$A$76) ->  | G13: =IF(G$10=1,"",INDEX(Data!$L$16:$L$31,'Emission data'!G$10)) ->  | H13: =IF(G$10=1,"",language!$A$76) ->  | I13: =IF(I$10=1,"",INDEX(Data!$L$16:$L$31,'Emission data'!I$10)) ->  | J13: =IF(I$10=1,"",language!$A$76) ->  | K13: =IF(K$10=1,"",INDEX(Data!$L$16:$L$31,'Emission data'!K$10)) ->  | L13: =IF(K$10=1,"",language!$A$76) -> 
B14: =CONCATENATE(language!A39,"-",LOWER(language!A56)) -> CO2-emissie | E14: =IF(E$10=1,"",INDEX(Data!$F$16:$F$31,'Emission data'!E$10)) ->  | F14: =IF(E$10=1,"",language!$A$76) ->  | G14: =IF(G$10=1,"",INDEX(Data!$F$16:$F$31,'Emission data'!G$10)) ->  | H14: =IF(G$10=1,"",language!$A$76) ->  | I14: =IF(I$10=1,"",INDEX(Data!$F$16:$F$31,'Emission data'!I$10)) ->  | J14: =IF(I$10=1,"",language!$A$76) ->  | K14: =IF(K$10=1,"",INDEX(Data!$F$16:$F$31,'Emission data'!K$10)) ->  | L14: =IF(K$10=1,"",language!$A$76) -> 
B15: =language!A44 -> Stoichiometrisch rookgasvolume (droog) | E15: =IF(E$10=1,"",INDEX(Data!$G$16:$G$31,'Emission data'!E$10)) ->  | F15: =IF(E$10=1,"",IF(E$10<7,language!$A$80,language!$A$81)) ->  | G15: =IF(G$10=1,"",INDEX(Data!$G$16:$G$31,'Emission data'!G$10)) ->  | H15: =IF(G$10=1,"",IF(G$10<7,language!$A$80,language!$A$81)) ->  | I15: =IF(I$10=1,"",INDEX(Data!$G$16:$G$31,'Emission data'!I$10)) ->  | J15: =IF(I$10=1,"",IF(I$10<7,language!$A$80,language!$A$81)) ->  | K15: =IF(K$10=1,"",INDEX(Data!$G$16:$G$31,'Emission data'!K$10)) ->  | L15: =IF(K$10=1,"",IF(K$10<7,language!$A$80,language!$A$81)) ->  | M15: =IF(OR($A$1=0,$G$29=""),"",(IF(E$22="",0,E$19*E15)+IF(G20="",0,G$19*G15)+IF(I20="",0,I$19*I15)+IF(K20="",0,K$19*K15))) -> 0 | N15: =IF(G29="","",language!A82) -> Nm3/jaar
B16: =CONCATENATE(language!A45," (",language!A47,")") -> Stoichiometrisch rookgasvolume (nat) | E16: =IF(E$10=1,"",INDEX(Data!$M$16:$M$31,'Emission data'!E$10)) ->  | F16: =IF(E$10=1,"",IF(E$10<7,language!$A$80,language!$A$81)) ->  | G16: =IF(G$10=1,"",INDEX(Data!$M$16:$M$31,'Emission data'!G$10)) ->  | H16: =IF(G$10=1,"",IF(G$10<7,language!$A$80,language!$A$81)) ->  | I16: =IF(I$10=1,"",INDEX(Data!$M$16:$M$31,'Emission data'!I$10)) ->  | J16: =IF(I$10=1,"",IF(I$10<7,language!$A$80,language!$A$81)) ->  | K16: =IF(K$10=1,"",INDEX(Data!$M$16:$M$31,'Emission data'!K$10)) ->  | L16: =IF(K$10=1,"",IF(K$10<7,language!$A$80,language!$A$81)) ->  | M16: =IF(OR($A$1=0,$G$29=""),"",(IF(E$22="",0,E$19*E16)+IF(G22="",0,G$19*G16)+IF(I22="",0,I$19*I16)+IF(K22="",0,K$19*K16))) -> 0 | N16: =IF(G29="","",language!A82) -> Nm3/jaar
B17: =language!A48 -> Toepassing | E17: 1 | G17: 1 | I17: 1 | K17: 1
B18: =language!A49 -> Verbruik | E18: 999 | G18: 900 | I18: 900 | K18: 900
E19: =IF(E10=1,"",IF(F18="",E18/1000*E5/E12*3600*IF(ISNUMBER(H4),H4,IF(E4=5,500,INDEX(Data!C5:C9,'Emission data'!E4))),F18)*IF(E17=2,-1,1)) ->  | F19: =IF(E$10=1,"",IF(E$10<7,language!$A$82,language!$A$83)) ->  | G19: =IF(G10=1,"",IF(H18="",(1+(G18-TRUNC(G18/900)*900)/100)*10^(TRUNC(G18/900)+1),H18)*IF(G17=2,-1,1)) ->  | H19: =IF(G$10=1,"",IF(G$10<7,language!$A$82,language!$A$83)) ->  | I19: =IF(I10=1,"",IF(J18="",(1+(I18-TRUNC(I18/900)*900)/100)*10^(TRUNC(I18/900)+1),J18)*IF(I17=2,-1,1)) ->  | J19: =IF(I$10=1,"",IF(I$10<7,language!$A$82,language!$A$83)) ->  | K19: =IF(K10=1,"",IF(L18="",(1+(K18-TRUNC(K18/900)*900)/100)*10^(TRUNC(K18/900)+1),L18)*IF(K17=2,-1,1)) ->  | L19: =IF(K$10=1,"",IF(K$10<7,language!$A$82,language!$A$83)) -> 
E20: =IF(OR(E10=1,$F$4=0,$F$4=""),"",IF(F18<>"",F18/$F$4,E19/$F$4)) ->  | F20: =IF(OR(E$10=1,E20=""),"",IF(E$10<7,language!$A$84,language!$A$85)) ->  | G20: =IF(OR(G10=1,$F$4=0,$F$4=""),"",IF(H18<>"",H18/$F$4,G19/$F$4)) ->  | H20: =IF(OR(G$10=1,G20=""),"",IF(G$10<7,language!$A$84,language!$A$85)) ->  | I20: =IF(OR(I10=1,$F$4=0,$F$4=""),"",IF(J18<>"",J18/$F$4,I19/$F$4)) ->  | J20: =IF(OR(I$10=1,I20=""),"",IF(I$10<7,language!$A$84,language!$A$85)) ->  | K20: =IF(OR(K10=1,$F$4=0,$F$4=""),"",IF(L18<>"",L18/$F$4,K19/$F$4)) ->  | L20: =IF(OR(K$10=1,K20=""),"",IF(K$10<7,language!$A$84,language!$A$85)) -> 
B21: =IF(Data!N4=TRUE(),B28,B26) -> CO2-emissie | E21: =IF(Data!Q4=TRUE(),E28,E26) ->  | F21: =IF(Data!R4=TRUE(),F28,F26) ->  | G21: =IF(Data!S4=TRUE(),G28,G26) ->  | H21: =IF(Data!T4=TRUE(),H28,H26) ->  | I21: =IF(Data!U4=TRUE(),I28,I26) ->  | J21: =IF(Data!V4=TRUE(),J28,J26) ->  | K21: =IF(Data!W4=TRUE(),K28,K26) ->  | L21: =IF(Data!X4=TRUE(),L28,L26) ->  | M21: =IF(Data!Y4=TRUE(),M28,M26) -> 0 | N21: =IF(Data!Z4=TRUE(),N28,N26) -> kton/jaar
B22: =language!A50 -> Energieverbruik | E22: =IF(E19="","",E19*E12/1000000) ->  | F22: =IF(E19="","",language!$A$87) ->  | G22: =IF(G19="","",G19*G12/1000000) ->  | H22: =IF(G19="","",language!$A$87) ->  | I22: =IF(I19="","",I19*I12/1000000) ->  | J22: =IF(I19="","",language!$A$87) ->  | K22: =IF(K19="","",K19*K12/1000000) ->  | L22: =IF(K19="","",language!$A$87) ->  | M22: =IF(A1=1,(IF('Emission data'!E22="",0,'Emission data'!E22)+IF('Emission data'!G22="",0,'Emission data'!G22)+IF('Emission data'!I22="",0,'Emission data'!I22)+IF('Emission data'!K22="",0,'Emission data'!K22)),"") -> 0 | N22: =language!A87 -> TJ/jaar
B23: =language!A51 -> Gemiddelde belasting | M23: =IF(OR(A1=0,E5=0,F4=0,F4=""),"",ROUND((M22*1000000/3600/F4/E5*100),0)) -> 0 | N23: =IF(M23="","","%") -> %
B24: =B13 -> SO2-emissie | E24: =IF(E19="","",E22*E13) ->  | F24: =IF(E19="","",language!$A$89) ->  | G24: =IF(G19="","",G22*G13) ->  | H24: =IF(G19="","",language!$A$89) ->  | I24: =IF(I19="","",I22*I13) ->  | J24: =IF(I19="","",language!$A$89) ->  | K24: =IF(K19="","",K22*K13) ->  | L24: =IF(K19="","",language!$A$89) ->  | M24: =IF(A1=1,(IF(E24="",0,E24)+IF(G24="",0,G24)+IF(I24="",0,I24)+IF(K24="",0,K24)),"") -> 0 | N24: =IF(M24="","",language!A89) -> ton/jaar
E25: =IF(E20="","",E20*E12*E13/1000) ->  | F25: =IF(E25="","",language!$A$85) ->  | G25: =IF(G20="","",G20*G12*G13/1000) ->  | H25: =IF(G25="","",language!$A$85) ->  | I25: =IF(I20="","",I20*I12*I13/1000) ->  | J25: =IF(I25="","",language!$A$85) ->  | K25: =IF(K20="","",K20*K12*K13/1000) ->  | L25: =IF(K25="","",language!$A$85) ->  | M25: =IF(OR(A1=0,$F$4=0,$F$4=""),"",(IF(E25="",0,E25)+IF(G25="",0,G25)+IF(I25="",0,I25)+IF(K25="",0,K25))) -> 0 | N25: =IF(M25="","",language!A85) -> kg/uur
B26: =B14 -> CO2-emissie | E26: =IF(E19="","",E19*E12*E14/1000/1000) ->  | F26: =IF(E19="","",language!$A$89) ->  | G26: =IF(G19="","",G19*G12*G14/1000/1000) ->  | H26: =IF(G19="","",language!$A$89) ->  | I26: =IF(I19="","",I19*I12*I14/1000/1000) ->  | J26: =IF(I19="","",language!$A$89) ->  | K26: =IF(K19="","",K19*K12*K14/1000/1000) ->  | L26: =IF(K19="","",language!$A$89) ->  | M26: =IF(A1=1,(IF(E26="",0,E26)+IF(G26="",0,G26)+IF(I26="",0,I26)+IF(K26="",0,K26))/1000,"") -> 0 | N26: =language!A90 -> kton/jaar
B27: =language!A52 -> Gehalte fossiele brandstof | E27: =IF(E$10=1,"",INDEX(Data!$C$16:$C$31,'Emission data'!E$10)) ->  | F27: =IF(E19="","","%") ->  | G27: =IF(G$10=1,"",INDEX(Data!$C$16:$C$31,'Emission data'!G$10)) ->  | H27: =IF(G19="","","%") ->  | I27: =IF(I$10=1,"",INDEX(Data!$C$16:$C$31,'Emission data'!I$10)) ->  | J27: =IF(I19="","","%") ->  | K27: =IF(K$10=1,"",INDEX(Data!$C$16:$C$31,'Emission data'!K$10)) ->  | L27: =IF(K19="","","%") -> 
B28: =CONCATENATE(B14," ",language!A53) -> CO2-emissie voor handel | E28: =IF(E19="","",E26*E27/100) ->  | F28: =IF(E19="","",language!$A$89) ->  | G28: =IF(G19="","",G26*G27/100) ->  | H28: =IF(G19="","",language!$A$89) ->  | I28: =IF(I19="","",I26*I27/100) ->  | J28: =IF(I19="","",language!$A$89) ->  | K28: =IF(K19="","",K26*K27/100) ->  | L28: =IF(K19="","",language!$A$89) ->  | M28: =IF(A1=1,(IF(E28="",0,E28)+IF(G28="",0,G28)+IF(I28="",0,I28)+IF(K28="",0,K28))/1000,"") -> 0 | N28: =N26 -> kton/jaar
B29: =language!A54 -> Rookgas | E29: =IF(A1=0,"",language!$A$60) -> Invoer emissiegegevens | G29: =language!A55 -> Concentratie in droog rookgas | J29: =language!A56 -> Emissie | M29: =language!A217 -> Rookgasdebiet
G30: =IF(language!A9="","",CONCATENATE("(",language!A9,")")) -> (Nm3: m3 onder standaard condities) | J30: =IF($A$1=0,"",language!$A$83) -> kg/jaar | K30: =IF($A$1=0,"",language!$A$85) -> kg/uur | L30: =IF($A$1=0,"",language!$A$96) -> g/GJ
B31: =language!A40 -> NOx | D31: 899 | F31: =IF($A$1=0,"",language!$A$83) -> kg/jaar | G31: =IF($A$1=0,"",IF($M$32="","",IF(E31<>"",E31/$M$32*1000000,IF(D31=899,0,(1+(D31-TRUNC(D31/900)*900)/100)*10^(TRUNC(D31/900)-1))))) -> 0 | H31: =IF(G31="","",language!$A$93) -> mg/Nm3 | J31: =IF(OR(A1<>1,M32=""),"",G31*M32/1000000) -> 0 | K31: =IF(AND(A1=1,F4<>0,F4<>""),G31*M33/1000000,"") -> 0 | L31: =IF(OR(A1=0,M22=0),"",J31/M22) ->  | M31: =IF(M33="","",language!A46) -> droog
B32: =language!A38 -> SO2 | D32: 899 | F32: =IF($A$1=0,"",language!$A$83) -> kg/jaar | G32: =IF($A$1=0,"",IF($M$32="","",IF(E32<>"",E32/$M$32*1000000,IF(D32=899,0,(1+(D32-TRUNC(D32/900)*900)/100)*10^(TRUNC(D32/900)-1))))) -> 0 | H32: =IF(G32="","",language!$A$93) -> mg/Nm3 | J32: =IF(OR(A1<>1,M32="",G32=""),"",G32*M32/1000000) -> 0 | K32: =IF(AND(A1=1,F4<>0,F4<>""),G32*M33/1000000,"") -> 0 | L32: =IF(OR($M$22=0,$A$1=0),"",J32/$M$22) ->  | M32: =IF(A1=0,"",IF(M15<>0,M15*21/(21-G34),G34*G35*3600*F4*(100-G36)/100*273/(273+G37))) -> 315360 | N32: =language!A92 -> Nm3/jaar
B33: 5 | D33: 899 | F33: =IF($A$1=0,"",language!$A$83) -> kg/jaar | G33: =IF($A$1=0,"",IF($M$32="","",IF(E33<>"",E33/$M$32*1000000,IF(D33=899,0,(1+(D33-TRUNC(D33/900)*900)/100)*10^(TRUNC(D33/900)-4))))) -> 0 | H33: =IF(G33="","",language!$A$93) -> mg/Nm3 | J33: =IF(OR(A1<>1,M32="",G33=""),"",G33*M32/1000000) -> 0 | K33: =IF(AND(A1=1,F4<>0,F4<>""),G33*M33/1000000,"") -> 0 | L33: =IF(OR(A1=0,M22=0),"",J33/M22) ->  | M33: =IF(AND(A1=1,F4<>"",F4<>0),M32/F4,"") -> 36 | N33: =IF(M33="","",language!A84) -> Nm3/uur
B34: =IF(M22=0,language!A221,language!$A$37) -> Dwarsdoorsnede afgaskanaal | D34: 900 | F34: =IF(M22=0,language!A222,language!A91) -> m2 | G34: =IF(A1<>1,"",IF(M22<>0,IF(OR(E34<0,E34>=21,E34=""),IF(D34>900,(D34-900)/430,IF(AND(E3>=4,E3<=7),15,IF(AND(F10<12,H10<12,J10<12,L10<12),3,6))),E34),IF(E34<>"",E34,(D34-890)/100))) -> 0.1 | H34: =IF(M22=0,language!A222,language!A91) -> m2 | J34: =IF(J35="","",F35) ->  | K34: =IF(K35="","",language!A88) ->  | L34: =IF(L35="","",language!$A$95) ->  | M34: =IF(M36="","",language!A47) -> nat
B35: =IF(M22=0,language!$A$227,language!A39) -> Afgassnelheid | D35: 899 | F35: =IF(M22=0,language!A228,language!A90) -> m/s | G35: =IF($A$1=0,"",IF(J35="",IF(E35<>"",E35,(D35-889)/100),K35*1000/44*22.4/M33*100)) -> 0.1 | H35: =IF(J35="",language!A228,CONCATENATE(language!A91,IF(AND(D35=899,E35=""),CONCATENATE(" (",language!A223,")"),""))) -> m/s | J35: =IF(OR($A$1=0,M22=0),"",IF(E35<>"",E35,IF(D35=899,M21,(D35-900)/2000*M21))) ->  | K35: =IF(AND($A$1=1,M22>0,F4<>0,F4<>""),J35*1000/F4,"") ->  | L35: =IF(OR($M$22=0,$A$1=0),"",J35*1000/$M$22) ->  | M35: =IF(M32<>"",M32*100/(100-$G$36),"") -> 315360 | N35: =IF(M35="","",N32) -> Nm3/jaar
B36: =language!A149 -> Waterdamp | D36: 899 | F36: =language!A91 -> vol% | G36: =IF(A1<>1,"",IF(E36<>"",E36,IF(D36<>899,(D36-900)/100,IF(M22=0,0,100*(M16-M15)/(M32+M16-M15))))) -> 0 | H36: =IF(G36="","",CONCATENATE(language!A91,IF(AND(D36=899,E36="",M22<>0),CONCATENATE(" (",language!A223,")"),""))) -> vol% | J36: =IF(K36="","",language!A224) ->  | K36: =IF(G36=0,"",TRUNC((19513.7/(17.433-LN(1013*G36/100)))^(1/1.27095)-273)) ->  | L36: =IF(K36="","","°C") ->  | M36: =IF(M33<>"",M33*100/(100-$G$36),"") -> 36 | N36: =IF(M36="","",N33) -> Nm3/uur
B37: =language!A219 -> Temperatuur | D37: 0 | F37: °C | G37: =IF(A1=0,"",IF(E37<>"",E37,D37)) -> 0 | H37: =IF(G37<>"",F37,"") -> °C | M37: =IF(M36<>"",M36*((273+E37)/273)/3600,"") -> 0.01 | N37: =IF(M37="","",language!A220) -> m3/s

Sheet Gaseous fuels
A1: =IF(NOW()>Data!B2,0,1) -> 1
C2: =language!A142 -> Omschrijving | D2: =language!A28 -> AARDGAS | E2: HC Gas | F2: GF1 | G2: GF 2 | H2: GF 3
B3: =language!A34 -> Onderste verbrandingswaarde | C3: =language!A71 -> kJ/Nm3 | F3: 28000 | G3: 35000 | H3: 40000
B4: =language!A52 -> Gehalte fossiele brandstof | C4: % | D4: 100 | E4: 100 | F4: 100 | G4: 100 | H4: 100
B5: =B3 -> Onderste verbrandingswaarde | C5: =language!A70 -> MJ/Nm3 | D5: =IF($A1=1,IF(D67="",IF(D3="","",D3/1000),D67),"") -> 31.66854617 | E5: =IF($A1=1,IF(E67="",IF(E3="","",E3/1000),E67),"") -> 36.27167029 | F5: =IF($A1=1,IF(F67="",IF(F3="","",F3/1000),F67),"") -> 28 | G5: =IF($A1=1,IF(G67="",IF(G3="","",G3/1000),G67),"") -> 35 | H5: =IF($A1=1,IF(H67="",IF(H3="","",H3/1000),H67),"") -> 40
B6: =language!A35 -> Bovenste verbrandingswaarde | C6: =C5 -> MJ/Nm3 | D6: =IF(D64="",IF(D5="","",D5+(D18-D17)*44.0136/21.629),D64) -> 35.09435494 | E6: =IF(E64="",IF(E5="","",E5+(E18-E17)*44.0136/21.629),E64) -> 40.16541158 | F6: =IF(F64="",IF(F5="","",F5+(F18-F17)*44.0136/21.629),F64) -> 31.12342108 | G6: =IF(G64="",IF(G5="","",G5+(G18-G17)*44.0136/21.629),G64) -> 38.94390671 | H6: =IF(H64="",IF(H5="","",H5+(H18-H17)*44.0136/21.629),H64) -> 44.52996787
B7: =language!A36 -> Wobbe-index | C7: =C6 -> MJ/Nm3 | D7: =IF(D65="",IF(OR(D3="",$A1=0),"",D6/SQRT(0.82/1.293)),D65) -> 43.70619119 | E7: =IF(E65="",IF(OR(E3="",$A1=0),"",E6/SQRT(0.82/1.293)),E65) -> 50.93343046 | F7: =IF(F65="",IF(OR(F3="",$A1=0),"",F6/SQRT(0.82/1.293)),F65) -> 39.08225957 | G7: =IF(G65="",IF(OR(G3="",$A1=0),"",G6/SQRT(0.82/1.293)),G65) -> 48.90258903 | H7: =IF(H65="",IF(OR(H3="",$A1=0),"",H6/SQRT(0.82/1.293)),H65) -> 55.91711007
B8: =language!A33 -> Berekeningsmethode | D8: =IF(D66="",IF(D5="","",language!$A$198),language!$A$199) -> samenstelling | E8: =IF(E66="",IF(E5="","",language!$A$198),language!$A$199) -> samenstelling | F8: =IF(F66="",IF(F5="","",language!$A$198),language!$A$199) -> DIN1942 | G8: =IF(G66="",IF(G5="","",language!$A$198),language!$A$199) -> DIN1942 | H8: =IF(H66="",IF(H5="","",language!$A$198),language!$A$199) -> DIN1942
B9: =language!A154 -> Koolstofdioxide | C9: =language!A80 -> Nm3/Nm3 | D9: =IF(D8="","",IF(D8=language!$A$198,D84,D76)) -> 0.8969047091 | E9: =IF(E8="","",IF(E8=language!$A$198,E84,E76)) -> 1.040393437 | F9: =IF(F8="","",IF(F8=language!$A$198,F84,F76)) -> 0.86296 | G9: =IF(G8="","",IF(G8=language!$A$198,G84,G76)) -> 1.02095 | H9: =IF(H8="","",IF(H8=language!$A$198,H84,H76)) -> 1.1338
C10: =language!A76 -> kg/GJ | D10: =IF(D9="","",D9/'Gaseous fuels'!$L$29*'Gaseous fuels'!$K$29*1000/D5) -> 56.02910532 | E10: =IF(E9="","",E9/'Gaseous fuels'!$L$29*'Gaseous fuels'!$K$29*1000/E5) -> 56.74473321 | F10: =IF(F9="","",F9/'Gaseous fuels'!$L$29*'Gaseous fuels'!$K$29*1000/F5) -> 60.97167755 | G10: =IF(G9="","",G9/'Gaseous fuels'!$L$29*'Gaseous fuels'!$K$29*1000/G5) -> 57.70745731 | H10: =IF(H9="","",H9/'Gaseous fuels'!$L$29*'Gaseous fuels'!$K$29*1000/H5) -> 56.07534718
B11: =language!A149 -> Waterdamp | C11: =C9 -> Nm3/Nm3 | D11: =IF(D8="","",IF(D8=language!$A$198,D85,D77)) -> 1.68340644 | E11: =IF(E8="","",IF(E8=language!$A$198,E85,E77)) -> 1.913343565 | F11: =IF(F8="","",IF(F8=language!$A$198,F85,F77)) -> 1.624 | G11: =IF(G8="","",IF(G8=language!$A$198,G85,G77)) -> 2.0496 | H11: =IF(H8="","",IF(H8=language!$A$198,H85,H77)) -> 2.3536
B12: =language!A143 -> Brandstofstikstof | C12: =C11 -> Nm3/Nm3 | D12: =IF(D8="","",IF(D8=language!$A$198,D86,D78)) -> 0.143463454 | E12: =IF(E8="","",IF(E8=language!$A$198,E86,E78)) -> 0.03128237132 | F12: =IF(F8="","",IF(F8=language!$A$198,F86,F78)) -> 0 | G12: =IF(G8="","",IF(G8=language!$A$198,G86,G78)) -> 0 | H12: =IF(H8="","",IF(H8=language!$A$198,H86,H78)) -> 0
B13: =language!A183 -> Zwaveldioxide | C13: =C12 -> Nm3/Nm3 | D13: =IF(D8="","",IF(D8=language!$A$198,D87,D79)) -> 0 | E13: =IF(E8="","",IF(E8=language!$A$198,E87,E79)) -> 0 | F13: =IF(F8="","",IF(F8=language!$A$198,F87,F79)) -> 0 | G13: =IF(G8="","",IF(G8=language!$A$198,G87,G79)) -> 0 | H13: =IF(H8="","",IF(H8=language!$A$198,H87,H79)) -> 0
C14: =C10 -> kg/GJ | D14: =IF(D8="","",D13/22.4*64*1000/D5) -> 0 | E14: =IF(E8="","",E13/22.4*64*1000/E5) -> 0 | F14: =IF(F8="","",F13/22.4*64*1000/F5) -> 0 | G14: =IF(G8="","",G13/22.4*64*1000/G5) -> 0 | H14: =IF(H8="","",H13/22.4*64*1000/H5) -> 0
B15: =language!A42 -> Stoichiometrisch luchtverbruik | C15: =C13 -> Nm3/Nm3 | D15: =IF(D5="","",IF(D8=language!$A$198,D88,D80)) -> 8.428759914 | E15: =IF(E5="","",IF(E8=language!$A$198,E88,E80)) -> 9.647947682 | F15: =IF(F5="","",IF(F8=language!$A$198,F88,F80)) -> 7.4607 | G15: =IF(G5="","",IF(G8=language!$A$198,G88,G80)) -> 9.336 | H15: =IF(H5="","",IF(H8=language!$A$198,H88,H80)) -> 10.6755
B16: =language!A45 -> Stoichiometrisch rookgasvolume
B17: =CONCATENATE(" ",language!A46) -> droog | C17: =C15 -> Nm3/Nm3 | D17: =IF(D5="","",IF(D8=language!$A$198,D89,D81)) -> 7.703302875 | E17: =IF(E5="","",IF(E8=language!$A$198,E89,E81)) -> 8.698378451 | F17: =IF(F5="","",IF(F8=language!$A$198,F89,F81)) -> 6.7622 | G17: =IF(G5="","",IF(G8=language!$A$198,G89,G81)) -> 8.403 | H17: =IF(H5="","",IF(H8=language!$A$198,H89,H81)) -> 9.575
B18: =CONCATENATE(" ",language!A47) -> nat | C18: =C17 -> Nm3/Nm3 | D18: =IF(D5="","",IF(D8=language!$A$198,D90,D82)) -> 9.386709315 | E18: =IF(E5="","",IF(E8=language!$A$198,E90,E82)) -> 10.61172202 | F18: =IF(F5="","",IF(F8=language!$A$198,F90,F82)) -> 8.2971 | G18: =IF(G5="","",IF(G8=language!$A$198,G90,G82)) -> 10.3411 | H18: =IF(H5="","",IF(H8=language!$A$198,H90,H82)) -> 11.8011 | I18: cal. bovenwaarde | J18: stookwaarde | K18: molgewicht | L18: mol.volume | M18: comp.fact.
B19: Substance | C19: =language!A142 -> Omschrijving | D19: =D2 -> AARDGAS | E19: =E2 -> HC Gas | F19: =F2 -> GF1 | G19: =G2 -> GF 2 | H19: =H2 -> GF 3 | I19: (MJ/kmol) | J19: (MJ/kmol) | L19: (m03) | N19: C | O19: H | P19: O | Q19: N | R19: S
B20: =language!A145 -> Helium | C20: mol% | E20: 0.065 | I20: =J20+O20*22.008 -> 0 | J20: 0 | K20: 4.0026 | L20: 22.4248 | M20: -0.016
B21: =language!A146 -> Argon | C21: mol% | I21: =J21+O21*22.008 -> 0 | J21: 0 | K21: 39.948 | L21: 22.3925 | M21: 0.0316
B22: =language!A147 -> Waterstofsulfide * | C22: mol% | I22: =J22+O22*22.008 -> 562.716 | J22: 518.7 | K22: 34.0758 | L22: 22.1881 | M22: 0.1 | O22: 2 | R22: 1
B23: =language!A148 -> Waterstof | C23: mol% | I23: =J23+O23*22.008 -> 285.843 | J23: 241.827 | K23: 2.0158 | L23: 22.4354 | M23: 0 | O23: 2
B24: =language!A149 -> Waterdamp | C24: mol% | I24: 0 | J24: 0 | K24: 18.0152 | L24: 21.629 | M24: 0.179 | O24: 2 | P24: 1
B25: =language!A150 -> Stikstof | C25: mol% | D25: 14.32 | E25: 3.121 | I25: =J25+O25*22.008 -> 0 | J25: 0 | K25: 28.0134 | L25: 22.4037 | M25: 0.0224 | Q25: 2
B26: =language!A151 -> Zuurstof | C26: mol% | D26: 0.01 | I26: 0 | J26: 0 | K26: 31.9988 | L26: 22.3919 | M26: 0.0316 | P26: 2
B27: =language!A152 -> Methaan | C27: mol% | D27: 81.29 | E27: 89.402 | I27: 890.352 | J27: 802.32 | K27: =12.011*N27+1.0079*O27+15.9994*P27+14.0067*Q27+32.06*R27 -> 16.0426 | L27: 22.36 | M27: 0.049 | N27: 1 | O27: 4
B28: =language!A153 -> Koolstofmonoxide | C28: mol% | I28: 282.989 | J28: 282.989 | K28: 28.0104 | L28: 22.3991 | M28: 0.0265 | N28: 1 | P28: 1
B29: =language!A154 -> Koolstofdioxide | C29: mol% | D29: 0.89 | E29: 1.711 | I29: 0 | J29: 0 | K29: 44.0098 | L29: 22.2461 | M29: 0.067 | N29: 1 | P29: 2
B30: =language!A155 -> Ethaan | C30: mol% | D30: 2.87 | E30: 4.438 | I30: 1559.878 | J30: 1427.83 | K30: 30.0694 | L30: 22.1874 | M30: 0.1015 | N30: 2 | O30: 6
B31: =language!A156 -> Etheen * | C31: mol% | I31: 1410.972 | J31: 1322.94 | K31: 28.0536 | L31: =1322.94/59.476 -> 22.24325778 | M31: 0.0872 | N31: 2 | O31: 4
B32: =language!A157 -> Ethyn * | C32: mol% | I32: 1308.276 | J32: 1264.26 | K32: 26.0378 | L32: 22.0425 | M32: 0.0713 | N32: 2 | O32: 2
B33: =language!A158 -> Propaan | C33: mol% | D33: 0.38 | E33: 0.797 | I33: 2220.074 | J33: 2044.01 | K33: 44.0962 | L33: 21.9297 | M33: 0.153 | N33: 3 | O33: 8
B34: =language!A159 -> Propeen * | C34: mol% | I34: 2058.488 | J34: 1926.44 | K34: 42.0804 | L34: =1926.44/87.607 -> 21.98956704 | M34: 0.1375 | N34: 3 | O34: 6
B35: =language!A160 -> 2-Methylpropaan | C35: mol% | E35: 0.144 | I35: 2868.76 | J35: 2648.68 | K35: 58.123 | L35: 21.6104 | M35: 0.2042 | N35: 4 | O35: 10
B36: =language!A161 -> n-Butaan | C36: mol% | D36: 0.15 | E36: 0.149 | I36: 2877.13 | J36: 2657.05 | K36: 58.123 | L36: 21.5205 | M36: 0.2112 | N36: 4 | O36: 10
B37: =language!A162 -> Butadieen * | C37: mol% | I37: 2593.788 | J37: 2461.74 | K37: 54.0914 | L37: =2461.74/114.175 -> 21.56111233 | M37: 0.203 | N37: 4 | O37: 6
B38: =language!A163 -> 2,2-Dimethylpropaan | C38: mol% | E38: 0.003 | I38: 3516.656 | J38: 3252.56 | K38: 72.1498 | L38: 21.2866 | M38: 0.2245 | N38: 5 | O38: 12
B39: =language!A164 -> 2-Methylbutaan | C39: mol% | E39: 0.037 | I39: 3528.156 | J39: 3264.06 | K39: 72.1498 | L39: 21.0838 | M39: 0.2462 | N39: 5 | O39: 12
B40: =language!A165 -> n-Pentaan | C40: mol% | D40: 0.04 | E40: 0.037 | I40: 3536.196 | J40: 3272.1 | K40: 72.1498 | L40: 20.8907 | M40: 0.261 | N40: 5 | O40: 12
B41: =language!A166 -> Cyclopentaan * | C41: mol% | E41: 0.002 | I41: 3294.24 | J41: 3074.16 | K41: 70.134 | L41: 20.5 | M41: 0.2922 | N41: 5 | O41: 10
B42: =language!A167 -> 2,2-Dimethylbutaan | C42: mol% | E42: 0.003 | I42: 4177.892 | J42: 3869.78 | K42: 86.1766 | L42: 20.5 | M42: 0.291 | N42: 6 | O42: 14
B43: =language!A168 -> 2,3-Dimethylbutaan | C43: mol% | E43: 0.017 | I43: 4185.972 | J43: 3877.86 | K43: 86.1766 | L43: 20.5 | M43: 0.3046 | N43: 6 | O43: 14
B44: =language!A169 -> 3-Methylpentaan | C44: mol% | E44: 0.013 | I44: 4189.822 | J44: 3881.71 | K44: 86.1766 | L44: 20.5 | M44: 0.3159 | N44: 6 | O44: 14
B45: =language!A170 -> Cyclohexaan | C45: mol% | I45: 3952.966 | J45: 3688.87 | K45: 84.1608 | L45: 20.5 | M45: 0.3198 | N45: 6 | O45: 12
B46: =language!A171 -> n-Hexaan | C46: mol% | D46: 0.05 | I46: 4194.922 | J46: 3886.81 | K46: 86.1766 | L46: 20.5 | M46: 0.3317 | N46: 6 | O46: 14
B47: =language!A172 -> Benzeen | C47: mol% | E47: 0.046 | I47: 3301.508 | J47: 3169.46 | K47: 78.1134 | L47: 20.5 | M47: 0.3017 | N47: 6 | O47: 6
B48: =language!A173 -> 2-Methylhexaan | C48: mol% | E48: 0.001 | I48: 4846.498 | J48: 4494.37 | K48: 100.2034 | L48: 20.5 | M48: 0.3926 | N48: 7 | O48: 16
B49: =language!A174 -> 3-Methylhexaan | C49: mol% | E49: 0.004 | I49: 4849.888 | J49: 4497.76 | K49: 100.2034 | L49: 20.5 | M49: 0.3928 | N49: 7 | O49: 16
B50: =language!A175 -> n-Heptaan | C50: mol% | E50: 0.004 | I50: 4853.568 | J50: 4501.44 | K50: 100.2034 | L50: 20.5 | M50: 0.4141 | N50: 7 | O50: 16
B51: =language!A176 -> Methylcyclohexaan | C51: mol% | E51: 0.004 | I51: 4600.682 | J51: 4292.57 | K51: 98.1876 | L51: 20.5 | M51: 0.3897 | N51: 7 | O51: 14
B52: =language!A177 -> Tolueen | C52: mol% | E52: 0.002 | I52: 3947.944 | J52: 3771.88 | K52: 92.1402 | L52: 20.5 | M52: 0.3901 | N52: 7 | O52: 8
B53: =language!A178 -> 2-Methylheptaan * | C53: mol% | I53: 5504.714 | J53: 5108.57 | K53: 114.2302 | L53: 20.5 | M53: 0.4955 | N53: 8 | O53: 18
B54: =language!A179 -> 2,2,4-Trimethylpentaan | C54: mol% | I54: 5496.524 | J54: 5100.38 | K54: 114.2302 | L54: 20.5 | M54: 0.4196 | N54: 8 | O54: 18
B55: =language!A180 -> n-Octaan | C55: mol% | E55: 0.001 | I55: 5511.714 | J55: 5115.57 | K55: 114.2302 | L55: 20.5 | M55: 0.5126 | N55: 8 | O55: 18
B56: =language!A181 -> Totaal | C56: mol% | D56: =SUM(D20:D55)/100 -> 1 | E56: =SUM(E20:E55)/100 -> 1.00001 | F56: =SUM(F20:F55)/100 -> 0 | G56: =SUM(G20:G55)/100 -> 0 | H56: =SUM(H20:H55)/100 -> 0
B57: =language!A182 -> (*: verbinding niet genoemd in ISO 6976) | N57: niet uit ISO 6976
B58: =language!A184 -> mol C/mol | D58: =IF($A1=1,IF(D63="","",SUMPRODUCT(D20:D55,$N$20:$N$55)/100),"") -> 0.9016 | E58: =IF($A1=1,IF(E63="","",SUMPRODUCT(E20:E55,$N$20:$N$55)/100),"") -> 1.04534 | F58: =IF($A1=1,IF(F63="","",SUMPRODUCT(F20:F55,$N$20:$N$55)/100),"") ->  | G58: =IF($A1=1,IF(G63="","",SUMPRODUCT(G20:G55,$N$20:$N$55)/100),"") ->  | H58: =IF($A1=1,IF(H63="","",SUMPRODUCT(H20:H55,$N$20:$N$55)/100),"") -> 
B59: =language!A185 -> mol H/mol | D59: =IF(D58="","",SUMPRODUCT(D20:D55,$O$20:$O$55)/100) -> 3.481 | E59: =IF(E58="","",SUMPRODUCT(E20:E55,$O$20:$O$55)/100) -> 3.95458 | F59: =IF(F58="","",SUMPRODUCT(F20:F55,$O$20:$O$55)/100) ->  | G59: =IF(G58="","",SUMPRODUCT(G20:G55,$O$20:$O$55)/100) ->  | H59: =IF(H58="","",SUMPRODUCT(H20:H55,$O$20:$O$55)/100) -> 
B60: =language!A186 -> mol O/mol | D60: =IF(D58="","",SUMPRODUCT(D20:D55,$P$20:$P$55)/100) -> 0.018 | E60: =IF(E58="","",SUMPRODUCT(E20:E55,$P$20:$P$55)/100) -> 0.03422 | F60: =IF(F58="","",SUMPRODUCT(F20:F55,$P$20:$P$55)/100) ->  | G60: =IF(G58="","",SUMPRODUCT(G20:G55,$P$20:$P$55)/100) ->  | H60: =IF(H58="","",SUMPRODUCT(H20:H55,$P$20:$P$55)/100) -> 
B61: =language!A187 -> mol N/mol | D61: =IF(D58="","",SUMPRODUCT(D20:D55,$Q$20:$Q$55)/100) -> 0.2864 | E61: =IF(E58="","",SUMPRODUCT(E20:E55,$Q$20:$Q$55)/100) -> 0.06242 | F61: =IF(F58="","",SUMPRODUCT(F20:F55,$Q$20:$Q$55)/100) ->  | G61: =IF(G58="","",SUMPRODUCT(G20:G55,$Q$20:$Q$55)/100) ->  | H61: =IF(H58="","",SUMPRODUCT(H20:H55,$Q$20:$Q$55)/100) -> 
B62: =language!A188 -> mol S/mol | D62: =IF(D58="","",SUMPRODUCT(D20:D55,$R$20:$R$55)/100) -> 0 | E62: =IF(E58="","",SUMPRODUCT(E20:E55,$R$20:$R$55)/100) -> 0 | F62: =IF(F58="","",SUMPRODUCT(F20:F55,$R$20:$R$55)/100) ->  | G62: =IF(G58="","",SUMPRODUCT(G20:G55,$R$20:$R$55)/100) ->  | H62: =IF(H58="","",SUMPRODUCT(H20:H55,$R$20:$R$55)/100) -> 
B63: =language!A35 -> Bovenste verbrandingswaarde | C63: =language!A74 -> MJ/kmol | D63: =IF($A1=1,IF(SUMPRODUCT(D20:D55,$I$20:$I$55)=0,"",SUMPRODUCT(D20:D55,$I$20:$I$55)/100),"") -> 784.799555 | E63: =IF($A1=1,IF(SUMPRODUCT(E20:E55,$I$20:$I$55)=0,"",SUMPRODUCT(E20:E55,$I$20:$I$55)/100),"") -> 897.7720323 | F63: =IF($A1=1,IF(SUMPRODUCT(F20:F55,$I$20:$I$55)=0,"",SUMPRODUCT(F20:F55,$I$20:$I$55)/100),"") ->  | G63: =IF($A1=1,IF(SUMPRODUCT(G20:G55,$I$20:$I$55)=0,"",SUMPRODUCT(G20:G55,$I$20:$I$55)/100),"") ->  | H63: =IF($A1=1,IF(SUMPRODUCT(H20:H55,$I$20:$I$55)=0,"",SUMPRODUCT(H20:H55,$I$20:$I$55)/100),"") -> 
C64: =C3 -> kJ/Nm3 | D64: =IF(D63="","",D63/D70) -> 35.09435494 | E64: =IF(E63="","",E63/E70) -> 40.16541158 | F64: =IF(F63="","",F63/F70) ->  | G64: =IF(G63="","",G63/G70) ->  | H64: =IF(H63="","",H63/H70) -> 
B65: =language!A36 -> Wobbe-index | C65: =C64 -> kJ/Nm3 | D65: =IF(D64="","",D64/SQRT(D73)) -> 43.70619119 | E65: =IF(E64="","",E64/SQRT(E73)) -> 50.93343046 | F65: =IF(F64="","",F64/SQRT(F73)) ->  | G65: =IF(G64="","",G64/SQRT(G73)) ->  | H65: =IF(H64="","",H64/SQRT(H73)) -> 
B66: =language!A34 -> Onderste verbrandingswaarde | C66: =C63 -> MJ/kmol | D66: =IF(D63="","",SUMPRODUCT(D20:D55,$J$20:$J$55)/100) -> 708.189707 | E66: =IF(E63="","",SUMPRODUCT(E20:E55,$J$20:$J$55)/100) -> 810.7396357 | F66: =IF(F63="","",SUMPRODUCT(F20:F55,$J$20:$J$55)/100) ->  | G66: =IF(G63="","",SUMPRODUCT(G20:G55,$J$20:$J$55)/100) ->  | H66: =IF(H63="","",SUMPRODUCT(H20:H55,$J$20:$J$55)/100) -> 
C67: =C65 -> kJ/Nm3 | D67: =IF(D66="","",D66/D70) -> 31.66854617 | E67: =IF(E66="","",E66/E70) -> 36.27167029 | F67: =IF(F66="","",F66/F70) ->  | G67: =IF(G66="","",G66/G70) ->  | H67: =IF(H66="","",H66/H70) -> 
B68: =language!A189 -> Molgewicht | D68: =IF(D63="","",SUMPRODUCT(D20:D55,$K$20:$K$55)/100) -> 18.63712558 | E68: =IF(E63="","",SUMPRODUCT(E20:E55,$K$20:$K$55)/100) -> 17.96579929 | F68: =IF(F63="","",SUMPRODUCT(F20:F55,$K$20:$K$55)/100) ->  | G68: =IF(G63="","",SUMPRODUCT(G20:G55,$K$20:$K$55)/100) ->  | H68: =IF(H63="","",SUMPRODUCT(H20:H55,$K$20:$K$55)/100) -> 
B69: =language!A190 -> Compressibiliteit | D69: =IF(D63="","",1-(SUMPRODUCT(D20:D55,$M$20:$M$55)/100)^2+0.0005*(0.02*D23-D23*D23/10000)) -> 0.997722731 | E69: =IF(E63="","",1-(SUMPRODUCT(E20:E55,$M$20:$M$55)/100)^2+0.0005*(0.02*E23-E23*E23/10000)) -> 0.9972458399 | F69: =IF(F63="","",1-(SUMPRODUCT(F20:F55,$M$20:$M$55)/100)^2+0.0005*(0.02*F23-F23*F23/10000)) ->  | G69: =IF(G63="","",1-(SUMPRODUCT(G20:G55,$M$20:$M$55)/100)^2+0.0005*(0.02*G23-G23*G23/10000)) ->  | H69: =IF(H63="","",1-(SUMPRODUCT(H20:H55,$M$20:$M$55)/100)^2+0.0005*(0.02*H23-H23*H23/10000)) -> 
B70: =language!A191 -> Molair volume op basis van compressibiliteit | D70: =IF(D69="","",D69*22.4136) -> 22.3625582 | E70: =IF(E69="","",E69*22.4136) -> 22.35186936 | F70: =IF(F69="","",F69*22.4136) ->  | G70: =IF(G69="","",G69*22.4136) ->  | H70: =IF(H69="","",H69*22.4136) -> 
B71: =language!A192 -> ,, ,, op individuele molaire volumes | D71: =IF(D63="","",SUMPRODUCT(D20:D55,$L$20:$L$55)/100) -> 22.35588159 | E71: =IF(E63="","",SUMPRODUCT(E20:E55,$L$20:$L$55)/100) -> 22.34340877 | F71: =IF(F63="","",SUMPRODUCT(F20:F55,$L$20:$L$55)/100) ->  | G71: =IF(G63="","",SUMPRODUCT(G20:G55,$L$20:$L$55)/100) ->  | H71: =IF(H63="","",SUMPRODUCT(H20:H55,$L$20:$L$55)/100) -> 
B72: =language!A193 -> Dichtheid | C72: =language!A78 -> kg/Nm3 | D72: =IF(D71="","",D68/D71) -> 0.8336564812 | E72: =IF(E71="","",E68/E71) -> 0.8040760242 | F72: =IF(F71="","",F68/F71) ->  | G72: =IF(G71="","",G68/G71) ->  | H72: =IF(H71="","",H68/H71) -> 
B73: =language!A194 -> Relatieve dichtheid | D73: =IF(D72="","",D72/1.293) -> 0.6447459251 | E73: =IF(E72="","",E72/1.293) -> 0.6218685416 | F73: =IF(F72="","",F72/1.293) ->  | G73: =IF(G72="","",G72/1.293) ->  | H73: =IF(H72="","",H72/1.293) -> 
B74: =language!A195 -> Stoichiometrisch verbranding
B75: =language!A196 -> Zuurstofverbruik (mol/mol) | D75: =IF(D63="","",(D58+D59/4-D60/2+D62)) -> 1.76285 | E75: =IF(E63="","",(E58+E59/4-E60/2+E62)) -> 2.016875 | F75: =IF(F63="","",(F58+F59/4-F60/2+F62)) ->  | G75: =IF(G63="","",(G58+G59/4-G60/2+G62)) ->  | H75: =IF(H63="","",(H58+H59/4-H60/2+H62)) -> 
B76: =language!A154 -> Koolstofdioxide | C76: =C9 -> Nm3/Nm3 | D76: =IF(D58="","",D58*$L$29/D$70) -> 0.8969047091 | E76: =IF(E58="","",E58*$L$29/E$70) -> 1.040393437 | F76: =IF(F58="","",F58*$L$29/F$70) ->  | G76: =IF(G58="","",G58*$L$29/G$70) ->  | H76: =IF(H58="","",H58*$L$29/H$70) -> 
B77: =language!A149 -> Waterdamp | C77: =C76 -> Nm3/Nm3 | D77: =IF(D59="","",D59/2*$L$24/D70) -> 1.68340644 | E77: =IF(E59="","",E59/2*$L$24/E70) -> 1.913343565 | F77: =IF(F59="","",F59/2*$L$24/F70) ->  | G77: =IF(G59="","",G59/2*$L$24/G70) ->  | H77: =IF(H59="","",H59/2*$L$24/H70) -> 
B78: =language!A143 -> Brandstofstikstof | C78: Nm3/Nm3 | D78: =IF(D61="","",D61/2*$L$25/D70) -> 0.143463454 | E78: =IF(E61="","",E61/2*$L$25/E70) -> 0.03128237132 | F78: =IF(F61="","",F61/2*$L$25/F70) ->  | G78: =IF(G61="","",G61/2*$L$25/G70) ->  | H78: =IF(H61="","",H61/2*$L$25/H70) -> 
B79: =language!A183 -> Zwaveldioxide | C79: Nm3/Nm3 | D79: =IF(D62="","",D62*22.4/D70) -> 0 | E79: =IF(E62="","",E62*22.4/E70) -> 0 | F79: =IF(F62="","",F62*22.4/F70) ->  | G79: =IF(G62="","",G62*22.4/G70) ->  | H79: =IF(H62="","",H62*22.4/H70) -> 
B80: =language!A43 -> Droog luchtverbruik | C80: Nm3/Nm3 | D80: =IF(D75="","",D75/0.2095*22.4003/D70) -> 8.428759914 | E80: =IF(E75="","",E75/0.2095*22.4003/E70) -> 9.647947682 | F80: =IF(F75="","",F75/0.2095*22.4003/F70) ->  | G80: =IF(G75="","",G75/0.2095*22.4003/G70) ->  | H80: =IF(H75="","",H75/0.2095*22.4003/H70) -> 
B81: =language!A57 -> Rookgasdebiet (droog) | C81: Nm3/Nm3 | D81: =IF(D80="","",D80*(1-0.2095)+D76+D78+D79) -> 7.703302875 | E81: =IF(E80="","",E80*(1-0.2095)+E76+E78+E79) -> 8.698378451 | F81: =IF(F80="","",F80*(1-0.2095)+F76+F78+F79) ->  | G81: =IF(G80="","",G80*(1-0.2095)+G76+G78+G79) ->  | H81: =IF(H80="","",H80*(1-0.2095)+H76+H78+H79) -> 
B82: =language!A58 -> Rookgasdebiet (nat) | C82: Nm3/Nm3 | D82: =IF(D81="","",D81+D77) -> 9.386709315 | E82: =IF(E81="","",E81+E77) -> 10.61172202 | F82: =IF(F81="","",F81+F77) ->  | G82: =IF(G81="","",G81+G77) ->  | H82: =IF(H81="","",H81+H77) -> 
B83: =language!A198 -> DIN1942
B84: =B76 -> Koolstofdioxide | C84: =C82 -> Nm3/Nm3 | D84: =IF(D5="","",0.231+0.02257*D5) -> 0.9457590871 | E84: =IF(E5="","",0.231+0.02257*E5) -> 1.049651598 | F84: =IF(F5="","",0.231+0.02257*F5) -> 0.86296 | G84: =IF(G5="","",0.231+0.02257*G5) -> 1.02095 | H84: =IF(H5="","",0.231+0.02257*H5) -> 1.1338
B85: Waterdamp | C85: =C82 -> Nm3/Nm3 | D85: =IF(D5="","",-0.0784+0.0608*D5) -> 1.847047607 | E85: =IF(E5="","",-0.0784+0.0608*E5) -> 2.126917554 | F85: =IF(F5="","",-0.0784+0.0608*F5) -> 1.624 | G85: =IF(G5="","",-0.0784+0.0608*G5) -> 2.0496 | H85: =IF(H5="","",-0.0784+0.0608*H5) -> 2.3536
B86: Brandstofstikstof | C86: =C85 -> Nm3/Nm3 | D86: =IF(D5="","",0) -> 0 | E86: =IF(E5="","",0) -> 0 | F86: =IF(F5="","",0) -> 0 | G86: =IF(G5="","",0) -> 0 | H86: =IF(H5="","",0) -> 0
B87: Zwaveldioxide | C87: =C86 -> Nm3/Nm3 | D87: =IF(D5="","",0) -> 0 | E87: =IF(E5="","",0) -> 0 | F87: =IF(F5="","",0) -> 0 | G87: =IF(G5="","",0) -> 0 | H87: =IF(H5="","",0) -> 0
B88: Droog luchtverbruik | C88: =C87 -> Nm3/Nm3 | D88: =IF(D5="","",-0.0405+0.2679*D5) -> 8.44350352 | E88: =IF(E5="","",-0.0405+0.2679*E5) -> 9.67668047 | F88: =IF(F5="","",-0.0405+0.2679*F5) -> 7.4607 | G88: =IF(G5="","",-0.0405+0.2679*G5) -> 9.336 | H88: =IF(H5="","",-0.0405+0.2679*H5) -> 10.6755
B89: Rookgasdebiet (droog) | C89: =C88 -> Nm3/Nm3 | D89: =IF(D5="","",0.199+0.2344*D5) -> 7.622107223 | E89: =IF(E5="","",0.199+0.2344*E5) -> 8.701079516 | F89: =IF(F5="","",0.199+0.2344*F5) -> 6.7622 | G89: =IF(G5="","",0.199+0.2344*G5) -> 8.403 | H89: =IF(H5="","",0.199+0.2344*H5) -> 9.575
B90: Rookgasdebiet (nat) | C90: =C89 -> Nm3/Nm3 | D90: =IF(D5="","",0.1211+0.292*D5) -> 9.368315483 | E90: =IF(E5="","",0.1211+0.292*E5) -> 10.71242772 | F90: =IF(F5="","",0.1211+0.292*F5) -> 8.2971 | G90: =IF(G5="","",0.1211+0.292*G5) -> 10.3411 | H90: =IF(H5="","",0.1211+0.292*H5) -> 11.8011

Sheet Liquid fuels
A1: =IF(NOW()>Data!B2,0,1) -> 1
C2: ='Gaseous fuels'!C2 -> Omschrijving | D2: =language!A29 -> DIESEL | E2: =language!A30 -> HFO | F2: =language!A31 -> LFO | G2: LF1 | H2: LF 2
B3: ='Gaseous fuels'!B3 -> Onderste verbrandingswaarde | C3: =language!A73 -> kJ/kg | D3: 42480 | E3: 40230 | F3: 42650 | G3: 41000 | H3: 45000
B4: ='Gaseous fuels'!B4 -> Gehalte fossiele brandstof | C4: % | D4: 100 | E4: 100 | F4: 100 | G4: 100 | H4: 100
B5: ='Gaseous fuels'!B5 -> Onderste verbrandingswaarde | C5: =language!A72 -> MJ/kg | D5: =IF($A1=1,IF(D3="","",D3/1000),"") -> 42.48 | E5: =IF($A1=1,IF(E3="","",E3/1000),"") -> 40.23 | F5: =IF($A1=1,IF(F3="","",F3/1000),"") -> 42.65 | G5: =IF($A1=1,IF(G3="","",G3/1000),"") -> 41 | H5: =IF($A1=1,IF(H3="","",H3/1000),"") -> 45
B6: ='Gaseous fuels'!B6 -> Bovenste verbrandingswaarde | C6: =C5 -> MJ/kg | D6: =IF(D5="","",D5+(D18-D17)*44.0136/21.629) -> 45.34029447 | E6: =IF(E5="","",E5+(E18-E17)*44.0136/21.629) -> 42.51386872 | F6: =IF(F5="","",F5+(F18-F17)*44.0136/21.629) -> 45.56924711 | G6: =IF(G5="","",G5+(G18-G17)*44.0136/21.629) -> 43.75855731 | H6: =IF(H5="","",H5+(H18-H17)*44.0136/21.629) -> 48.50578529
B7: ='Gaseous fuels'!B7 -> Wobbe-index | C7: =C6 -> MJ/kg
B8: ='Gaseous fuels'!B8 -> Berekeningsmethode | D8: =IF($A1=1,IF(OR(D29=0,D29=""),IF(D3="","",language!$A$198),language!$A$199),"") -> samenstelling | E8: =IF($A1=1,IF(OR(E29=0,E29=""),IF(E3="","",language!$A$198),language!$A$199),"") -> samenstelling | F8: =IF($A1=1,IF(OR(F29=0,F29=""),IF(F3="","",language!$A$198),language!$A$199),"") -> samenstelling | G8: =IF($A1=1,IF(OR(G29=0,G29=""),IF(G3="","",language!$A$198),language!$A$199),"") -> DIN1942 | H8: =IF($A1=1,IF(OR(H29=0,H29=""),IF(H3="","",language!$A$198),language!$A$199),"") -> DIN1942
B9: ='Gaseous fuels'!B9 -> Koolstofdioxide | C9: =language!A81 -> Nm3/kg | D9: =IF(D$8="","",IF(D$8=language!$A$198,D45,D37)) -> 1.596548014 | E9: =IF(E$8="","",IF(E$8=language!$A$198,E45,E37)) -> 1.585064722 | F9: =IF(F$8="","",IF(F$8=language!$A$198,F45,F37)) -> 1.598770587 | G9: =IF(G$8="","",IF(G$8=language!$A$198,G45,G37)) -> 1.574022 | H9: =IF(H$8="","",IF(H$8=language!$A$198,H45,H37)) -> 1.61139
C10: =language!A76 -> kg/GJ | D10: =IF(OR(D9="",D5=""),"",D9/'Gaseous fuels'!$L$29*'Gaseous fuels'!$K$29*1000/D5) -> 74.3520566 | E10: =IF(OR(E9="",E5=""),"",E9/'Gaseous fuels'!$L$29*'Gaseous fuels'!$K$29*1000/E5) -> 77.9457567 | F10: =IF(OR(F9="",F5=""),"",F9/'Gaseous fuels'!$L$29*'Gaseous fuels'!$K$29*1000/F5) -> 74.15878813 | G10: =IF(OR(G9="",G5=""),"",G9/'Gaseous fuels'!$L$29*'Gaseous fuels'!$K$29*1000/G5) -> 75.94906843 | H10: =IF(OR(H9="",H5=""),"",H9/'Gaseous fuels'!$L$29*'Gaseous fuels'!$K$29*1000/H5) -> 70.84083315
B11: ='Gaseous fuels'!B11 -> Waterdamp | C11: =C9 -> Nm3/kg | D11: =IF(D$8="","",IF(D$8=language!$A$198,D46,D38)) -> 1.405595297 | E11: =IF(E$8="","",IF(E$8=language!$A$198,E46,E38)) -> 1.122330291 | F11: =IF(F$8="","",IF(F$8=language!$A$198,F46,F38)) -> 1.434565582 | G11: =IF(G$8="","",IF(G$8=language!$A$198,G46,G38)) -> 1.3556 | H11: =IF(H$8="","",IF(H$8=language!$A$198,H46,H38)) -> 1.7228
B12: ='Gaseous fuels'!B12 -> Brandstofstikstof | C12: =C11 -> Nm3/kg | D12: =IF(D$8="","",IF(D$8=language!$A$198,D47,D39)) -> 7.997494056e-07 | E12: =IF(E$8="","",IF(E$8=language!$A$198,E47,E39)) -> 3.198997623e-05 | F12: =IF(F$8="","",IF(F$8=language!$A$198,F47,F39)) -> 0 | G12: =IF(G$8="","",IF(G$8=language!$A$198,G47,G39)) -> 0 | H12: =IF(H$8="","",IF(H$8=language!$A$198,H47,H39)) -> 0
B13: ='Gaseous fuels'!B13 -> Zwaveldioxide | C13: =C12 -> Nm3/kg | D13: =IF(D$8="","",IF(D$8=language!$A$198,D48,D40)) -> 0.001257641921 | E13: =IF(E$8="","",IF(E$8=language!$A$198,E48,E40)) -> 0.02326637555 | F13: =IF(F$8="","",IF(F$8=language!$A$198,F48,F40)) -> 0.001187772926 | G13: =IF(G$8="","",IF(G$8=language!$A$198,G48,G40)) -> 0 | H13: =IF(H$8="","",IF(H$8=language!$A$198,H48,H40)) -> 0
C14: =C10 -> kg/GJ | D14: =IF(D8="","",D13/22.4*64*1000/D5) -> 0.08458716178 | E14: =IF(E8="","",E13/22.4*64*1000/E5) -> 1.652382767 | F14: =IF(F8="","",F13/22.4*64*1000/F5) -> 0.07956944738 | G14: =IF(G8="","",G13/22.4*64*1000/G5) -> 0 | H14: =IF(H8="","",H13/22.4*64*1000/H5) -> 0
B15: ='Gaseous fuels'!B15 -> Stoichiometrisch luchtverbruik | C15: =C13 -> Nm3/kg | D15: =IF(D$8="","",IF(D$8=language!$A$198,D49,D41)) -> 11.1364796 | E15: =IF(E$8="","",IF(E$8=language!$A$198,E49,E41)) -> 10.48263816 | F15: =IF(F$8="","",IF(F$8=language!$A$198,F49,F41)) -> 11.23112988 | G15: =IF(G$8="","",IF(G$8=language!$A$198,G49,G41)) -> 10.6364 | H15: =IF(H$8="","",IF(H$8=language!$A$198,H49,H41)) -> 11.7064
B16: ='Gaseous fuels'!B16 -> Stoichiometrisch rookgasvolume
B17: ='Gaseous fuels'!B17 -> droog | C17: =C15 -> Nm3/kg | D17: =IF(D8="","",IF(D8=language!$A$198,D50,D42)) -> 10.40119358 | E17: =IF(E8="","",IF(E8=language!$A$198,E50,E42)) -> 9.894888556 | F17: =IF(F8="","",IF(F8=language!$A$198,F50,F42)) -> 10.47816653 | G17: =IF(G8="","",IF(G8=language!$A$198,G50,G42)) -> 9.9818 | H17: =IF(H8="","",IF(H8=language!$A$198,H50,H42)) -> 10.865
B18: ='Gaseous fuels'!B18 -> nat | C18: =C17 -> Nm3/kg | D18: =IF(D8="","",IF(D8=language!$A$198,D51,D43)) -> 11.80678888 | E18: =IF(E8="","",IF(E8=language!$A$198,E51,E43)) -> 11.01721885 | F18: =IF(F8="","",IF(F8=language!$A$198,F51,F43)) -> 11.91273211 | G18: =IF(G8="","",IF(G8=language!$A$198,G51,G43)) -> 11.3374 | H18: =IF(H8="","",IF(H8=language!$A$198,H51,H43)) -> 12.5878
B19: =language!A200 -> mol C/kg
B20: =language!A201 -> mol H/kg
B21: =language!A202 -> mol N/kg
B22: =language!A203 -> mol S/kg
B23: =language!A204 -> mol O/kg
B24: =language!A205 -> C (gew%) | D24: 0.862 | E24: 0.8558 | F24: 0.8632
B25: =language!A206 -> H (gew%) | D25: 0.131 | E25: 0.1046 | F25: 0.1337
B26: =language!A207 -> N (gew%) | D26: 1e-06 | E26: 4e-05 | F26: 0
B27: =language!A208 -> S (gew%) | D27: 0.0018 | E27: 0.0333 | F27: 0.0017
B28: =language!A209 -> As (gew%)
B29: =B24 -> C (gew%) | D29: =IF($A1=1,IF(SUM(D$19:D$28)=0,"",IF(SUM(D$24:D$28)=0,D19*12/1000,D24)),"") -> 0.862 | E29: =IF($A1=1,IF(SUM(E$19:E$28)=0,"",IF(SUM(E$24:E$28)=0,E19*12/1000,E24)),"") -> 0.8558 | F29: =IF($A1=1,IF(SUM(F$19:F$28)=0,"",IF(SUM(F$24:F$28)=0,F19*12/1000,F24)),"") -> 0.8632 | G29: =IF($A1=1,IF(SUM(G$19:G$28)=0,"",IF(SUM(G$24:G$28)=0,G19*12/1000,G24)),"") ->  | H29: =IF($A1=1,IF(SUM(H$19:H$28)=0,"",IF(SUM(H$24:H$28)=0,H19*12/1000,H24)),"") -> 
B30: =B25 -> H (gew%) | D30: =IF($A1=1,IF(SUM(D$19:D$28)=0,"",IF(SUM(D$24:D$28)=0,D20/1000,D25)),"") -> 0.131 | E30: =IF($A1=1,IF(SUM(E$19:E$28)=0,"",IF(SUM(E$24:E$28)=0,E20/1000,E25)),"") -> 0.1046 | F30: =IF($A1=1,IF(SUM(F$19:F$28)=0,"",IF(SUM(F$24:F$28)=0,F20/1000,F25)),"") -> 0.1337 | G30: =IF($A1=1,IF(SUM(G$19:G$28)=0,"",IF(SUM(G$24:G$28)=0,G20/1000,G25)),"") ->  | H30: =IF($A1=1,IF(SUM(H$19:H$28)=0,"",IF(SUM(H$24:H$28)=0,H20/1000,H25)),"") -> 
B31: =B26 -> N (gew%) | D31: =IF($A1=1,IF(SUM(D$19:D$28)=0,"",IF(SUM(D$24:D$28)=0,D21*14/1000,D26)),"") -> 1e-06 | E31: =IF($A1=1,IF(SUM(E$19:E$28)=0,"",IF(SUM(E$24:E$28)=0,E21*14/1000,E26)),"") -> 4e-05 | F31: =IF($A1=1,IF(SUM(F$19:F$28)=0,"",IF(SUM(F$24:F$28)=0,F21*14/1000,F26)),"") -> 0 | G31: =IF($A1=1,IF(SUM(G$19:G$28)=0,"",IF(SUM(G$24:G$28)=0,G21*14/1000,G26)),"") ->  | H31: =IF($A1=1,IF(SUM(H$19:H$28)=0,"",IF(SUM(H$24:H$28)=0,H21*14/1000,H26)),"") -> 
B32: =B27 -> S (gew%) | D32: =IF($A1=1,IF(SUM(D$19:D$28)=0,"",IF(SUM(D$24:D$28)=0,D22*32/1000,D27)),"") -> 0.0018 | E32: =IF($A1=1,IF(SUM(E$19:E$28)=0,"",IF(SUM(E$24:E$28)=0,E22*32/1000,E27)),"") -> 0.0333 | F32: =IF($A1=1,IF(SUM(F$19:F$28)=0,"",IF(SUM(F$24:F$28)=0,F22*32/1000,F27)),"") -> 0.0017 | G32: =IF($A1=1,IF(SUM(G$19:G$28)=0,"",IF(SUM(G$24:G$28)=0,G22*32/1000,G27)),"") ->  | H32: =IF($A1=1,IF(SUM(H$19:H$28)=0,"",IF(SUM(H$24:H$28)=0,H22*32/1000,H27)),"") -> 
B33: =B28 -> As (gew%) | D33: =IF($A1=1,IF(SUM(D$19:D$28)=0,"",IF(SUM(D$24:D$28)=0,"",IF(D28="","",D28))),"") ->  | E33: =IF($A1=1,IF(SUM(E$19:E$28)=0,"",IF(SUM(E$24:E$28)=0,"",IF(E28="","",E28))),"") ->  | F33: =IF($A1=1,IF(SUM(F$19:F$28)=0,"",IF(SUM(F$24:F$28)=0,"",IF(F28="","",F28))),"") ->  | G33: =IF($A1=1,IF(SUM(G$19:G$28)=0,"",IF(SUM(G$24:G$28)=0,"",IF(G28="","",G28))),"") ->  | H33: =IF($A1=1,IF(SUM(H$19:H$28)=0,"",IF(SUM(H$24:H$28)=0,"",IF(H28="","",H28))),"") -> 
B34: =language!A210 -> O (gew%) | D34: =IF($A1=1,IF(SUM(D19:D28)=0,"",IF(SUM(D24:D28)=0,D23*16/1000,1-SUM(D29:D33))),"") -> 0.005199 | E34: =IF($A1=1,IF(SUM(E19:E28)=0,"",IF(SUM(E24:E28)=0,E23*16/1000,1-SUM(E29:E33))),"") -> 0.00626 | F34: =IF($A1=1,IF(SUM(F19:F28)=0,"",IF(SUM(F24:F28)=0,F23*16/1000,1-SUM(F29:F33))),"") -> 0.0014 | G34: =IF($A1=1,IF(SUM(G19:G28)=0,"",IF(SUM(G24:G28)=0,G23*16/1000,1-SUM(G29:G33))),"") ->  | H34: =IF($A1=1,IF(SUM(H19:H28)=0,"",IF(SUM(H24:H28)=0,H23*16/1000,1-SUM(H29:H33))),"") -> 
B35: ='Gaseous fuels'!B74 -> Stoichiometrisch verbranding
B36: =language!A197 -> Zuurstofverbruik | C36: =language!A75 -> mol/kg | D36: =IF(SUM(D29:D33)=0,"",(D29/12.011+D30/1.0079/4-D34/15.9994/2+D32/32.06)*1000) -> 104.1545192 | E36: =IF(SUM(E29:E33)=0,"",(E29/12.011+E30/1.0079/4-E34/15.9994/2+E32/32.06)*1000) -> 98.0394323 | F36: =IF(SUM(F29:F33)=0,"",(F29/12.011+F30/1.0079/4-F34/15.9994/2+F32/32.06)*1000) -> 105.039741 | G36: =IF(SUM(G29:G33)=0,"",(G29/12.011+G30/1.0079/4-G34/15.9994/2+G32/32.06)*1000) ->  | H36: =IF(SUM(H29:H33)=0,"",(H29/12.011+H30/1.0079/4-H34/15.9994/2+H32/32.06)*1000) -> 
B37: ='Gaseous fuels'!B76 -> Koolstofdioxide | C37: =C18 -> Nm3/kg | D37: =IF(SUM(D29:D33)=0,"",(D29/12.011)*'Gaseous fuels'!$L$29) -> 1.596548014 | E37: =IF(SUM(E29:E33)=0,"",(E29/12.011)*'Gaseous fuels'!$L$29) -> 1.585064722 | F37: =IF(SUM(F29:F33)=0,"",(F29/12.011)*'Gaseous fuels'!$L$29) -> 1.598770587 | G37: =IF(SUM(G29:G33)=0,"",(G29/12.011)*'Gaseous fuels'!$L$29) ->  | H37: =IF(SUM(H29:H33)=0,"",(H29/12.011)*'Gaseous fuels'!$L$29) -> 
B38: ='Gaseous fuels'!B77 -> Waterdamp | C38: =C37 -> Nm3/kg | D38: =IF(SUM(D29:D33)=0,"",(D30/1.0079/2)*'Gaseous fuels'!$L$24) -> 1.405595297 | E38: =IF(SUM(E29:E33)=0,"",(E30/1.0079/2)*'Gaseous fuels'!$L$24) -> 1.122330291 | F38: =IF(SUM(F29:F33)=0,"",(F30/1.0079/2)*'Gaseous fuels'!$L$24) -> 1.434565582 | G38: =IF(SUM(G29:G33)=0,"",(G30/1.0079/2)*'Gaseous fuels'!$L$24) ->  | H38: =IF(SUM(H29:H33)=0,"",(H30/1.0079/2)*'Gaseous fuels'!$L$24) -> 
B39: ='Gaseous fuels'!B78 -> Brandstofstikstof | C39: Nm3/kg | D39: =IF(SUM(D29:D33)=0,"",(D31/14.0067/2)*'Gaseous fuels'!$L$25) -> 7.997494056e-07 | E39: =IF(SUM(E29:E33)=0,"",(E31/14.0067/2)*'Gaseous fuels'!$L$25) -> 3.198997623e-05 | F39: =IF(SUM(F29:F33)=0,"",(F31/14.0067/2)*'Gaseous fuels'!$L$25) -> 0 | G39: =IF(SUM(G29:G33)=0,"",(G31/14.0067/2)*'Gaseous fuels'!$L$25) ->  | H39: =IF(SUM(H29:H33)=0,"",(H31/14.0067/2)*'Gaseous fuels'!$L$25) -> 
B40: ='Gaseous fuels'!B79 -> Zwaveldioxide | C40: Nm3/kg | D40: =IF(SUM(D29:D33)=0,"",(D32/32.06)*22.4) -> 0.001257641921 | E40: =IF(SUM(E29:E33)=0,"",(E32/32.06)*22.4) -> 0.02326637555 | F40: =IF(SUM(F29:F33)=0,"",(F32/32.06)*22.4) -> 0.001187772926 | G40: =IF(SUM(G29:G33)=0,"",(G32/32.06)*22.4) ->  | H40: =IF(SUM(H29:H33)=0,"",(H32/32.06)*22.4) -> 
B41: ='Gaseous fuels'!B80 -> Droog luchtverbruik | C41: Nm3/kg | D41: =IF(SUM(D29:D33)=0,"",D36/0.2095*22.4003/1000) -> 11.1364796 | E41: =IF(SUM(E29:E33)=0,"",E36/0.2095*22.4003/1000) -> 10.48263816 | F41: =IF(SUM(F29:F33)=0,"",F36/0.2095*22.4003/1000) -> 11.23112988 | G41: =IF(SUM(G29:G33)=0,"",G36/0.2095*22.4003/1000) ->  | H41: =IF(SUM(H29:H33)=0,"",H36/0.2095*22.4003/1000) -> 
B42: ='Gaseous fuels'!B81 -> Rookgasdebiet (droog) | C42: Nm3/kg | D42: =IF(SUM(D29:D33)=0,"",D41*(1-0.2095)+D37+D39+D40) -> 10.40119358 | E42: =IF(SUM(E29:E33)=0,"",E41*(1-0.2095)+E37+E39+E40) -> 9.894888556 | F42: =IF(SUM(F29:F33)=0,"",F41*(1-0.2095)+F37+F39+F40) -> 10.47816653 | G42: =IF(SUM(G29:G33)=0,"",G41*(1-0.2095)+G37+G39+G40) ->  | H42: =IF(SUM(H29:H33)=0,"",H41*(1-0.2095)+H37+H39+H40) -> 
B43: ='Gaseous fuels'!B82 -> Rookgasdebiet (nat) | C43: Nm3/kg | D43: =IF(SUM(D29:D33)=0,"",D42+D38) -> 11.80678888 | E43: =IF(SUM(E29:E33)=0,"",E42+E38) -> 11.01721885 | F43: =IF(SUM(F29:F33)=0,"",F42+F38) -> 11.91273211 | G43: =IF(SUM(G29:G33)=0,"",G42+G38) ->  | H43: =IF(SUM(H29:H33)=0,"",H42+H38) -> 
B44: ='Gaseous fuels'!B83 -> DIN1942
B45: ='Gaseous fuels'!B84 -> Koolstofdioxide | C45: =C43 -> Nm3/kg | D45: =IF(D5="","",1.191+0.009342*D5) -> 1.58784816 | E45: =IF(E5="","",1.191+0.009342*E5) -> 1.56682866 | F45: =IF(F5="","",1.191+0.009342*F5) -> 1.5894363 | G45: =IF(G5="","",1.191+0.009342*G5) -> 1.574022 | H45: =IF(H5="","",1.191+0.009342*H5) -> 1.61139
B46: ='Gaseous fuels'!B85 -> Waterdamp | C46: =C45 -> Nm3/kg | D46: =IF(D5="","",-2.4082+0.0918*D5) -> 1.491464 | E46: =IF(E5="","",-2.4082+0.0918*E5) -> 1.284914 | F46: =IF(F5="","",-2.4082+0.0918*F5) -> 1.50707 | G46: =IF(G5="","",-2.4082+0.0918*G5) -> 1.3556 | H46: =IF(H5="","",-2.4082+0.0918*H5) -> 1.7228
B47: ='Gaseous fuels'!B86 -> Brandstofstikstof | C47: Nm3/kg | D47: =IF(D5="","",0) -> 0 | E47: =IF(E5="","",0) -> 0 | F47: =IF(F5="","",0) -> 0 | G47: =IF(G5="","",0) -> 0 | H47: =IF(H5="","",0) -> 0
B48: ='Gaseous fuels'!B87 -> Zwaveldioxide | C48: Nm3/kg | D48: =IF(D5="","",IF(D40="",0,D40)) -> 0.001257641921 | E48: =IF(E5="","",IF(E40="",0,E40)) -> 0.02326637555 | F48: =IF(F5="","",IF(F40="",0,F40)) -> 0.001187772926 | G48: =IF(G5="","",IF(G40="",0,G40)) -> 0 | H48: =IF(H5="","",IF(H40="",0,H40)) -> 0
B49: ='Gaseous fuels'!B88 -> Droog luchtverbruik | C49: Nm3/kg | D49: =IF(D5="","",-0.3311+0.2675*D5) -> 11.0323 | E49: =IF(E5="","",-0.3311+0.2675*E5) -> 10.430425 | F49: =IF(F5="","",-0.3311+0.2675*F5) -> 11.077775 | G49: =IF(G5="","",-0.3311+0.2675*G5) -> 10.6364 | H49: =IF(H5="","",-0.3311+0.2675*H5) -> 11.7064
B50: ='Gaseous fuels'!B89 -> Rookgasdebiet (droog) | C50: Nm3/kg | D50: =IF(D5="","",0.929+0.2208*D5) -> 10.308584 | E50: =IF(E5="","",0.929+0.2208*E5) -> 9.811784 | F50: =IF(F5="","",0.929+0.2208*F5) -> 10.34612 | G50: =IF(G5="","",0.929+0.2208*G5) -> 9.9818 | H50: =IF(H5="","",0.929+0.2208*H5) -> 10.865
B51: ='Gaseous fuels'!B90 -> Rookgasdebiet (nat) | C51: Nm3/kg | D51: =IF(D5="","",-1.4792+0.3126*D5) -> 11.800048 | E51: =IF(E5="","",-1.4792+0.3126*E5) -> 11.096698 | F51: =IF(F5="","",-1.4792+0.3126*F5) -> 11.85319 | G51: =IF(G5="","",-1.4792+0.3126*G5) -> 11.3374 | H51: =IF(H5="","",-1.4792+0.3126*H5) -> 12.5878

Sheet Solid fuels
A1: =IF(NOW()>Data!B2,0,1) -> 1
C2: ='Liquid fuels'!C2 -> Omschrijving | D2: =language!A32 -> KOLEN | E2: SF 1 | F2: SF 2 | G2: SF 3 | H2: SF 4
B3: ='Liquid fuels'!B3 -> Onderste verbrandingswaarde | C3: ='Liquid fuels'!C3 -> kJ/kg | D3: 25870 | E3: 10000 | F3: 15000 | G3: 20000 | H3: 25000
B4: ='Liquid fuels'!B4 -> Gehalte fossiele brandstof | C4: ='Liquid fuels'!C4 -> % | D4: 100 | E4: 100 | F4: 50 | G4: 100 | H4: 100
B5: ='Liquid fuels'!B5 -> Onderste verbrandingswaarde | C5: ='Liquid fuels'!C5 -> MJ/kg | D5: =IF($A1=1,IF(D3="","",D3/1000),"") -> 25.87 | E5: =IF($A1=1,IF(E3="","",E3/1000),"") -> 10 | F5: =IF($A1=1,IF(F3="","",F3/1000),"") -> 15 | G5: =IF($A1=1,IF(G3="","",G3/1000),"") -> 20 | H5: =IF($A1=1,IF(H3="","",H3/1000),"") -> 25
B6: ='Liquid fuels'!B6 -> Bovenste verbrandingswaarde | C6: ='Liquid fuels'!C6 -> MJ/kg | D6: =IF(D5="","",D5+(D18-D17)*44.0136/21.629) -> 27.01240032 | E6: =IF(E5="","",E5+(E18-E17)*44.0136/21.629) -> 11.89167518 | F6: =IF(F5="","",F5+(F18-F17)*44.0136/21.629) -> 16.72277561 | G6: =IF(G5="","",G5+(G18-G17)*44.0136/21.629) -> 21.55387604 | H6: =IF(H5="","",H5+(H18-H17)*44.0136/21.629) -> 26.38497647
B7: ='Liquid fuels'!B7 -> Wobbe-index | C7: ='Liquid fuels'!C7 -> MJ/kg
B8: ='Liquid fuels'!B8 -> Berekeningsmethode | D8: =IF($A1=1,IF(OR(D30=0,D30=""),IF(D3="","",language!$A$198),language!$A$199),"") -> samenstelling | E8: =IF($A1=1,IF(OR(E30=0,E30=""),IF(E3="","",language!$A$198),language!$A$199),"") -> DIN1942 | F8: =IF($A1=1,IF(OR(F30=0,F30=""),IF(F3="","",language!$A$198),language!$A$199),"") -> DIN1942 | G8: =IF($A1=1,IF(OR(G30=0,G30=""),IF(G3="","",language!$A$198),language!$A$199),"") -> DIN1942 | H8: =IF($A1=1,IF(OR(H30=0,H30=""),IF(H3="","",language!$A$198),language!$A$199),"") -> DIN1942
B9: ='Liquid fuels'!B9 -> Koolstofdioxide | C9: ='Liquid fuels'!C9 -> Nm3/kg | D9: =IF(D$8="","",IF(D$8=language!$A$198,D47,D39)) -> 1.254797836 | E9: =IF(E$8="","",IF(E$8=language!$A$198,E47,E39)) -> 0.5416 | F9: =IF(F$8="","",IF(F$8=language!$A$198,F47,F39)) -> 0.7616 | G9: =IF(G$8="","",IF(G$8=language!$A$198,G47,G39)) -> 0.9816 | H9: =IF(H$8="","",IF(H$8=language!$A$198,H47,H39)) -> 1.2016
C10: ='Liquid fuels'!C10 -> kg/GJ | D10: =IF(OR(D9="",D5=""),"",D9/'Gaseous fuels'!$L$29*'Gaseous fuels'!$K$29*1000/D5) -> 95.9561561 | E10: =IF(OR(E9="",E5=""),"",E9/'Gaseous fuels'!$L$29*'Gaseous fuels'!$K$29*1000/E5) -> 107.1455567 | F10: =IF(OR(F9="",F5=""),"",F9/'Gaseous fuels'!$L$29*'Gaseous fuels'!$K$29*1000/F5) -> 100.4456622 | G10: =IF(OR(G9="",G5=""),"",G9/'Gaseous fuels'!$L$29*'Gaseous fuels'!$K$29*1000/G5) -> 97.09571493 | H10: =IF(OR(H9="",H5=""),"",H9/'Gaseous fuels'!$L$29*'Gaseous fuels'!$K$29*1000/H5) -> 95.08574659
B11: ='Liquid fuels'!B11 -> Waterdamp | C11: ='Liquid fuels'!C11 -> Nm3/kg | D11: =IF(D$8="","",IF(D$8=language!$A$198,D48,D40)) -> 0.5613941267 | E11: =IF(E$8="","",IF(E$8=language!$A$198,E48,E40)) -> 0.93 | F11: =IF(F$8="","",IF(F$8=language!$A$198,F48,F40)) -> 0.847 | G11: =IF(G$8="","",IF(G$8=language!$A$198,G48,G40)) -> 0.764 | H11: =IF(H$8="","",IF(H$8=language!$A$198,H48,H40)) -> 0.681
B12: ='Liquid fuels'!B12 -> Brandstofstikstof | C12: ='Liquid fuels'!C12 -> Nm3/kg | D12: =IF(D$8="","",IF(D$8=language!$A$198,D49,D41)) -> 0.01101254932 | E12: =IF(E$8="","",IF(E$8=language!$A$198,E49,E41)) -> 0 | F12: =IF(F$8="","",IF(F$8=language!$A$198,F49,F41)) -> 0 | G12: =IF(G$8="","",IF(G$8=language!$A$198,G49,G41)) -> 0 | H12: =IF(H$8="","",IF(H$8=language!$A$198,H49,H41)) -> 0
B13: ='Liquid fuels'!B13 -> Zwaveldioxide | C13: ='Liquid fuels'!C13 -> Nm3/kg | D13: =IF(D$8="","",IF(D$8=language!$A$198,D50,D42)) -> 0.006413973799 | E13: =IF(E$8="","",IF(E$8=language!$A$198,E50,E42)) -> 0 | F13: =IF(F$8="","",IF(F$8=language!$A$198,F50,F42)) -> 0 | G13: =IF(G$8="","",IF(G$8=language!$A$198,G50,G42)) -> 0 | H13: =IF(H$8="","",IF(H$8=language!$A$198,H50,H42)) -> 0
C14: ='Liquid fuels'!C14 -> kg/GJ | D14: =IF(D8="","",D13/22.4*64*1000/D5) -> 0.7083741564 | E14: =IF(E8="","",E13/22.4*64*1000/E5) -> 0 | F14: =IF(F8="","",F13/22.4*64*1000/F5) -> 0 | G14: =IF(G8="","",G13/22.4*64*1000/G5) -> 0 | H14: =IF(H8="","",H13/22.4*64*1000/H5) -> 0
B15: ='Liquid fuels'!B15 -> Stoichiometrisch luchtverbruik | C15: ='Liquid fuels'!C15 -> Nm3/kg | D15: =IF(D8="","",IF(D8=language!$A$198,D51,D43)) -> 6.994247869 | E15: =IF(E8="","",IF(E8=language!$A$198,E51,E43)) -> 2.9028 | F15: =IF(F8="","",IF(F8=language!$A$198,F51,F43)) -> 4.1338 | G15: =IF(G8="","",IF(G8=language!$A$198,G51,G43)) -> 5.3648 | H15: =IF(H8="","",IF(H8=language!$A$198,H51,H43)) -> 6.5958
B16: ='Liquid fuels'!B16 -> Stoichiometrisch rookgasvolume
B17: ='Liquid fuels'!B17 -> droog | C17: ='Liquid fuels'!C17 -> Nm3/kg | D17: =IF(D8="","",IF(D8=language!$A$198,D52,D44)) -> 6.8011773 | E17: =IF(E8="","",IF(E8=language!$A$198,E52,E44)) -> 2.836 | F17: =IF(F8="","",IF(F8=language!$A$198,F52,F44)) -> 4.029 | G17: =IF(G8="","",IF(G8=language!$A$198,G52,G44)) -> 5.222 | H17: =IF(H8="","",IF(H8=language!$A$198,H52,H44)) -> 6.415
B18: ='Liquid fuels'!B18 -> nat | C18: ='Liquid fuels'!C18 -> Nm3/kg | D18: =IF(D8="","",IF(D8=language!$A$198,D53,D45)) -> 7.362571427 | E18: =IF(E8="","",IF(E8=language!$A$198,E53,E45)) -> 3.7656 | F18: =IF(F8="","",IF(F8=language!$A$198,F53,F45)) -> 4.8756 | G18: =IF(G8="","",IF(G8=language!$A$198,G53,G45)) -> 5.9856 | H18: =IF(H8="","",IF(H8=language!$A$198,H53,H45)) -> 7.0956
B19: ='Liquid fuels'!B19 -> mol C/kg
B20: ='Liquid fuels'!B20 -> mol H/kg
B21: ='Liquid fuels'!B21 -> mol N/kg
B22: ='Liquid fuels'!B22 -> mol S/kg
B23: ='Liquid fuels'!B23 -> mol O/kg
B24: =language!A211 -> C (gew%,droog) | D24: 0.738
B25: =language!A212 -> H (gew%,droog) | D25: 0.047
B26: =language!A213 -> N (gew%,droog) | D26: 0.015
B27: =language!A214 -> S (gew%,droog) | D27: 0.01
B28: =language!A215 -> O (gew% droog) | D28: 0.069
B29: =language!A218 -> Vochtgehalte | D29: 0.082
B30: =B24 -> C (gew%,droog) | D30: =IF($A1=1,IF(SUM(D19:D29)=0,"",IF(SUM(D24:D29)=0,D19*12/1000,D24)),"") -> 0.738 | E30: =IF($A1=1,IF(SUM(E19:E29)=0,"",IF(SUM(E24:E29)=0,E19*12/1000,E24)),"") ->  | F30: =IF($A1=1,IF(SUM(F19:F29)=0,"",IF(SUM(F24:F29)=0,F19*12/1000,F24)),"") ->  | G30: =IF($A1=1,IF(SUM(G19:G29)=0,"",IF(SUM(G24:G29)=0,G19*12/1000,G24)),"") ->  | H30: =IF($A1=1,IF(SUM(H19:H29)=0,"",IF(SUM(H24:H29)=0,H19*12/1000,H24)),"") -> 
B31: H (gew%,droog) | D31: =IF($A1=1,IF(SUM(D19:D29)=0,"",IF(SUM(D24:D29)=0,D20/1000,D25)),"") -> 0.047 | E31: =IF($A1=1,IF(SUM(E19:E29)=0,"",IF(SUM(E24:E29)=0,E20/1000,E25)),"") ->  | F31: =IF($A1=1,IF(SUM(F19:F29)=0,"",IF(SUM(F24:F29)=0,F20/1000,F25)),"") ->  | G31: =IF($A1=1,IF(SUM(G19:G29)=0,"",IF(SUM(G24:G29)=0,G20/1000,G25)),"") ->  | H31: =IF($A1=1,IF(SUM(H19:H29)=0,"",IF(SUM(H24:H29)=0,H20/1000,H25)),"") -> 
B32: N (gew%,droog) | D32: =IF($A1=1,IF(SUM(D19:D29)=0,"",IF(SUM(D24:D29)=0,D21*14/1000,D26)),"") -> 0.015 | E32: =IF($A1=1,IF(SUM(E19:E29)=0,"",IF(SUM(E24:E29)=0,E21*14/1000,E26)),"") ->  | F32: =IF($A1=1,IF(SUM(F19:F29)=0,"",IF(SUM(F24:F29)=0,F21*14/1000,F26)),"") ->  | G32: =IF($A1=1,IF(SUM(G19:G29)=0,"",IF(SUM(G24:G29)=0,G21*14/1000,G26)),"") ->  | H32: =IF($A1=1,IF(SUM(H19:H29)=0,"",IF(SUM(H24:H29)=0,H21*14/1000,H26)),"") -> 
B33: S (gew%,droog) | D33: =IF($A1=1,IF(SUM(D19:D29)=0,"",IF(SUM(D24:D29)=0,D22*32/1000,D27)),"") -> 0.01 | E33: =IF($A1=1,IF(SUM(E19:E29)=0,"",IF(SUM(E24:E29)=0,E22*32/1000,E27)),"") ->  | F33: =IF($A1=1,IF(SUM(F19:F29)=0,"",IF(SUM(F24:F29)=0,F22*32/1000,F27)),"") ->  | G33: =IF($A1=1,IF(SUM(G19:G29)=0,"",IF(SUM(G24:G29)=0,G22*32/1000,G27)),"") ->  | H33: =IF($A1=1,IF(SUM(H19:H29)=0,"",IF(SUM(H24:H29)=0,H22*32/1000,H27)),"") -> 
B34: O (gew% droog) | D34: =IF($A1=1,IF(SUM(D19:D29)=0,"",IF(SUM(D24:D29)=0,D23*16/1000,D28)),"") -> 0.069 | E34: =IF($A1=1,IF(SUM(E19:E29)=0,"",IF(SUM(E24:E29)=0,E23*16/1000,E28)),"") ->  | F34: =IF($A1=1,IF(SUM(F19:F29)=0,"",IF(SUM(F24:F29)=0,F23*16/1000,F28)),"") ->  | G34: =IF($A1=1,IF(SUM(G19:G29)=0,"",IF(SUM(G24:G29)=0,G23*16/1000,G28)),"") ->  | H34: =IF($A1=1,IF(SUM(H19:H29)=0,"",IF(SUM(H24:H29)=0,H23*16/1000,H28)),"") -> 
B35: Vochtgehalte | D35: =IF($A1=1,IF(D34="","",IF(SUM(D24:D29)=0,0,D29)),"") -> 0.082 | E35: =IF($A1=1,IF(E34="","",IF(SUM(E24:E29)=0,0,E29)),"") ->  | F35: =IF($A1=1,IF(F34="","",IF(SUM(F24:F29)=0,0,F29)),"") ->  | G35: =IF($A1=1,IF(G34="","",IF(SUM(G24:G29)=0,0,G29)),"") ->  | H35: =IF($A1=1,IF(H34="","",IF(SUM(H24:H29)=0,0,H29)),"") -> 
B36: =language!A216 -> As (gew% droog) | D36: =IF($A1=1,IF(SUM(D19:D29)=0,"",1-D34-D33-D32-D31-D30),"") -> 0.121 | E36: =IF($A1=1,IF(SUM(E19:E29)=0,"",1-E34-E33-E32-E31-E30),"") ->  | F36: =IF($A1=1,IF(SUM(F19:F29)=0,"",1-F34-F33-F32-F31-F30),"") ->  | G36: =IF($A1=1,IF(SUM(G19:G29)=0,"",1-G34-G33-G32-G31-G30),"") ->  | H36: =IF($A1=1,IF(SUM(H19:H29)=0,"",1-H34-H33-H32-H31-H30),"") -> 
B37: ='Liquid fuels'!B35 -> Stoichiometrisch verbranding
B38: ='Liquid fuels'!B36 -> Zuurstofverbruik | C38: ='Liquid fuels'!C36 -> mol/kg | D38: =IF(D36="","",(D30/12.011+D31/1.0079/4-D34/15.9994/2+D33/32.06)*1000*(1-D35)) -> 65.41407609 | E38: =IF(E36="","",(E30/12.011+E31/1.0079/4-E34/15.9994/2+E33/32.06)*1000*(1-E35)) ->  | F38: =IF(F36="","",(F30/12.011+F31/1.0079/4-F34/15.9994/2+F33/32.06)*1000*(1-F35)) ->  | G38: =IF(G36="","",(G30/12.011+G31/1.0079/4-G34/15.9994/2+G33/32.06)*1000*(1-G35)) ->  | H38: =IF(H36="","",(H30/12.011+H31/1.0079/4-H34/15.9994/2+H33/32.06)*1000*(1-H35)) -> 
B39: ='Liquid fuels'!B37 -> Koolstofdioxide | C39: ='Liquid fuels'!C37 -> Nm3/kg | D39: =IF(D36="","",(D30/12.011)*'Gaseous fuels'!$L$29*(1-D35)) -> 1.254797836 | E39: =IF(E36="","",(E30/12.011)*'Gaseous fuels'!$L$29*(1-E35)) ->  | F39: =IF(F36="","",(F30/12.011)*'Gaseous fuels'!$L$29*(1-F35)) ->  | G39: =IF(G36="","",(G30/12.011)*'Gaseous fuels'!$L$29*(1-G35)) ->  | H39: =IF(H36="","",(H30/12.011)*'Gaseous fuels'!$L$29*(1-H35)) -> 
B40: ='Liquid fuels'!B38 -> Waterdamp | C40: ='Liquid fuels'!C38 -> Nm3/kg | D40: =IF(D36="","",((D31/1.0079/2*(1-D35))+(D35/ 'Gaseous fuels'!$K$24))*'Gaseous fuels'!$L$24) -> 0.5613941267 | E40: =IF(E36="","",((E31/1.0079/2*(1-E35))+(E35/ 'Gaseous fuels'!$K$24))*'Gaseous fuels'!$L$24) ->  | F40: =IF(F36="","",((F31/1.0079/2*(1-F35))+(F35/ 'Gaseous fuels'!$K$24))*'Gaseous fuels'!$L$24) ->  | G40: =IF(G36="","",((G31/1.0079/2*(1-G35))+(G35/ 'Gaseous fuels'!$K$24))*'Gaseous fuels'!$L$24) ->  | H40: =IF(H36="","",((H31/1.0079/2*(1-H35))+(H35/ 'Gaseous fuels'!$K$24))*'Gaseous fuels'!$L$24) -> 
B41: ='Liquid fuels'!B39 -> Brandstofstikstof | C41: ='Liquid fuels'!C39 -> Nm3/kg | D41: =IF(D36="","",(D32/14.0067/2)*'Gaseous fuels'!$L$25*(1-D35)) -> 0.01101254932 | E41: =IF(E36="","",(E32/14.0067/2)*'Gaseous fuels'!$L$25*(1-E35)) ->  | F41: =IF(F36="","",(F32/14.0067/2)*'Gaseous fuels'!$L$25*(1-F35)) ->  | G41: =IF(G36="","",(G32/14.0067/2)*'Gaseous fuels'!$L$25*(1-G35)) ->  | H41: =IF(H36="","",(H32/14.0067/2)*'Gaseous fuels'!$L$25*(1-H35)) -> 
B42: ='Liquid fuels'!B40 -> Zwaveldioxide | C42: ='Liquid fuels'!C40 -> Nm3/kg | D42: =IF(D36="","",(D33/32.06)*22.4*(1-D35)) -> 0.006413973799 | E42: =IF(E36="","",(E33/32.06)*22.4*(1-E35)) ->  | F42: =IF(F36="","",(F33/32.06)*22.4*(1-F35)) ->  | G42: =IF(G36="","",(G33/32.06)*22.4*(1-G35)) ->  | H42: =IF(H36="","",(H33/32.06)*22.4*(1-H35)) -> 
B43: ='Liquid fuels'!B41 -> Droog luchtverbruik | C43: ='Liquid fuels'!C41 -> Nm3/kg | D43: =IF(D36="","",D38/0.2095*22.4003/1000) -> 6.994247869 | E43: =IF(E36="","",E38/0.2095*22.4003/1000) ->  | F43: =IF(F36="","",F38/0.2095*22.4003/1000) ->  | G43: =IF(G36="","",G38/0.2095*22.4003/1000) ->  | H43: =IF(H36="","",H38/0.2095*22.4003/1000) -> 
B44: ='Liquid fuels'!B42 -> Rookgasdebiet (droog) | C44: ='Liquid fuels'!C42 -> Nm3/kg | D44: =IF(D36="","",D43*(1-0.2095)+D39+D41+D42) -> 6.8011773 | E44: =IF(E36="","",E43*(1-0.2095)+E39+E41+E42) ->  | F44: =IF(F36="","",F43*(1-0.2095)+F39+F41+F42) ->  | G44: =IF(G36="","",G43*(1-0.2095)+G39+G41+G42) ->  | H44: =IF(H36="","",H43*(1-0.2095)+H39+H41+H42) -> 
B45: ='Liquid fuels'!B43 -> Rookgasdebiet (nat) | C45: ='Liquid fuels'!C43 -> Nm3/kg | D45: =IF(D36="","",D44+D40) -> 7.362571427 | E45: =IF(E36="","",E44+E40) ->  | F45: =IF(F36="","",F44+F40) ->  | G45: =IF(G36="","",G44+G40) ->  | H45: =IF(H36="","",H44+H40) -> 
B46: ='Liquid fuels'!B44 -> DIN1942
B47: ='Liquid fuels'!B45 -> Koolstofdioxide | C47: ='Liquid fuels'!C45 -> Nm3/kg | D47: =IF(D5="","",0.1016+0.044*D5) -> 1.23988 | E47: =IF(E5="","",0.1016+0.044*E5) -> 0.5416 | F47: =IF(F5="","",0.1016+0.044*F5) -> 0.7616 | G47: =IF(G5="","",0.1016+0.044*G5) -> 0.9816 | H47: =IF(H5="","",0.1016+0.044*H5) -> 1.2016
B48: ='Liquid fuels'!B46 -> Waterdamp | C48: ='Liquid fuels'!C46 -> Nm3/kg | D48: =IF(D5="","",1.096-0.0166*D5) -> 0.666558 | E48: =IF(E5="","",1.096-0.0166*E5) -> 0.93 | F48: =IF(F5="","",1.096-0.0166*F5) -> 0.847 | G48: =IF(G5="","",1.096-0.0166*G5) -> 0.764 | H48: =IF(H5="","",1.096-0.0166*H5) -> 0.681
B49: ='Liquid fuels'!B47 -> Brandstofstikstof | C49: ='Liquid fuels'!C47 -> Nm3/kg | D49: =IF(D5="","",0) -> 0 | E49: =IF(E5="","",0) -> 0 | F49: =IF(F5="","",0) -> 0 | G49: =IF(G5="","",0) -> 0 | H49: =IF(H5="","",0) -> 0
B50: ='Liquid fuels'!B48 -> Zwaveldioxide | C50: ='Liquid fuels'!C48 -> Nm3/kg | D50: =IF(D5="","",IF(D42="",0,D42)) -> 0.006413973799 | E50: =IF(E5="","",IF(E42="",0,E42)) -> 0 | F50: =IF(F5="","",IF(F42="",0,F42)) -> 0 | G50: =IF(G5="","",IF(G42="",0,G42)) -> 0 | H50: =IF(H5="","",IF(H42="",0,H42)) -> 0
B51: ='Liquid fuels'!B49 -> Droog luchtverbruik | C51: ='Liquid fuels'!C49 -> Nm3/kg | D51: =IF(D5="","",0.4408+0.2462*D5) -> 6.809994 | E51: =IF(E5="","",0.4408+0.2462*E5) -> 2.9028 | F51: =IF(F5="","",0.4408+0.2462*F5) -> 4.1338 | G51: =IF(G5="","",0.4408+0.2462*G5) -> 5.3648 | H51: =IF(H5="","",0.4408+0.2462*H5) -> 6.5958
B52: ='Liquid fuels'!B50 -> Rookgasdebiet (droog) | C52: ='Liquid fuels'!C50 -> Nm3/kg | D52: =IF(D5="","",0.45+0.2386*D5) -> 6.622582 | E52: =IF(E5="","",0.45+0.2386*E5) -> 2.836 | F52: =IF(F5="","",0.45+0.2386*F5) -> 4.029 | G52: =IF(G5="","",0.45+0.2386*G5) -> 5.222 | H52: =IF(H5="","",0.45+0.2386*H5) -> 6.415
B53: ='Liquid fuels'!B51 -> Rookgasdebiet (nat) | C53: ='Liquid fuels'!C51 -> Nm3/kg | D53: =IF(D5="","",1.5456+0.222*D5) -> 7.28874 | E53: =IF(E5="","",1.5456+0.222*E5) -> 3.7656 | F53: =IF(F5="","",1.5456+0.222*F5) -> 4.8756 | G53: =IF(G5="","",1.5456+0.222*G5) -> 5.9856 | H53: =IF(H5="","",1.5456+0.222*H5) -> 7.0956

Sheet Validation test
A1: =IF(NOW()>Data!B2,0,1) -> 1
B2: ='Emission data'!B2 -> Installatie/eenheid | C2: =IF($A1=1,CONCATENATE(INDEX(Data!F5:F12,'Emission data'!E3),IF('Emission data'!E2="","",CONCATENATE(" : ",'Emission data'!E2))),"") -> KETEL
B3: ='Emission data'!B6 -> Elektrisch rendement | C3: =IF($A1=1,IF('Emission data'!E6=0,"--",'Emission data'!E6/100),"") -> -- | E3: =IF(A1=1,IF('Emission data'!E6=0,"",IF(OR(INDEX(Data!G5:G12,'Emission data'!E3)>100*'Validation test'!C3,INDEX(Data!H5:H12,'Emission data'!E3)<100*'Validation test'!C3),language!A7, "")),"") -> 
B4: =Data!A43 -> Gerapporteerde stoomproductie | E4: =IF(Data!C47>0,language!A7,IF(Data!C47=0,language!A8,"")) -> 
B5: ='Emission data'!B4 -> Bedrijfsvoering | C5: ='Emission data'!F4 -> 8760 | D5: =IF(C5="","",language!A67) -> uur/jaar | E5: =IF(AND($A1=1,C5<>""),IF(OR(C5>8760,C5<0),language!A7,""),"") -> 
B6: =Data!A49 -> Gerapporteerde bedrijfstijd | E6: =IF(Data!C53>0,language!A7,IF(Data!C53=0,language!A8,"")) -> 
B7: =language!A136 -> Gemiddelde belasting | C7: =IF($A1=1,IF('Emission data'!M23="","",'Emission data'!M23/100),"") -> 0 | E7: =IF($A1=1,IF(C7="","",IF(OR(C7>Data!C115,C7<Data!B115),language!A7,"")),"") -> Afwijkend van verwachtingswaarde
B8: =CONCATENATE(language!A135," ",language!A39,"-",LOWER(language!A56),language!A141) -> Gerapporteerde CO2-emissie in % van de theoretische waarde | C8: =IF(OR('Emission data'!M21=0,'Emission data'!M21=""),"",'Emission data'!J35/'Emission data'!M21) ->  | E8: =IF($A$1=1,IF(C8="","",IF(OR(C8>Data!C117,C8<Data!B117),language!$A$7,language!$A$8)),"") -> 
B9: =CONCATENATE(language!$A$138," ",language!A40,"-",language!$A$139) -> Emissie-eis NOx-concentratie | E9: =IF(Data!C62=0,language!A8,IF(Data!C62=1,language!A7,IF(Data!C62=2,language!A7,""))) -> 
B10: =CONCATENATE(language!$A$135," ",language!A40,"-",language!$A$139) -> Gerapporteerde NOx-concentratie | E10: =IF(Data!C71=0,language!A8,IF(Data!C71=1,language!A7,IF(Data!C71=2,language!A7,""))) -> 
B11: =CONCATENATE(language!$A$138," ",language!A38,"-",language!$A$139) -> Emissie-eis SO2-concentratie | E11: =IF(Data!C101=0,language!A8,IF(Data!C101=1,language!A7,IF(Data!C101=2,language!A7,""))) -> 
B12: =CONCATENATE(language!$A$135," ",language!A38,"-",language!$A$139) -> Gerapporteerde SO2-concentratie | E12: =IF(Data!C107=0,language!A8,IF(Data!C107=1,language!A7,IF(Data!C107=2,language!A7,""))) -> 
B13: =CONCATENATE(language!A135," ",language!A38,"-",LOWER(language!A56),language!A141) -> Gerapporteerde SO2-emissie in % van de theoretische waarde | C13: =IF('Emission data'!M24=0,"",'Emission data'!J32/('Emission data'!M24*1000)) ->  | E13: =IF($A$1=1,IF(C13="","",IF(OR(C13>Data!C119,C13<Data!B119),language!$A$7,"")),"") -> 
B14: =CONCATENATE(language!A138," ",Data!A80,"-",language!A139) -> Emissie-eis STOF-concentratie | E14: =IF(Data!C83=0,language!A8,IF(Data!C83=1,language!A7,IF(Data!C83=2,language!A7,""))) -> 
B15: =CONCATENATE(language!A135," ",Data!A80,"-",language!A139) -> Gerapporteerde STOF-concentratie | E15: =IF(Data!C89=0,language!A8,IF(Data!C89=1,language!A7,IF(Data!C89=2,language!A7,""))) -> 
B16: =CONCATENATE(language!A135," ",Data!A92) -> Gerapporteerde STOF-emissie | E16: =IF(Data!C95=0,language!A8,IF(Data!C95>0,language!A7, "")) -> 
B17: =CONCATENATE(language!A219," ",LOWER(language!A54)) -> Temperatuur rookgas | C17: =IF('Emission data'!E37="","",'Emission data'!E37) ->  | D17: =IF(ISNUMBER(C17),"°C","") ->  | E17: =IF(AND(C17<>"",'Emission data'!K36<>"",'Emission data'!E37<'Emission data'!K36),language!A7,"") -> 
B18: =language!A221 -> Dwarsdoorsnede afgaskanaal | E18: =IF(Data!C125=0,language!A8,IF(Data!C125>0,language!A7, "")) -> 

Sheet Data (hidden)
A1: Version | B1: 2024
A2: =language!A97 -> Geldigheid | B2: 2026-04-01
A3: Nu nog geldig | B3: =IF(NOW()>Data!B2,0,1) -> 1
A4: menu optie | B4: 0 | G4: =language!A111 -> Min rendement | H4: =language!A112 -> Max rendement | K4: 2 | M4: bij O2
A5: =language!A26 -> Bedrijfsvoering | B5: =IF(OR(language!$A$99="",language!$A$100=""),"",CONCATENATE(IF('Emission data'!$H$4<>"",'Emission data'!H4,Data!C5)," ",UPPER(D5),IF('Emission data'!$H$4<>"","",CONCATENATE(" (7 ",LOWER(language!$A$99),"; 24 ",LOWER(language!$A$100),")")))) -> 8760 UUR/JAAR (7 dagen/week; 24 uur/dag) | C5: =TRUNC(8760) -> 8760 | D5: =language!A67 -> uur/jaar | E5: =language!A102 -> Installatie type | F5: =language!A103 -> KETEL | G5: 0 | H5: 0 | J5: =language!A10 -> Taal | K5: =IF(language!A11="","",language!A11) -> ENGELS | M5: =IF('Emission data'!M22=0,"",CONCATENATE(" ",language!A94," ",'Emission data'!G34,"% ",language!A37)) -> 
B6: =IF(OR(language!$A$99="",language!$A$100=""),"",CONCATENATE(IF('Emission data'!$H$4<>"",'Emission data'!$H$4,Data!C6)," ",UPPER(D6),IF('Emission data'!$H$4<>"","",CONCATENATE(" (7 ",LOWER(language!$A$99),"; 16 ",LOWER(language!$A$100),")")))) -> 5840 UUR/JAAR (7 dagen/week; 16 uur/dag) | C6: =TRUNC(C5*2/3) -> 5840 | D6: =D5 -> uur/jaar | F6: =language!A104 -> KETEL MET STOOMTURBINE | G6: 38 | H6: 45 | K6: =IF(language!A12="","",language!A12) -> NEDERLANDS
B7: =IF(OR(language!$A$99="",language!$A$100=""),"",CONCATENATE(IF('Emission data'!$H$4<>"",'Emission data'!$H$4,Data!C7)," ",UPPER(D7),IF('Emission data'!$H$4<>"","",CONCATENATE(" (5 ",LOWER(language!$A$99),"; 16 ",LOWER(language!$A$100),")")))) -> 4171 UUR/JAAR (5 dagen/week; 16 uur/dag) | C7: =TRUNC(C6*5/7) -> 4171 | D7: =D6 -> uur/jaar | F7: =language!A105 -> PROCESFORNUIS | G7: 0 | H7: 0 | K7: =IF(language!A13="","",language!A13) -> POOLS
B8: =IF(OR(language!$A$99="",language!$A$100=""),"",CONCATENATE(IF('Emission data'!$H$4<>"",'Emission data'!$H$4,Data!C8)," ",UPPER(D8),IF('Emission data'!$H$4<>"","",CONCATENATE(" (5 ",LOWER(language!$A$99),"; 8 ",LOWER(language!$A$100),")")))) -> 2085 UUR/JAAR (5 dagen/week; 8 uur/dag) | C8: =TRUNC(C7/2) -> 2085 | D8: =D7 -> uur/jaar | F8: =language!A106 -> GASTURBINE | G8: 30 | H8: 40 | K8: =IF(language!A14="","",language!A14) -> TSJECHISCH
B9: =IF('Emission data'!H4<>"",CONCATENATE('Emission data'!H4," ",UPPER(language!A67)),CONCATENATE(UPPER(language!A101),IF(ISNUMBER(C9),CONCATENATE(" (",ROUND(C9,0)," ",UPPER(D9),")"),""))) -> STAND-BY | C9: =IF(OR('Emission data'!M22=0,'Emission data'!E5=0),"",(IF('Emission data'!E22="",0,'Emission data'!E22)+IF('Emission data'!G22="",0,'Emission data'!G22)+IF('Emission data'!I22="",0,'Emission data'!I22)+IF('Emission data'!K22="",0,'Emission data'!K22))*1000000/3600/'Emission data'!E5) ->  | D9: =D8 -> uur/jaar | F9: =language!A107 -> WKK GASTURBINE | G9: 50 | H9: 60 | K9: =IF(language!A15="","",language!A15) -> BULGAARS
F10: =language!A108 -> ZUIGERMOTOR | G10: 35 | H10: 45 | K10: =IF(language!A16="","",language!A16) -> KROATISCH
F11: =language!A109 -> WKK ZUIGERMOTOR | G11: 35 | H11: 60 | K11: =IF(language!A17="","",language!A17) -> DUITS
F12: =language!A110 -> ANDERS | G12: 0 | H12: 0 | K12: =IF(language!A18="","",language!A18) -> FRANS
K13: =IF(language!A19="","",language!A19) -> 
A14: =language!A113 -> rij | B14: 1 | C14: 3 | D14: 4 | E14: 7 | F14: 9 | G14: 16 | H14: 4a | I14: 9a | J14: 15a | L14: 13 | M14: 17 | N14: 14 | O14: 8 | P14: 10 | Q14: 12
A15: =language!A114 -> kolom | B15: =language!A115 -> brandstoftype | C15: =language!A117 -> % fossiel | D15: =language!A118 -> Onderste verbrandingswaarde | E15: =language!A119 -> Berekeningsmethode | F15: CO2 | G15: =language!A120 -> Stoichiometrisch rookgasvolume Rgv | H15: =language!A121 -> onzekerheid | I15: =H15 -> onzekerheid | J15: =I15 -> onzekerheid | K15: =language!A122 -> eenheid | L15: SO2 | M15: =CONCATENATE('Gaseous fuels'!B18," ",'Gaseous fuels'!B16) -> nat Stoichiometrisch rookgasvolume | N15: ='Gaseous fuels'!B15 -> Stoichiometrisch luchtverbruik | O15: ='Gaseous fuels'!B9 -> Koolstofdioxide | P15: ='Gaseous fuels'!B11 -> Waterdamp | Q15: SO2
B16: =language!A116 -> GEEN | E16: ""
A17: 1 | B17: =IF(INDEX('Gaseous fuels'!$D$2:$H$90,B$14,$A17)="","",INDEX('Gaseous fuels'!$D$2:$H$90,B$14,$A17)) -> AARDGAS | C17: =IF(INDEX('Gaseous fuels'!$D$2:$H$90,C$14,$A17)="","",INDEX('Gaseous fuels'!$D$2:$H$90,C$14,$A17)) -> 100 | D17: =IF(INDEX('Gaseous fuels'!$D$2:$H$90,D$14,$A17)="","",INDEX('Gaseous fuels'!$D$2:$H$90,D$14,$A17)) -> 31.66854617 | E17: =IF(INDEX('Gaseous fuels'!$D$2:$H$90,E$14,$A17)="","",INDEX('Gaseous fuels'!$D$2:$H$90,E$14,$A17)) -> samenstelling | F17: =IF(INDEX('Gaseous fuels'!$D$2:$H$90,F$14,$A17)="","",INDEX('Gaseous fuels'!$D$2:$H$90,F$14,$A17)) -> 56.02910532 | G17: =IF(INDEX('Gaseous fuels'!$D$2:$H$90,G$14,$A17)="","",INDEX('Gaseous fuels'!$D$2:$H$90,G$14,$A17)) -> 7.703302875 | H17: =IF(LEFT(E17,3)<>"",0.01,"") -> 0.01 | I17: =IF(LEFT(E17,3)="sam",0.02,IF(E17="","",0.1)) -> 0.02 | J17: =IF(LEFT(E17,3)="sam",0.01,IF(E17="","",0.02)) -> 0.01 | K17: Nm3 | L17: =IF(INDEX('Gaseous fuels'!$D$2:$H$90,L$14,$A17)="","",INDEX('Gaseous fuels'!$D$2:$H$90,L$14,$A17)) -> 0 | M17: =IF(INDEX('Gaseous fuels'!$D$2:$H$90,M$14,$A17)="","",INDEX('Gaseous fuels'!$D$2:$H$90,M$14,$A17)) -> 9.386709315 | N17: =IF(INDEX('Gaseous fuels'!$D$2:$H$90,N$14,$A17)="","",INDEX('Gaseous fuels'!$D$2:$H$90,N$14,$A17)) -> 8.428759914 | O17: =IF(INDEX('Gaseous fuels'!$D$2:$H$90,O$14,$A17)="","",INDEX('Gaseous fuels'!$D$2:$H$90,O$14,$A17)) -> 0.8969047091 | P17: =IF(INDEX('Gaseous fuels'!$D$2:$H$90,P$14,$A17)="","",INDEX('Gaseous fuels'!$D$2:$H$90,P$14,$A17)) -> 1.68340644 | Q17: =IF(INDEX('Gaseous fuels'!$D$2:$H$90,Q$14,$A17)="","",INDEX('Gaseous fuels'!$D$2:$H$90,Q$14,$A17)) -> 0
A18: 2 | B18: =IF(INDEX('Gaseous fuels'!$D$2:$H$90,B$14,$A18)="","",INDEX('Gaseous fuels'!$D$2:$H$90,B$14,$A18)) -> HC Gas | C18: =IF(INDEX('Gaseous fuels'!$D$2:$H$90,C$14,$A18)="","",INDEX('Gaseous fuels'!$D$2:$H$90,C$14,$A18)) -> 100 | D18: =IF(INDEX('Gaseous fuels'!$D$2:$H$90,D$14,$A18)="","",INDEX('Gaseous fuels'!$D$2:$H$90,D$14,$A18)) -> 36.27167029 | E18: =IF(INDEX('Gaseous fuels'!$D$2:$H$90,E$14,$A18)="","",INDEX('Gaseous fuels'!$D$2:$H$90,E$14,$A18)) -> samenstelling | F18: =IF(INDEX('Gaseous fuels'!$D$2:$H$90,F$14,$A18)="","",INDEX('Gaseous fuels'!$D$2:$H$90,F$14,$A18)) -> 56.74473321 | G18: =IF(INDEX('Gaseous fuels'!$D$2:$H$90,G$14,$A18)="","",INDEX('Gaseous fuels'!$D$2:$H$90,G$14,$A18)) -> 8.698378451 | H18: =IF(LEFT(E18,3)<>"",0.01,"") -> 0.01 | I18: =IF(LEFT(E18,3)="sam",0.02,IF(E18="","",0.1)) -> 0.02 | J18: =IF(LEFT(E18,3)="sam",0.01,IF(E18="","",0.02)) -> 0.01 | K18: Nm3 | L18: =IF(INDEX('Gaseous fuels'!$D$2:$H$90,L$14,$A18)="","",INDEX('Gaseous fuels'!$D$2:$H$90,L$14,$A18)) -> 0 | M18: =IF(INDEX('Gaseous fuels'!$D$2:$H$90,M$14,$A18)="","",INDEX('Gaseous fuels'!$D$2:$H$90,M$14,$A18)) -> 10.61172202 | N18: =IF(INDEX('Gaseous fuels'!$D$2:$H$90,N$14,$A18)="","",INDEX('Gaseous fuels'!$D$2:$H$90,N$14,$A18)) -> 9.647947682 | O18: =IF(INDEX('Gaseous fuels'!$D$2:$H$90,O$14,$A18)="","",INDEX('Gaseous fuels'!$D$2:$H$90,O$14,$A18)) -> 1.040393437 | P18: =IF(INDEX('Gaseous fuels'!$D$2:$H$90,P$14,$A18)="","",INDEX('Gaseous fuels'!$D$2:$H$90,P$14,$A18)) -> 1.913343565 | Q18: =IF(INDEX('Gaseous fuels'!$D$2:$H$90,Q$14,$A18)="","",INDEX('Gaseous fuels'!$D$2:$H$90,Q$14,$A18)) -> 0
A19: 3 | B19: =IF(INDEX('Gaseous fuels'!$D$2:$H$90,B$14,$A19)="","",INDEX('Gaseous fuels'!$D$2:$H$90,B$14,$A19)) -> GF1 | C19: =IF(INDEX('Gaseous fuels'!$D$2:$H$90,C$14,$A19)="","",INDEX('Gaseous fuels'!$D$2:$H$90,C$14,$A19)) -> 100 | D19: =IF(INDEX('Gaseous fuels'!$D$2:$H$90,D$14,$A19)="","",INDEX('Gaseous fuels'!$D$2:$H$90,D$14,$A19)) -> 28 | E19: =IF(INDEX('Gaseous fuels'!$D$2:$H$90,E$14,$A19)="","",INDEX('Gaseous fuels'!$D$2:$H$90,E$14,$A19)) -> DIN1942 | F19: =IF(INDEX('Gaseous fuels'!$D$2:$H$90,F$14,$A19)="","",INDEX('Gaseous fuels'!$D$2:$H$90,F$14,$A19)) -> 60.97167755 | G19: =IF(INDEX('Gaseous fuels'!$D$2:$H$90,G$14,$A19)="","",INDEX('Gaseous fuels'!$D$2:$H$90,G$14,$A19)) -> 6.7622 | H19: =IF(LEFT(E19,3)<>"",0.01,"") -> 0.01 | I19: 0.1 | J19: =IF(LEFT(E19,3)="sam",0.01,IF(E19="","",0.02)) -> 0.02 | K19: Nm3 | L19: =IF(INDEX('Gaseous fuels'!$D$2:$H$90,L$14,$A19)="","",INDEX('Gaseous fuels'!$D$2:$H$90,L$14,$A19)) -> 0 | M19: =IF(INDEX('Gaseous fuels'!$D$2:$H$90,M$14,$A19)="","",INDEX('Gaseous fuels'!$D$2:$H$90,M$14,$A19)) -> 8.2971 | N19: =IF(INDEX('Gaseous fuels'!$D$2:$H$90,N$14,$A19)="","",INDEX('Gaseous fuels'!$D$2:$H$90,N$14,$A19)) -> 7.4607 | O19: =IF(INDEX('Gaseous fuels'!$D$2:$H$90,O$14,$A19)="","",INDEX('Gaseous fuels'!$D$2:$H$90,O$14,$A19)) -> 0.86296 | P19: =IF(INDEX('Gaseous fuels'!$D$2:$H$90,P$14,$A19)="","",INDEX('Gaseous fuels'!$D$2:$H$90,P$14,$A19)) -> 1.624 | Q19: =IF(INDEX('Gaseous fuels'!$D$2:$H$90,Q$14,$A19)="","",INDEX('Gaseous fuels'!$D$2:$H$90,Q$14,$A19)) -> 0
A20: 4 | B20: =IF(INDEX('Gaseous fuels'!$D$2:$H$90,B$14,$A20)="","",INDEX('Gaseous fuels'!$D$2:$H$90,B$14,$A20)) -> GF 2 | C20: =IF(INDEX('Gaseous fuels'!$D$2:$H$90,C$14,$A20)="","",INDEX('Gaseous fuels'!$D$2:$H$90,C$14,$A20)) -> 100 | D20: =IF(INDEX('Gaseous fuels'!$D$2:$H$90,D$14,$A20)="","",INDEX('Gaseous fuels'!$D$2:$H$90,D$14,$A20)) -> 35 | E20: =IF(INDEX('Gaseous fuels'!$D$2:$H$90,E$14,$A20)="","",INDEX('Gaseous fuels'!$D$2:$H$90,E$14,$A20)) -> DIN1942 | F20: =IF(INDEX('Gaseous fuels'!$D$2:$H$90,F$14,$A20)="","",INDEX('Gaseous fuels'!$D$2:$H$90,F$14,$A20)) -> 57.70745731 | G20: =IF(INDEX('Gaseous fuels'!$D$2:$H$90,G$14,$A20)="","",INDEX('Gaseous fuels'!$D$2:$H$90,G$14,$A20)) -> 8.403 | H20: =IF(LEFT(E20,3)<>"",0.01,"") -> 0.01 | I20: 0.1 | J20: =IF(LEFT(E20,3)="sam",0.01,IF(E20="","",0.02)) -> 0.02 | K20: Nm3 | L20: =IF(INDEX('Gaseous fuels'!$D$2:$H$90,L$14,$A20)="","",INDEX('Gaseous fuels'!$D$2:$H$90,L$14,$A20)) -> 0 | M20: =IF(INDEX('Gaseous fuels'!$D$2:$H$90,M$14,$A20)="","",INDEX('Gaseous fuels'!$D$2:$H$90,M$14,$A20)) -> 10.3411 | N20: =IF(INDEX('Gaseous fuels'!$D$2:$H$90,N$14,$A20)="","",INDEX('Gaseous fuels'!$D$2:$H$90,N$14,$A20)) -> 9.336 | O20: =IF(INDEX('Gaseous fuels'!$D$2:$H$90,O$14,$A20)="","",INDEX('Gaseous fuels'!$D$2:$H$90,O$14,$A20)) -> 1.02095 | P20: =IF(INDEX('Gaseous fuels'!$D$2:$H$90,P$14,$A20)="","",INDEX('Gaseous fuels'!$D$2:$H$90,P$14,$A20)) -> 2.0496 | Q20: =IF(INDEX('Gaseous fuels'!$D$2:$H$90,Q$14,$A20)="","",INDEX('Gaseous fuels'!$D$2:$H$90,Q$14,$A20)) -> 0
A21: 5 | B21: =IF(INDEX('Gaseous fuels'!$D$2:$H$90,B$14,$A21)="","",INDEX('Gaseous fuels'!$D$2:$H$90,B$14,$A21)) -> GF 3 | C21: =IF(INDEX('Gaseous fuels'!$D$2:$H$90,C$14,$A21)="","",INDEX('Gaseous fuels'!$D$2:$H$90,C$14,$A21)) -> 100 | D21: =IF(INDEX('Gaseous fuels'!$D$2:$H$90,D$14,$A21)="","",INDEX('Gaseous fuels'!$D$2:$H$90,D$14,$A21)) -> 40 | E21: =IF(INDEX('Gaseous fuels'!$D$2:$H$90,E$14,$A21)="","",INDEX('Gaseous fuels'!$D$2:$H$90,E$14,$A21)) -> DIN1942 | F21: =IF(INDEX('Gaseous fuels'!$D$2:$H$90,F$14,$A21)="","",INDEX('Gaseous fuels'!$D$2:$H$90,F$14,$A21)) -> 56.07534718 | G21: =IF(INDEX('Gaseous fuels'!$D$2:$H$90,G$14,$A21)="","",INDEX('Gaseous fuels'!$D$2:$H$90,G$14,$A21)) -> 9.575 | H21: =IF(LEFT(E21,3)<>"",0.01,"") -> 0.01 | I21: 0.1 | J21: =IF(LEFT(E21,3)="sam",0.01,IF(E21="","",0.02)) -> 0.02 | K21: Nm3 | L21: =IF(INDEX('Gaseous fuels'!$D$2:$H$90,L$14,$A21)="","",INDEX('Gaseous fuels'!$D$2:$H$90,L$14,$A21)) -> 0 | M21: =IF(INDEX('Gaseous fuels'!$D$2:$H$90,M$14,$A21)="","",INDEX('Gaseous fuels'!$D$2:$H$90,M$14,$A21)) -> 11.8011 | N21: =IF(INDEX('Gaseous fuels'!$D$2:$H$90,N$14,$A21)="","",INDEX('Gaseous fuels'!$D$2:$H$90,N$14,$A21)) -> 10.6755 | O21: =IF(INDEX('Gaseous fuels'!$D$2:$H$90,O$14,$A21)="","",INDEX('Gaseous fuels'!$D$2:$H$90,O$14,$A21)) -> 1.1338 | P21: =IF(INDEX('Gaseous fuels'!$D$2:$H$90,P$14,$A21)="","",INDEX('Gaseous fuels'!$D$2:$H$90,P$14,$A21)) -> 2.3536 | Q21: =IF(INDEX('Gaseous fuels'!$D$2:$H$90,Q$14,$A21)="","",INDEX('Gaseous fuels'!$D$2:$H$90,Q$14,$A21)) -> 0
A22: 1 | B22: =IF(INDEX('Liquid fuels'!$D$2:$H$51,B$14,$A22)="","",INDEX('Liquid fuels'!$D$2:$H$101,B$14,$A22)) -> DIESEL | C22: =IF(INDEX('Liquid fuels'!$D$2:$H$51,C$14,$A22)="","",INDEX('Liquid fuels'!$D$2:$H$101,C$14,$A22)) -> 100 | D22: =IF(INDEX('Liquid fuels'!$D$2:$H$51,D$14,$A22)="","",INDEX('Liquid fuels'!$D$2:$H$101,D$14,$A22)) -> 42.48 | E22: =IF(INDEX('Liquid fuels'!$D$2:$H$51,E$14,$A22)="","",INDEX('Liquid fuels'!$D$2:$H$101,E$14,$A22)) -> samenstelling | F22: =IF(INDEX('Liquid fuels'!$D$2:$H$51,F$14,$A22)="","",INDEX('Liquid fuels'!$D$2:$H$101,F$14,$A22)) -> 74.3520566 | G22: =IF(INDEX('Liquid fuels'!$D$2:$H$51,G$14,$A22)="","",INDEX('Liquid fuels'!$D$2:$H$101,G$14,$A22)) -> 10.40119358 | H22: =IF(LEFT(E22,3)<>"",0.02,"") -> 0.02 | I22: 0.02 | J22: =IF(LEFT(E22,3)="sam",0.02,IF(E22="","",0.05)) -> 0.02 | K22: kg | L22: =IF(INDEX('Liquid fuels'!$D$2:$H$51,L$14,$A22)="","",INDEX('Liquid fuels'!$D$2:$H$101,L$14,$A22)) -> 0.08458716178 | M22: =IF(INDEX('Liquid fuels'!$D$2:$H$51,M$14,$A22)="","",INDEX('Liquid fuels'!$D$2:$H$101,M$14,$A22)) -> 11.80678888 | N22: =IF(INDEX('Liquid fuels'!$D$2:$H$51,N$14,$A22)="","",INDEX('Liquid fuels'!$D$2:$H$101,N$14,$A22)) -> 11.1364796 | O22: =IF(INDEX('Liquid fuels'!$D$2:$H$51,O$14,$A22)="","",INDEX('Liquid fuels'!$D$2:$H$101,O$14,$A22)) -> 1.596548014 | P22: =IF(INDEX('Liquid fuels'!$D$2:$H$51,P$14,$A22)="","",INDEX('Liquid fuels'!$D$2:$H$101,P$14,$A22)) -> 1.405595297 | Q22: =IF(INDEX('Liquid fuels'!$D$2:$H$51,Q$14,$A22)="","",INDEX('Liquid fuels'!$D$2:$H$101,Q$14,$A22)) -> 0.001257641921
A23: 2 | B23: =IF(INDEX('Liquid fuels'!$D$2:$H$51,B$14,$A23)="","",INDEX('Liquid fuels'!$D$2:$H$101,B$14,$A23)) -> HFO | C23: =IF(INDEX('Liquid fuels'!$D$2:$H$51,C$14,$A23)="","",INDEX('Liquid fuels'!$D$2:$H$101,C$14,$A23)) -> 100 | D23: =IF(INDEX('Liquid fuels'!$D$2:$H$51,D$14,$A23)="","",INDEX('Liquid fuels'!$D$2:$H$101,D$14,$A23)) -> 40.23 | E23: =IF(INDEX('Liquid fuels'!$D$2:$H$51,E$14,$A23)="","",INDEX('Liquid fuels'!$D$2:$H$101,E$14,$A23)) -> samenstelling | F23: =IF(INDEX('Liquid fuels'!$D$2:$H$51,F$14,$A23)="","",INDEX('Liquid fuels'!$D$2:$H$101,F$14,$A23)) -> 77.9457567 | G23: =IF(INDEX('Liquid fuels'!$D$2:$H$51,G$14,$A23)="","",INDEX('Liquid fuels'!$D$2:$H$101,G$14,$A23)) -> 9.894888556 | H23: =IF(LEFT(E23,3)<>"",0.02,"") -> 0.02 | I23: 0.02 | J23: =IF(LEFT(E23,3)="sam",0.02,IF(E23="","",0.05)) -> 0.02 | K23: kg | L23: =IF(INDEX('Liquid fuels'!$D$2:$H$51,L$14,$A23)="","",INDEX('Liquid fuels'!$D$2:$H$101,L$14,$A23)) -> 1.652382767 | M23: =IF(INDEX('Liquid fuels'!$D$2:$H$51,M$14,$A23)="","",INDEX('Liquid fuels'!$D$2:$H$101,M$14,$A23)) -> 11.01721885 | N23: =IF(INDEX('Liquid fuels'!$D$2:$H$51,N$14,$A23)="","",INDEX('Liquid fuels'!$D$2:$H$101,N$14,$A23)) -> 10.48263816 | O23: =IF(INDEX('Liquid fuels'!$D$2:$H$51,O$14,$A23)="","",INDEX('Liquid fuels'!$D$2:$H$101,O$14,$A23)) -> 1.585064722 | P23: =IF(INDEX('Liquid fuels'!$D$2:$H$51,P$14,$A23)="","",INDEX('Liquid fuels'!$D$2:$H$101,P$14,$A23)) -> 1.122330291 | Q23: =IF(INDEX('Liquid fuels'!$D$2:$H$51,Q$14,$A23)="","",INDEX('Liquid fuels'!$D$2:$H$101,Q$14,$A23)) -> 0.02326637555
A24: 3 | B24: =IF(INDEX('Liquid fuels'!$D$2:$H$51,B$14,$A24)="","",INDEX('Liquid fuels'!$D$2:$H$101,B$14,$A24)) -> LFO | C24: =IF(INDEX('Liquid fuels'!$D$2:$H$51,C$14,$A24)="","",INDEX('Liquid fuels'!$D$2:$H$101,C$14,$A24)) -> 100 | D24: =IF(INDEX('Liquid fuels'!$D$2:$H$51,D$14,$A24)="","",INDEX('Liquid fuels'!$D$2:$H$101,D$14,$A24)) -> 42.65 | E24: =IF(INDEX('Liquid fuels'!$D$2:$H$51,E$14,$A24)="","",INDEX('Liquid fuels'!$D$2:$H$101,E$14,$A24)) -> samenstelling | F24: =IF(INDEX('Liquid fuels'!$D$2:$H$51,F$14,$A24)="","",INDEX('Liquid fuels'!$D$2:$H$101,F$14,$A24)) -> 74.15878813 | G24: =IF(INDEX('Liquid fuels'!$D$2:$H$51,G$14,$A24)="","",INDEX('Liquid fuels'!$D$2:$H$101,G$14,$A24)) -> 10.47816653 | H24: 0.02 | I24: 0.02 | J24: =IF(LEFT(E24,3)="sam",0.02,IF(E24="","",0.05)) -> 0.02 | K24: kg | L24: =IF(INDEX('Liquid fuels'!$D$2:$H$51,L$14,$A24)="","",INDEX('Liquid fuels'!$D$2:$H$101,L$14,$A24)) -> 0.07956944738 | M24: =IF(INDEX('Liquid fuels'!$D$2:$H$51,M$14,$A24)="","",INDEX('Liquid fuels'!$D$2:$H$101,M$14,$A24)) -> 11.91273211 | N24: =IF(INDEX('Liquid fuels'!$D$2:$H$51,N$14,$A24)="","",INDEX('Liquid fuels'!$D$2:$H$101,N$14,$A24)) -> 11.23112988 | O24: =IF(INDEX('Liquid fuels'!$D$2:$H$51,O$14,$A24)="","",INDEX('Liquid fuels'!$D$2:$H$101,O$14,$A24)) -> 1.598770587 | P24: =IF(INDEX('Liquid fuels'!$D$2:$H$51,P$14,$A24)="","",INDEX('Liquid fuels'!$D$2:$H$101,P$14,$A24)) -> 1.434565582 | Q24: =IF(INDEX('Liquid fuels'!$D$2:$H$51,Q$14,$A24)="","",INDEX('Liquid fuels'!$D$2:$H$101,Q$14,$A24)) -> 0.001187772926
A25: 4 | B25: =IF(INDEX('Liquid fuels'!$D$2:$H$51,B$14,$A25)="","",INDEX('Liquid fuels'!$D$2:$H$101,B$14,$A25)) -> LF1 | C25: =IF(INDEX('Liquid fuels'!$D$2:$H$51,C$14,$A25)="","",INDEX('Liquid fuels'!$D$2:$H$101,C$14,$A25)) -> 100 | D25: =IF(INDEX('Liquid fuels'!$D$2:$H$51,D$14,$A25)="","",INDEX('Liquid fuels'!$D$2:$H$101,D$14,$A25)) -> 41 | E25: =IF(INDEX('Liquid fuels'!$D$2:$H$51,E$14,$A25)="","",INDEX('Liquid fuels'!$D$2:$H$101,E$14,$A25)) -> DIN1942 | F25: =IF(INDEX('Liquid fuels'!$D$2:$H$51,F$14,$A25)="","",INDEX('Liquid fuels'!$D$2:$H$101,F$14,$A25)) -> 75.94906843 | G25: =IF(INDEX('Liquid fuels'!$D$2:$H$51,G$14,$A25)="","",INDEX('Liquid fuels'!$D$2:$H$101,G$14,$A25)) -> 9.9818 | H25: 0.02 | I25: 0.1 | J25: =IF(LEFT(E25,3)="sam",0.02,IF(E25="","",0.05)) -> 0.05 | K25: kg | L25: =IF(INDEX('Liquid fuels'!$D$2:$H$51,L$14,$A25)="","",INDEX('Liquid fuels'!$D$2:$H$101,L$14,$A25)) -> 0 | M25: =IF(INDEX('Liquid fuels'!$D$2:$H$51,M$14,$A25)="","",INDEX('Liquid fuels'!$D$2:$H$101,M$14,$A25)) -> 11.3374 | N25: =IF(INDEX('Liquid fuels'!$D$2:$H$51,N$14,$A25)="","",INDEX('Liquid fuels'!$D$2:$H$101,N$14,$A25)) -> 10.6364 | O25: =IF(INDEX('Liquid fuels'!$D$2:$H$51,O$14,$A25)="","",INDEX('Liquid fuels'!$D$2:$H$101,O$14,$A25)) -> 1.574022 | P25: =IF(INDEX('Liquid fuels'!$D$2:$H$51,P$14,$A25)="","",INDEX('Liquid fuels'!$D$2:$H$101,P$14,$A25)) -> 1.3556 | Q25: =IF(INDEX('Liquid fuels'!$D$2:$H$51,Q$14,$A25)="","",INDEX('Liquid fuels'!$D$2:$H$101,Q$14,$A25)) -> 0
A26: 5 | B26: =IF(INDEX('Liquid fuels'!$D$2:$H$51,B$14,$A26)="","",INDEX('Liquid fuels'!$D$2:$H$101,B$14,$A26)) -> LF 2 | C26: =IF(INDEX('Liquid fuels'!$D$2:$H$51,C$14,$A26)="","",INDEX('Liquid fuels'!$D$2:$H$101,C$14,$A26)) -> 100 | D26: =IF(INDEX('Liquid fuels'!$D$2:$H$51,D$14,$A26)="","",INDEX('Liquid fuels'!$D$2:$H$101,D$14,$A26)) -> 45 | E26: =IF(INDEX('Liquid fuels'!$D$2:$H$51,E$14,$A26)="","",INDEX('Liquid fuels'!$D$2:$H$101,E$14,$A26)) -> DIN1942 | F26: =IF(INDEX('Liquid fuels'!$D$2:$H$51,F$14,$A26)="","",INDEX('Liquid fuels'!$D$2:$H$101,F$14,$A26)) -> 70.84083315 | G26: =IF(INDEX('Liquid fuels'!$D$2:$H$51,G$14,$A26)="","",INDEX('Liquid fuels'!$D$2:$H$101,G$14,$A26)) -> 10.865 | H26: 0.02 | I26: 0.1 | J26: =IF(LEFT(E26,3)="sam",0.02,IF(E26="","",0.05)) -> 0.05 | K26: kg | L26: =IF(INDEX('Liquid fuels'!$D$2:$H$51,L$14,$A26)="","",INDEX('Liquid fuels'!$D$2:$H$101,L$14,$A26)) -> 0 | M26: =IF(INDEX('Liquid fuels'!$D$2:$H$51,M$14,$A26)="","",INDEX('Liquid fuels'!$D$2:$H$101,M$14,$A26)) -> 12.5878 | N26: =IF(INDEX('Liquid fuels'!$D$2:$H$51,N$14,$A26)="","",INDEX('Liquid fuels'!$D$2:$H$101,N$14,$A26)) -> 11.7064 | O26: =IF(INDEX('Liquid fuels'!$D$2:$H$51,O$14,$A26)="","",INDEX('Liquid fuels'!$D$2:$H$101,O$14,$A26)) -> 1.61139 | P26: =IF(INDEX('Liquid fuels'!$D$2:$H$51,P$14,$A26)="","",INDEX('Liquid fuels'!$D$2:$H$101,P$14,$A26)) -> 1.7228 | Q26: =IF(INDEX('Liquid fuels'!$D$2:$H$51,Q$14,$A26)="","",INDEX('Liquid fuels'!$D$2:$H$101,Q$14,$A26)) -> 0
A27: 1 | B27: =IF(INDEX('Solid fuels'!$D$2:$H$153,B$14,$A27)="","",INDEX('Solid fuels'!$D$2:$H$102,B$14,$A27)) -> KOLEN | C27: =IF(INDEX('Solid fuels'!$D$2:$H$153,C$14,$A27)="","",INDEX('Solid fuels'!$D$2:$H$102,C$14,$A27)) -> 100 | D27: =IF(INDEX('Solid fuels'!$D$2:$H$153,D$14,$A27)="","",INDEX('Solid fuels'!$D$2:$H$102,D$14,$A27)) -> 25.87 | E27: =IF(INDEX('Solid fuels'!$D$2:$H$153,E$14,$A27)="","",INDEX('Solid fuels'!$D$2:$H$102,E$14,$A27)) -> samenstelling | F27: =IF(INDEX('Solid fuels'!$D$2:$H$153,F$14,$A27)="","",INDEX('Solid fuels'!$D$2:$H$102,F$14,$A27)) -> 95.9561561 | G27: =IF(INDEX('Solid fuels'!$D$2:$H$153,G$14,$A27)="","",INDEX('Solid fuels'!$D$2:$H$102,G$14,$A27)) -> 6.8011773 | H27: 0.02 | I27: 0.02 | J27: =IF(LEFT(E27,3)="sam",0.04,IF(E27="","",0.07)) -> 0.04 | K27: kg | L27: =IF(INDEX('Solid fuels'!$D$2:$H$153,L$14,$A27)="","",INDEX('Solid fuels'!$D$2:$H$102,L$14,$A27)) -> 0.7083741564 | M27: =IF(INDEX('Solid fuels'!$D$2:$H$153,M$14,$A27)="","",INDEX('Solid fuels'!$D$2:$H$102,M$14,$A27)) -> 7.362571427 | N27: =IF(INDEX('Solid fuels'!$D$2:$H$153,N$14,$A27)="","",INDEX('Solid fuels'!$D$2:$H$102,N$14,$A27)) -> 6.994247869 | O27: =IF(INDEX('Solid fuels'!$D$2:$H$153,O$14,$A27)="","",INDEX('Solid fuels'!$D$2:$H$102,O$14,$A27)) -> 1.254797836 | P27: =IF(INDEX('Solid fuels'!$D$2:$H$153,P$14,$A27)="","",INDEX('Solid fuels'!$D$2:$H$102,P$14,$A27)) -> 0.5613941267 | Q27: =IF(INDEX('Solid fuels'!$D$2:$H$153,Q$14,$A27)="","",INDEX('Solid fuels'!$D$2:$H$102,Q$14,$A27)) -> 0.006413973799
A28: 2 | B28: =IF(INDEX('Solid fuels'!$D$2:$H$153,B$14,$A28)="","",INDEX('Solid fuels'!$D$2:$H$102,B$14,$A28)) -> SF 1 | C28: =IF(INDEX('Solid fuels'!$D$2:$H$153,C$14,$A28)="","",INDEX('Solid fuels'!$D$2:$H$102,C$14,$A28)) -> 100 | D28: =IF(INDEX('Solid fuels'!$D$2:$H$153,D$14,$A28)="","",INDEX('Solid fuels'!$D$2:$H$102,D$14,$A28)) -> 10 | E28: =IF(INDEX('Solid fuels'!$D$2:$H$153,E$14,$A28)="","",INDEX('Solid fuels'!$D$2:$H$102,E$14,$A28)) -> DIN1942 | F28: =IF(INDEX('Solid fuels'!$D$2:$H$153,F$14,$A28)="","",INDEX('Solid fuels'!$D$2:$H$102,F$14,$A28)) -> 107.1455567 | G28: =IF(INDEX('Solid fuels'!$D$2:$H$153,G$14,$A28)="","",INDEX('Solid fuels'!$D$2:$H$102,G$14,$A28)) -> 2.836 | H28: 0.02 | I28: 0.1 | J28: =IF(LEFT(E28,3)="sam",0.04,IF(E28="","",0.07)) -> 0.07 | K28: kg | L28: =IF(INDEX('Solid fuels'!$D$2:$H$153,L$14,$A28)="","",INDEX('Solid fuels'!$D$2:$H$102,L$14,$A28)) -> 0 | M28: =IF(INDEX('Solid fuels'!$D$2:$H$153,M$14,$A28)="","",INDEX('Solid fuels'!$D$2:$H$102,M$14,$A28)) -> 3.7656 | N28: =IF(INDEX('Solid fuels'!$D$2:$H$153,N$14,$A28)="","",INDEX('Solid fuels'!$D$2:$H$102,N$14,$A28)) -> 2.9028 | O28: =IF(INDEX('Solid fuels'!$D$2:$H$153,O$14,$A28)="","",INDEX('Solid fuels'!$D$2:$H$102,O$14,$A28)) -> 0.5416 | P28: =IF(INDEX('Solid fuels'!$D$2:$H$153,P$14,$A28)="","",INDEX('Solid fuels'!$D$2:$H$102,P$14,$A28)) -> 0.93 | Q28: =IF(INDEX('Solid fuels'!$D$2:$H$153,Q$14,$A28)="","",INDEX('Solid fuels'!$D$2:$H$102,Q$14,$A28)) -> 0
A29: 3 | B29: =IF(INDEX('Solid fuels'!$D$2:$H$153,B$14,$A29)="","",INDEX('Solid fuels'!$D$2:$H$102,B$14,$A29)) -> SF 2 | C29: =IF(INDEX('Solid fuels'!$D$2:$H$153,C$14,$A29)="","",INDEX('Solid fuels'!$D$2:$H$102,C$14,$A29)) -> 50 | D29: =IF(INDEX('Solid fuels'!$D$2:$H$153,D$14,$A29)="","",INDEX('Solid fuels'!$D$2:$H$102,D$14,$A29)) -> 15 | E29: =IF(INDEX('Solid fuels'!$D$2:$H$153,E$14,$A29)="","",INDEX('Solid fuels'!$D$2:$H$102,E$14,$A29)) -> DIN1942 | F29: =IF(INDEX('Solid fuels'!$D$2:$H$153,F$14,$A29)="","",INDEX('Solid fuels'!$D$2:$H$102,F$14,$A29)) -> 100.4456622 | G29: =IF(INDEX('Solid fuels'!$D$2:$H$153,G$14,$A29)="","",INDEX('Solid fuels'!$D$2:$H$102,G$14,$A29)) -> 4.029 | H29: 0.02 | I29: 0.1 | J29: =IF(LEFT(E29,3)="sam",0.04,IF(E29="","",0.07)) -> 0.07 | K29: kg | L29: =IF(INDEX('Solid fuels'!$D$2:$H$153,L$14,$A29)="","",INDEX('Solid fuels'!$D$2:$H$102,L$14,$A29)) -> 0 | M29: =IF(INDEX('Solid fuels'!$D$2:$H$153,M$14,$A29)="","",INDEX('Solid fuels'!$D$2:$H$102,M$14,$A29)) -> 4.8756 | N29: =IF(INDEX('Solid fuels'!$D$2:$H$153,N$14,$A29)="","",INDEX('Solid fuels'!$D$2:$H$102,N$14,$A29)) -> 4.1338 | O29: =IF(INDEX('Solid fuels'!$D$2:$H$153,O$14,$A29)="","",INDEX('Solid fuels'!$D$2:$H$102,O$14,$A29)) -> 0.7616 | P29: =IF(INDEX('Solid fuels'!$D$2:$H$153,P$14,$A29)="","",INDEX('Solid fuels'!$D$2:$H$102,P$14,$A29)) -> 0.847 | Q29: =IF(INDEX('Solid fuels'!$D$2:$H$153,Q$14,$A29)="","",INDEX('Solid fuels'!$D$2:$H$102,Q$14,$A29)) -> 0
A30: 4 | B30: =IF(INDEX('Solid fuels'!$D$2:$H$153,B$14,$A30)="","",INDEX('Solid fuels'!$D$2:$H$102,B$14,$A30)) -> SF 3 | C30: =IF(INDEX('Solid fuels'!$D$2:$H$153,C$14,$A30)="","",INDEX('Solid fuels'!$D$2:$H$102,C$14,$A30)) -> 100 | D30: =IF(INDEX('Solid fuels'!$D$2:$H$153,D$14,$A30)="","",INDEX('Solid fuels'!$D$2:$H$102,D$14,$A30)) -> 20 | E30: =IF(INDEX('Solid fuels'!$D$2:$H$153,E$14,$A30)="","",INDEX('Solid fuels'!$D$2:$H$102,E$14,$A30)) -> DIN1942 | F30: =IF(INDEX('Solid fuels'!$D$2:$H$153,F$14,$A30)="","",INDEX('Solid fuels'!$D$2:$H$102,F$14,$A30)) -> 97.09571493 | G30: =IF(INDEX('Solid fuels'!$D$2:$H$153,G$14,$A30)="","",INDEX('Solid fuels'!$D$2:$H$102,G$14,$A30)) -> 5.222 | H30: 0.02 | I30: 0.1 | J30: =IF(LEFT(E30,3)="sam",0.04,IF(E30="","",0.07)) -> 0.07 | K30: kg | L30: =IF(INDEX('Solid fuels'!$D$2:$H$153,L$14,$A30)="","",INDEX('Solid fuels'!$D$2:$H$102,L$14,$A30)) -> 0 | M30: =IF(INDEX('Solid fuels'!$D$2:$H$153,M$14,$A30)="","",INDEX('Solid fuels'!$D$2:$H$102,M$14,$A30)) -> 5.9856 | N30: =IF(INDEX('Solid fuels'!$D$2:$H$153,N$14,$A30)="","",INDEX('Solid fuels'!$D$2:$H$102,N$14,$A30)) -> 5.3648 | O30: =IF(INDEX('Solid fuels'!$D$2:$H$153,O$14,$A30)="","",INDEX('Solid fuels'!$D$2:$H$102,O$14,$A30)) -> 0.9816 | P30: =IF(INDEX('Solid fuels'!$D$2:$H$153,P$14,$A30)="","",INDEX('Solid fuels'!$D$2:$H$102,P$14,$A30)) -> 0.764 | Q30: =IF(INDEX('Solid fuels'!$D$2:$H$153,Q$14,$A30)="","",INDEX('Solid fuels'!$D$2:$H$102,Q$14,$A30)) -> 0
A31: 5 | B31: =IF(INDEX('Solid fuels'!$D$2:$H$153,B$14,$A31)="","",INDEX('Solid fuels'!$D$2:$H$102,B$14,$A31)) -> SF 4 | C31: =IF(INDEX('Solid fuels'!$D$2:$H$153,C$14,$A31)="","",INDEX('Solid fuels'!$D$2:$H$102,C$14,$A31)) -> 100 | D31: =IF(INDEX('Solid fuels'!$D$2:$H$153,D$14,$A31)="","",INDEX('Solid fuels'!$D$2:$H$102,D$14,$A31)) -> 25 | E31: =IF(INDEX('Solid fuels'!$D$2:$H$153,E$14,$A31)="","",INDEX('Solid fuels'!$D$2:$H$102,E$14,$A31)) -> DIN1942 | F31: =IF(INDEX('Solid fuels'!$D$2:$H$153,F$14,$A31)="","",INDEX('Solid fuels'!$D$2:$H$102,F$14,$A31)) -> 95.08574659 | G31: =IF(INDEX('Solid fuels'!$D$2:$H$153,G$14,$A31)="","",INDEX('Solid fuels'!$D$2:$H$102,G$14,$A31)) -> 6.415 | H31: 0.02 | I31: 0.1 | J31: =IF(LEFT(E31,3)="sam",0.04,IF(E31="","",0.07)) -> 0.07 | K31: kg | L31: =IF(INDEX('Solid fuels'!$D$2:$H$153,L$14,$A31)="","",INDEX('Solid fuels'!$D$2:$H$102,L$14,$A31)) -> 0 | M31: =IF(INDEX('Solid fuels'!$D$2:$H$153,M$14,$A31)="","",INDEX('Solid fuels'!$D$2:$H$102,M$14,$A31)) -> 7.0956 | N31: =IF(INDEX('Solid fuels'!$D$2:$H$153,N$14,$A31)="","",INDEX('Solid fuels'!$D$2:$H$102,N$14,$A31)) -> 6.5958 | O31: =IF(INDEX('Solid fuels'!$D$2:$H$153,O$14,$A31)="","",INDEX('Solid fuels'!$D$2:$H$102,O$14,$A31)) -> 1.2016 | P31: =IF(INDEX('Solid fuels'!$D$2:$H$153,P$14,$A31)="","",INDEX('Solid fuels'!$D$2:$H$102,P$14,$A31)) -> 0.681 | Q31: =IF(INDEX('Solid fuels'!$D$2:$H$153,Q$14,$A31)="","",INDEX('Solid fuels'!$D$2:$H$102,Q$14,$A31)) -> 0
A33: =language!A123 -> VERBRANDING
A34: =language!A124 -> LEVERING
A36: =IF('Emission data'!$C$33="",language!A125,UPPER('Emission data'!$C$33)) -> HF | B36: =CONCATENATE(A36,"-",LOWER(language!$A$56)) -> HF-emissie
A37: =IF('Emission data'!$C$33="",language!A126,UPPER('Emission data'!$C$33)) -> HCl | B37: =CONCATENATE(A37,"-",LOWER(language!$A$56)) -> HCl-emissie
A38: =IF('Emission data'!$C$33="",language!A127,UPPER('Emission data'!$C$33)) -> CxHy | B38: =CONCATENATE(A38,"-",LOWER(language!$A$56)) -> CxHy-emissie
A39: =IF('Emission data'!$C$33="",language!A128,UPPER('Emission data'!$C$33)) -> CO | B39: =CONCATENATE(A39,"-",LOWER(language!$A$56)) -> CO-emissie
A40: =IF('Emission data'!$C$33="",language!A129,UPPER('Emission data'!$C$33)) -> STOF | B40: =CONCATENATE(A40,"-",LOWER(language!$A$56)) -> STOF-emissie
C42: =language!A130 -> Score | D42: min | E42: max
A43: =CONCATENATE(language!A135," ",LOWER(language!A131)) -> Gerapporteerde stoomproductie | B43: =IF($B3=1,IF(OR('Emission data'!E3=4,'Emission data'!E3=6),"--",language!A132),"--") -> niet relevant/onbekend | C43: -1 | D43: 0.8 | E43: 1
B44: =IF($B3=1,IF(OR('Emission data'!E8="",'Emission data'!E8=0),"--",CONCATENATE(ROUND('Emission data'!E8*D43,1),"-",ROUND('Emission data'!E8*E43,1)," ",language!A66)),"--") -> 62,6-78,3 ton/uur | C44: 0
B45: =IF($B3=1,IF(OR('Emission data'!E8="",'Emission data'!E8=0),"--",CONCATENATE("<",ROUND('Emission data'!E8*D43,1)," ",language!A66)),"--") -> <62,6 ton/uur | C45: =IF(B45="--",0,1) -> 1
B46: =IF($B3=1,IF(OR('Emission data'!E8="",'Emission data'!E8=0),"--",CONCATENATE(">",ROUND('Emission data'!E8*E43,1)," ",language!A66)),"--") -> >78,3 ton/uur | C46: =IF(B46="--",0,1) -> 1
A47: =language!A133 -> Keuze | B47: 1 | C47: =INDEX(C43:C46,B47) -> -1
C48: =C42 -> Score | D48: min | E48: max
A49: =CONCATENATE(language!A135," ",LOWER(language!A134)) -> Gerapporteerde bedrijfstijd | B49: =IF($B3=1,language!A132,"--") -> niet relevant/onbekend | C49: -1 | D49: 0.8 | E49: 1.2
B50: =IF(OR($B3=0,'Emission data'!F4=""),"--",CONCATENATE(ROUND('Emission data'!F4*IF('Emission data'!E4=5,1,D49),0),"-",ROUND('Emission data'!F4*IF('Emission data'!E4=5,E49,1),0)," ",language!A67)) -> 7008-8760 uur/jaar | C50: 0
B51: =IF(OR($B3=0,'Emission data'!F4=""),"--",CONCATENATE("< ",ROUND('Emission data'!F4*IF('Emission data'!E4=5,1,D49),0)," ",language!A67)) -> < 7008 uur/jaar | C51: =IF(B51="--",0,1) -> 1
B52: =IF(OR($B3=0,'Emission data'!F4=""),"--",CONCATENATE("> ",ROUND('Emission data'!F4*IF('Emission data'!E4=5,E49,1),0)," ",language!A67)) -> > 8760 uur/jaar | C52: =IF(B52="--",0,1) -> 1
A53: =A47 -> Keuze | B53: 1 | C53: =INDEX(C49:C52,B53) -> -1
C54: =C48 -> Score | D54: min | E54: max
A55: =CONCATENATE(language!A137," ",language!A40) -> Emissie-eis NOx | B55: =IF($B3=1,language!A132,"--") -> niet relevant/onbekend | C55: -1 | D55: 1 | E55: 1.5
B56: =IF(OR($B3=0,'Emission data'!G31="",'Emission data'!G31=0),"--",CONCATENATE(ROUND('Emission data'!G31*D55,0),"-",ROUND(E55*'Emission data'!G31,0)," ",language!A93," ",M5)) -> -- | C56: =IF(B56="--",-1,0) -> -1
B57: =IF(OR($B3=0,'Emission data'!G31="",'Emission data'!G31=0),"--",CONCATENATE("< ",ROUND('Emission data'!G31*D55,0)," ",language!A93," ",M5)) -> -- | C57: =IF(B57="--",-1,1) -> -1
B58: =IF(OR($B3=0,'Emission data'!G31="",'Emission data'!G31=0),"--",CONCATENATE(">",ROUND(E55*'Emission data'!G31,0)," ",language!A93," ",M5)) -> -- | C58: =IF(B58="--",-1,2) -> -1
B59: =IF(OR($B3=0,'Emission data'!M22=0,'Emission data'!L31=0,'Emission data'!L31=""),"--",CONCATENATE(ROUND('Emission data'!J31/'Emission data'!M22*D55,0),"-",ROUND(E55*'Emission data'!J31/'Emission data'!M22,0)," ",language!A96)) -> -- | C59: =IF(B59="--",-1,0) -> -1
B60: =IF(OR($B3=0,'Emission data'!M22=0,'Emission data'!L31=0,'Emission data'!L31=""),"--",CONCATENATE("< ",ROUND('Emission data'!J31/'Emission data'!M22*D55,0)," ",language!A96)) -> -- | C60: =IF(B60="--",-1,1) -> -1
B61: =IF(OR($B3=0,'Emission data'!M22=0,'Emission data'!L31=0,'Emission data'!L31=""),"--",CONCATENATE("> ",ROUND(E55*'Emission data'!J31/'Emission data'!M22,0)," ",language!A96)) -> -- | C61: =IF(B61="--",-1,2) -> -1
A62: =A53 -> Keuze | B62: 1 | C62: =INDEX(C55:C61,B62) -> -1
C63: =C54 -> Score | D63: min | E63: max
A64: ='Validation test'!B10 -> Gerapporteerde NOx-concentratie | B64: =IF($B3=1,language!A132,"--") -> niet relevant/onbekend | C64: -1 | D64: 0.8 | E64: 1.2
B65: =IF(OR($B3=0,'Emission data'!G31="",'Emission data'!G31=0),"--",CONCATENATE(ROUND('Emission data'!G31*D64,0),"-",ROUND(E64*'Emission data'!G31,0)," ",language!A93," ",M5)) -> -- | C65: =IF(B65="--",-1,0) -> -1
B66: =IF(OR($B3=0,'Emission data'!G31="",'Emission data'!G31=0),"--",CONCATENATE("< ",ROUND('Emission data'!G31*D64,0)," ",language!A93," ",M5)) -> -- | C66: =IF(B66="--",-1,1) -> -1
B67: =IF(OR($B3=0,'Emission data'!G31="",'Emission data'!G31=0),"--",CONCATENATE(">",ROUND(E64*'Emission data'!G31,0)," ",language!A93," ",M5)) -> -- | C67: =IF(B67="--",-1,2) -> -1
B68: =IF(OR($B3=0,'Emission data'!M22=0,'Emission data'!L31=0,'Emission data'!L31=""),"--",CONCATENATE(ROUND('Emission data'!J31/'Emission data'!M22*D64,0),"-",ROUND(E64*'Emission data'!J31/'Emission data'!M22,0)," ",language!A96)) -> -- | C68: =IF(B68="--",-1,0) -> -1
B69: =IF(OR($B3=0,'Emission data'!M22=0,'Emission data'!L31=0,'Emission data'!L31=""),"--",CONCATENATE("< ",ROUND('Emission data'!J31/'Emission data'!M22*D64,0)," ",language!A96)) -> -- | C69: =IF(B69="--",-1,1) -> -1
B70: =IF(OR($B3=0,'Emission data'!M22=0,'Emission data'!L31=0,'Emission data'!L31=""),"--",CONCATENATE("> ",ROUND(E64*'Emission data'!J31/'Emission data'!M22,0)," ",language!A96)) -> -- | C70: =IF(B70="--",-1,2) -> -1
A71: =A62 -> Keuze | B71: 1 | C71: =INDEX(C64:C70,B71) -> -1
C72: =C54 -> Score | D72: min | E72: max
A73: =CONCATENATE(language!A135," ",language!A40,"-",LOWER(language!A56)) -> Gerapporteerde NOx-emissie | B73: =IF($B3=1,language!A132,"--") -> niet relevant/onbekend | C73: -1 | D73: 0.8 | E73: 1.2
B74: =IF(OR($B3=0,D74="",D74=0),"--",CONCATENATE(ROUND(D75*D73,0),"-",ROUND(D75*E73,0)," ",E75)) -> -- | C74: =IF(B74="--",-1,0) -> -1 | D74: ='Emission data'!J$31 -> 0 | E74: ='Emission data'!J$34 -> 
B75: =IF(OR($B3=0,D74="",D74=0),"--",CONCATENATE("< ", ROUND(D75*D73,0)," ",E75)) -> -- | C75: =IF(B75="--",-1,1) -> -1 | D75: =IF(D74="","--",IF(D74>100000000,D74/1000000,IF(D74>100000,D74/1000,D74))) -> 0 | E75: =IF(D74>100000000,language!$A$90,IF(D74>100000,language!$A$89,language!$A$83)) -> kg/jaar
B76: =IF(OR($B3=0,D74="",D74=0),"--",CONCATENATE("> ", ROUND(D75*E73,0)," ",E75)) -> -- | C76: =IF(B76="--",-1,2) -> -1
A77: =A62 -> Keuze | B77: 1 | C77: =INDEX(C73:C76,B77) -> -1
C78: =C72 -> Score | D78: min | E78: max
A79: =CONCATENATE(language!A135," ",language!A137) -> Gerapporteerde Emissie-eis | B79: =IF($B3=1,language!A132,"--") -> niet relevant/onbekend | C79: -1 | D79: 1 | E79: 2
A80: =INDEX(A36:A40,'Emission data'!B33) -> STOF | B80: =IF(OR($B3=0,'Emission data'!G33="",'Emission data'!G33=0),"--",CONCATENATE(ROUND('Emission data'!G33*D79,0),"-",ROUND(E79*'Emission data'!G33,0)," ",language!A93," ",M5)) -> -- | C80: =IF(B80="--",-1,0) -> -1
B81: =IF(OR($B3=0,'Emission data'!G33="",'Emission data'!G33=0),"--",CONCATENATE("< ",ROUND('Emission data'!G33*D79,0)," ",language!A93," ",M5)) -> -- | C81: =IF(B81="--",-1,1) -> -1
B82: =IF(OR($B3=0,'Emission data'!G33="",'Emission data'!G33=0),"--",CONCATENATE(">",ROUND(E79*'Emission data'!G33,0)," ",language!A93," ",M5)) -> -- | C82: =IF(B82="--",-1,2) -> -1
A83: =A77 -> Keuze | B83: 1 | C83: =INDEX(C79:C82,B83) -> -1
C84: =C78 -> Score | D84: min | E84: max
A85: ='Validation test'!B15 -> Gerapporteerde STOF-concentratie | B85: =IF($B3=1,language!A132,"--") -> niet relevant/onbekend | C85: -1 | D85: 0.8 | E85: 1.2
B86: =IF(OR($B3=0,'Emission data'!G33="",'Emission data'!G33=0),"--",CONCATENATE(ROUND('Emission data'!G33*D85,0),"-",ROUND(E85*'Emission data'!G33,0)," ",language!A93," ",M5)) -> -- | C86: =IF(B86="--",-1,0) -> -1
B87: =IF(OR($B3=0,'Emission data'!G33="",'Emission data'!G33=0),"--",CONCATENATE("< ",ROUND('Emission data'!G33*D85,0)," ",language!A93," ",M5)) -> -- | C87: =IF(B87="--",-1,1) -> -1
B88: =IF(OR($B3=0,'Emission data'!G33="",'Emission data'!G33=0),"--",CONCATENATE(">",ROUND(E85*'Emission data'!G33,0)," ",language!A93," ",M5)) -> -- | C88: =IF(B88="--",-1,2) -> -1
A89: =A83 -> Keuze | B89: 1 | C89: =INDEX(C85:C88,B89) -> -1
C90: =C78 -> Score | D90: min | E90: max
A91: Reported | B91: =IF($B3=1,language!A132,"--") -> niet relevant/onbekend | C91: -1 | D91: 0.8 | E91: 1.2
A92: =INDEX(B36:B40,'Emission data'!B33) -> STOF-emissie | B92: =IF(OR($A21=0,D92="",D92=0),"--",CONCATENATE(ROUND(D93*D91,0),"-",ROUND(D93*E91,0)," ",E93)) -> -- | C92: =IF(B92="--",-1,0) -> -1 | D92: ='Emission data'!J$33 -> 0 | E92: ='Emission data'!F33 -> kg/jaar
B93: =IF(OR($A21=0,D92="",D92=0),"--",CONCATENATE("< ", ROUND(D93*D91,0)," ",E93)) -> -- | C93: =IF(B93="--",-1,1) -> -1 | D93: =IF(D92="","--",IF(D92>100000000,D92/1000000,IF(D92>100000,D92/1000,D92))) -> 0 | E93: =IF(D92>100000000,language!$A$90,IF(D92>100000,language!$A$89,language!$A$83)) -> kg/jaar
B94: =IF(OR($A21=0,D92="",D92=0),"--",CONCATENATE("> ", ROUND(D93*E91,0)," ",E93)) -> -- | C94: =IF(B94="--",-1,2) -> -1
A95: =A83 -> Keuze | B95: 1 | C95: =INDEX(C91:C94,B95) -> -1
C96: =C90 -> Score | D96: min | E96: max
A97: =CONCATENATE(language!A135," ",language!A137," ",language!A38) -> Gerapporteerde Emissie-eis SO2 | B97: =IF($B3=1,language!A132,"--") -> niet relevant/onbekend | C97: -1 | D97: 1 | E97: 1.5
B98: =IF(OR($B3=0,'Emission data'!G32="",'Emission data'!G32=0),"--",CONCATENATE(ROUND('Emission data'!G32*D97,0),"-",ROUND(E97*'Emission data'!G32,0)," ",language!A93," ",M5)) -> -- | C98: =IF(B98="--",-1,0) -> -1
B99: =IF(OR($B3=0,'Emission data'!G32="",'Emission data'!G32=0),"--",CONCATENATE("< ",ROUND('Emission data'!G32*D97,0)," ",language!A93," ",M5)) -> -- | C99: =IF(B99="--",-1,1) -> -1
B100: =IF(OR($B3=0,'Emission data'!G32="",'Emission data'!G32=0),"--",CONCATENATE(">",ROUND(E97*'Emission data'!G32,0)," ",language!A93," ",M5)) -> -- | C100: =IF(B100="--",-1,2) -> -1
A101: =A95 -> Keuze | B101: 1 | C101: =INDEX(C97:C100,B101) -> -1
C102: =C96 -> Score | D102: min | E102: max
A103: ='Validation test'!B12 -> Gerapporteerde SO2-concentratie | B103: =IF($B3=1,language!A132,"--") -> niet relevant/onbekend | C103: -1 | D103: 0.8 | E103: 1.2
B104: =IF(OR($B3=0,'Emission data'!G32="",,'Emission data'!G32=0),"--",CONCATENATE(ROUND('Emission data'!G32*D103,0),"-",ROUND(E103*'Emission data'!G32,0)," ",language!A93," ",M5)) -> -- | C104: =IF(B104="--",-1,0) -> -1
B105: =IF(OR($B3=0,'Emission data'!G32="",'Emission data'!G32=0),"--",CONCATENATE("< ",ROUND('Emission data'!G32*D103,0)," ",language!A93," ",M5)) -> -- | C105: =IF(B105="--",-1,1) -> -1
B106: =IF(OR($B3=0,'Emission data'!G32="",'Emission data'!G32=0),"--",CONCATENATE(">",ROUND(E103*'Emission data'!G32,0)," ",language!A93," ",M5)) -> -- | C106: =IF(B106="--",-1,2) -> -1
A107: =A101 -> Keuze | B107: 1 | C107: =INDEX(C103:C106,B107) -> -1
C108: =C96 -> Score | D108: min | E108: max
A109: =CONCATENATE(language!A135," ",language!A38,"-",LOWER(language!A56)) -> Gerapporteerde SO2-emissie | B109: =IF($B3=1,language!A132,"--") -> niet relevant/onbekend | C109: -1 | D109: 0.8 | E109: 1.2
B110: =IF(OR($A39=0,D110="",D110=0),"--",CONCATENATE(ROUND(D111*D109,0),"-",ROUND(D111*E109,0)," ",E111)) -> -- | C110: =IF(B110="--",-1,0) -> -1 | D110: ='Emission data'!J$32 -> 0 | E110: ='Emission data'!F32 -> kg/jaar
B111: =IF(OR($A39=0,D110="",D110=0),"--",CONCATENATE("< ", ROUND(D111*D109,0)," ",E111)) -> -- | C111: =IF(B111="--",-1,1) -> -1 | D111: =IF(D110="","--",IF(D110>100000000,D110/1000000,IF(D110>100000,D110/1000,D110))) -> 0 | E111: =IF(D110>100000000,language!$A$90,IF(D110>100000,language!$A$89,language!$A$83)) -> kg/jaar
B112: =IF(OR($A39=0,D110="",D110=0),"--",CONCATENATE("> ", ROUND(D111*E109,0)," ",E111)) -> -- | C112: =IF(B112="--",-1,2) -> -1
A113: =A101 -> Keuze | B113: 1 | C113: =INDEX(C109:C112,B113) -> -1
A114: ='Validation test'!B7 -> Gemiddelde belasting | B114: min | C114: max
B115: 0.6 | C115: 1.05
A116: ='Validation test'!B8 -> Gerapporteerde CO2-emissie in % van de theoretische waarde | B116: min | C116: max
B117: 0.95 | C117: 1.05
A118: ='Validation test'!B13 -> Gerapporteerde SO2-emissie in % van de theoretische waarde | B118: min | C118: max
B119: 0.9 | C119: 1.05
C120: =C102 -> Score | D120: min | E120: max
A121: =language!A221 -> Dwarsdoorsnede afgaskanaal | B121: =IF($B$3=1,language!A132,"--") -> niet relevant/onbekend | C121: -1 | D121: 7 | E121: 15
B122: =IF(AND($B$3=1,D122<>""),CONCATENATE(ROUND(D122/E121,2),"-",ROUND(D122/D121,2)," ",language!A222),"--") -> 0-0 m2 | C122: =IF(B122="--",-1,0) -> 0 | D122: =IF('Emission data'!M37="","",'Emission data'!M37) -> 0.01 | E122: =IF('Emission data'!N37="","",'Emission data'!N37) -> m3/s
B123: =IF(AND($B$3=1,D122<>""),CONCATENATE("< ",ROUND(D122/E121,2)," ",language!A222),"--") -> < 0 m2 | C123: =IF(B123="--",-1,1) -> 1 | D123: =IF(D122<100,D122*1000,D122) -> 10 | E123: =IF(D122<100,language!A106,language!A107) -> GASTURBINE
B124: =IF(AND($B$3=1,D122<>""),CONCATENATE(">",ROUND(D122/D121,2)," ",language!A222),"--") -> >0 m2 | C124: =IF(B124="--",-1,2) -> 2
A125: =A113 -> Keuze | B125: 1 | C125: =INDEX(C121:C124,B125) -> -1
